Department Family,Entity,Payment Date,Expense Type,Expense Area,Supplier,Transaction Number,Amount,Description
BIS,Skills Funding Agency,27/02/2017,Implementation,Operations ICT - Technical Design Authority,BARCLAYS,SPINVB_34371,"1,498.33",Purchase Invoice
BIS,Skills Funding Agency,27/02/2017,Implementation,Operations ICT - Technical Design Authority,BARCLAYS,SPINVB_34411,"1,059.43",Purchase Invoice
BIS,Skills Funding Agency,27/02/2017,Software Maintenance & Repair,Operations ICT - Technical Design Authority,INFO-ASSURE,SPCRNB_1231,-33.00,Purchase Credit Note
BIS,Skills Funding Agency,27/02/2017,Software Maintenance & Repair,Operations ICT - Technical Design Authority,INFO-ASSURE,SPINVB_33207,"6,147.22",Purchase Invoice
BIS,Skills Funding Agency,27/02/2017,Temporary Staff,Apprenticeships & Delivery Services - Executive Office,MICHAEL PAGE INTERNATIONAL RECRUITMENT LTD,SPINVB_33883,"2,352.00",Purchase Invoice
BIS,Skills Funding Agency,27/02/2017,Temporary Staff,Funding & Programmes - Executive Office,LA INTERNATIONAL,SPINVB_34446,"10,440.00",Purchase Invoice
BIS,Skills Funding Agency,27/02/2017,Temporary Staff,Funding & Programmes - Executive Office,LA INTERNATIONAL,SPINVB_34447,"14,433.12",Purchase Invoice
BIS,Skills Funding Agency,27/02/2017,Temporary Staff,Funding & Programmes - Executive Office,MICHAEL PAGE INTERNATIONAL RECRUITMENT LTD,SPINVB_34434,"1,980.00",Purchase Invoice
BIS,Skills Funding Agency,28/02/2017,Catering Contracts,Chief Executive Office - Executive Office,WESTBURY STREET HOLDINGS,SPINVB_34104,"8,286.49",Purchase Invoice
BIS,Skills Funding Agency,28/02/2017,Catering Contracts,Chief Executive Office - Executive Office,WESTBURY STREET HOLDINGS,SPINVB_34440,"11,020.82",Purchase Invoice
BIS,Skills Funding Agency,28/02/2017,Electricity,Chief Executive Office - Executive Office,CIVIL�SERVICE�RESOURCING,SPINVB_34460,"1,185.61",Purchase Invoice
BIS,Skills Funding Agency,28/02/2017,Managed IT Service,Data Science,LEIDOS INNOVATIONS UK LTD,SPINVB_34437,"162,053.84",Purchase Invoice
BIS,Skills Funding Agency,28/02/2017,Managed IT Service,Data Science,TRUEPENNY PEOPLE UK LTD,SPINVB_34457,"3,600.00",Purchase Invoice
BIS,Skills Funding Agency,28/02/2017,Managed IT Service,Data Science,TRUEPENNY PEOPLE UK LTD,SPINVB_34458,"56,393.10",Purchase Invoice
BIS,Skills Funding Agency,28/02/2017,Rent,Chief Executive Office - Executive Office,CIVIL�SERVICE�RESOURCING,SPINVB_34460,"9,025.57",Purchase Invoice
BIS,Skills Funding Agency,28/02/2017,Support Services,Data Science,LEIDOS INNOVATIONS UK LTD,SPINVB_34451,341.33,Purchase Invoice
BIS,Skills Funding Agency,28/02/2017,Support Services,Data Science,LEIDOS INNOVATIONS UK LTD,SPINVB_34452,341.33,Purchase Invoice
BIS,Skills Funding Agency,28/02/2017,Temporary Staff,Apprenticeships & Delivery Services - Executive Office,LA INTERNATIONAL,SPINVB_34454,"4,179.00",Purchase Invoice
BIS,Skills Funding Agency,28/02/2017,Temporary Staff,Apprenticeships & Delivery Services - Executive Office,SMART SOURCING PLC,SPINVB_34455,305.35,Purchase Invoice
BIS,Skills Funding Agency,28/02/2017,Temporary Staff,Apprenticeships & Delivery Services - Executive Office,SMART SOURCING PLC,SPINVB_34456,77.65,Purchase Invoice
BIS,Skills Funding Agency,28/02/2017,Temporary Staff,Data Science,LA INTERNATIONAL,SPINVB_34453,"8,991.72",Purchase Invoice
BIS,Skills Funding Agency,28/02/2017,Temporary Staff,Data Science,SPRING TECHNOLOGY STAFFING SERVICES LTD,SPINVB_34397,"3,000.00",Purchase Invoice
BIS,Skills Funding Agency,28/02/2017,Temporary Staff,Data Science,SPRING TECHNOLOGY STAFFING SERVICES LTD,SPINVB_34398,"3,000.00",Purchase Invoice
BIS,Skills Funding Agency,28/02/2017,Temporary Staff,Data Science,SPRING TECHNOLOGY STAFFING SERVICES LTD,SPINVB_34399,"3,000.00",Purchase Invoice
BIS,Skills Funding Agency,28/02/2017,Temporary Staff,Data Science,SPRING TECHNOLOGY STAFFING SERVICES LTD,SPINVB_34400,"3,000.00",Purchase Invoice
BIS,Skills Funding Agency,28/02/2017,Temporary Staff,Funding & Programmes - Executive Office,KELLY SERVICES UK LTD,SPINVB_34205,"1,041.31",Purchase Invoice
BIS,Skills Funding Agency,28/02/2017,Temporary Staff,Funding & Programmes - Executive Office,SMART SOURCING PLC,SPINVB_34153,"13,828.50",Purchase Invoice
BIS,Skills Funding Agency,28/02/2017,Temporary Staff,Funding & Programmes - Executive Office,SMART SOURCING PLC,SPINVB_34373,"6,828.60",Purchase Invoice
BIS,Skills Funding Agency,28/02/2017,Temporary Staff,Operations ICT - Technical Design Authority,LA INTERNATIONAL,SPINVB_34443,"6,171.84",Purchase Invoice
BIS,Skills Funding Agency,28/02/2017,Training Fees Staff,Data Science,QA LIMITED,SPINVB_34402,"9,995.00",Purchase Invoice
BIS,Skills Funding Agency,28/02/2017,Training Fees Staff,Data Science,QA LIMITED,SPINVB_34403,"9,995.00",Purchase Invoice
BIS,Skills Funding Agency,28/02/2017,Training Fees Staff,Data Science,QA LIMITED,SPINVB_34404,"9,995.00",Purchase Invoice
BIS,Skills Funding Agency,28/02/2017,Training Fees Staff,Data Science,QA LIMITED,SPINVB_34405,"9,995.00",Purchase Invoice
BIS,Skills Funding Agency,28/02/2017,Training Fees Staff,Data Science,QA LIMITED,SPINVB_34406,"9,995.00",Purchase Invoice
BIS,Skills Funding Agency,28/02/2017,Young People's Helpline,Main Funding,WHITESPACE EXHIBITIONS,SPINVB_34308,"5,330.40",Purchase Invoice
BIS,Skills Funding Agency,28/02/2017,Young People's Helpline,Main Funding,WHITESPACE EXHIBITIONS,SPINVB_34309,"9,547.68",Purchase Invoice
BIS,Skills Funding Agency,28/02/2017,Young People's Helpline,Main Funding,WHITESPACE EXHIBITIONS,SPINVB_34310,"10,082.88",Purchase Invoice
BIS,Skills Funding Agency,28/02/2017,Young People's Helpline,Main Funding,WHITESPACE EXHIBITIONS,SPINVB_34311,"3,345.60",Purchase Invoice
BIS,Skills Funding Agency,28/02/2017,Young People's Helpline,Main Funding,WHITESPACE EXHIBITIONS,SPINVB_34312,"4,704.00",Purchase Invoice
BIS,Skills Funding Agency,28/02/2017,Young People's Helpline,Main Funding,WHITESPACE EXHIBITIONS,SPINVB_34313,"2,694.00",Purchase Invoice
BIS,Skills Funding Agency,28/02/2017,Young People's Helpline,Main Funding,WHITESPACE EXHIBITIONS,SPINVB_34314,"2,047.20",Purchase Invoice
BIS,Skills Funding Agency,28/02/2017,Young People's Helpline,Main Funding,WHITESPACE EXHIBITIONS,SPINVB_34315,"2,094.00",Purchase Invoice
BIS,Skills Funding Agency,28/02/2017,Young People's Helpline,Main Funding,WHITESPACE EXHIBITIONS,SPINVB_34316,"2,652.00",Purchase Invoice
BIS,Skills Funding Agency,28/02/2017,Young People's Helpline,Main Funding,WHITESPACE EXHIBITIONS,SPINVB_34317,"2,808.00",Purchase Invoice
BIS,Skills Funding Agency,01/03/2017,Diesel Car Mileage,Apprenticeships & Delivery Services - Executive Office,Agency Staff Member,SCLAIM_47741,45.90,Staff Expenses Claim
BIS,Skills Funding Agency,01/03/2017,Diesel Car Mileage,Apprenticeships & Delivery Services - Executive Office,Agency Staff Member,SCLAIM_47779,151.20,Staff Expenses Claim
BIS,Skills Funding Agency,01/03/2017,Diesel Car Mileage,Apprenticeships & Delivery Services - Executive Office,Agency Staff Member,SCLAIM_47794,119.70,Staff Expenses Claim
BIS,Skills Funding Agency,01/03/2017,Diesel Car Mileage,Central Delivery Service - European Social Fund - Audit Compliance,Agency Staff Member,SCLAIM_47754,8.10,Staff Expenses Claim
BIS,Skills Funding Agency,01/03/2017,Diesel Car Mileage,Central Delivery Service - European Social Fund - Audit Compliance,Agency Staff Member,SCLAIM_47783,206.10,Staff Expenses Claim
BIS,Skills Funding Agency,01/03/2017,Diesel Car Mileage,Central Delivery Service - European Social Fund - Audit Compliance,Agency Staff Member,SCLAIM_47791,195.30,Staff Expenses Claim
BIS,Skills Funding Agency,01/03/2017,Diesel Car Mileage,Central Delivery Service - Leeds,Agency Staff Member,SCLAIM_47744,197.55,Staff Expenses Claim
BIS,Skills Funding Agency,01/03/2017,Diesel Car Mileage,Central Delivery Service - Leeds,Agency Staff Member,SCLAIM_47756,134.50,Staff Expenses Claim
BIS,Skills Funding Agency,01/03/2017,Diesel Car Mileage,Central Delivery Service - Leeds,Agency Staff Member,SCLAIM_47790,14.40,Staff Expenses Claim
BIS,Skills Funding Agency,01/03/2017,Diesel Car Mileage,Central Delivery Service - Leeds,Agency Staff Member,SCLAIM_47793,262.80,Staff Expenses Claim
BIS,Skills Funding Agency,01/03/2017,Diesel Car Mileage,Employer & Provider Services North West,Agency Staff Member,SCLAIM_47780,92.70,Staff Expenses Claim
BIS,Skills Funding Agency,01/03/2017,Diesel Car Mileage,Employer & Provider Services North West,Agency Staff Member,SCLAIM_47781,112.50,Staff Expenses Claim
BIS,Skills Funding Agency,01/03/2017,Diesel Car Mileage,Funding & Programmes - Executive Office,Agency Staff Member,SCLAIM_47755,594.00,Staff Expenses Claim
BIS,Skills Funding Agency,01/03/2017,Diesel Car Mileage,Funding & Programmes - Funding Policy Implementation Programmes,Agency Staff Member,SCLAIM_47773,18.90,Staff Expenses Claim
BIS,Skills Funding Agency,01/03/2017,Diesel Car Mileage,National Careers & Learner Services,Agency Staff Member,SCLAIM_47778,212.40,Staff Expenses Claim
BIS,Skills Funding Agency,01/03/2017,Diesel Car Mileage,Operations Finance - Executive Office,Agency Staff Member,SCLAIM_47801,7.20,Staff Expenses Claim
BIS,Skills Funding Agency,01/03/2017,Diesel Car Mileage,Operations Finance - Executive Office,Agency Staff Member,SCLAIM_47802,36.00,Staff Expenses Claim
BIS,Skills Funding Agency,01/03/2017,Eye Tests,Central Delivery Service - European Social Fund - Audit Compliance,Agency Staff Member,SCLAIM_47783,50.00,Staff Expenses Claim
BIS,Skills Funding Agency,01/03/2017,Eye Tests,Funding & Programmes - Funding Policy Implementation Programmes,Agency Staff Member,SCLAIM_47773,20.00,Staff Expenses Claim
BIS,Skills Funding Agency,01/03/2017,Hospitality,Operations Finance - Executive Office,Agency Staff Member,SCLAIM_47799,22.80,Staff Expenses Claim
BIS,Skills Funding Agency,01/03/2017,Hospitality,Transformation & Corporate Strategy,Agency Staff Member,SCLAIM_47788,3.45,Staff Expenses Claim
BIS,Skills Funding Agency,01/03/2017,Hotel Accommodation,Operations Finance - Executive Office,Agency Staff Member,SCLAIM_47799,81.00,Staff Expenses Claim
BIS,Skills Funding Agency,01/03/2017,Landline Telephone Service,Operations ICT - Technical Design Authority,UNIFY ENTERPRISE COMMUNICATIONS LTD,SPINVB_34466,"7,896.00",Purchase Invoice
BIS,Skills Funding Agency,01/03/2017,Landline Telephone Service,Operations ICT - Technical Design Authority,UNIFY ENTERPRISE COMMUNICATIONS LTD,SPINVB_34480,"20,707.74",Purchase Invoice
BIS,Skills Funding Agency,01/03/2017,Licences,Funding & Programmes - Executive Office,BYTES SOFTWARE SERVICES LTD,SPINVB_34469,"10,012.66",Purchase Invoice
BIS,Skills Funding Agency,01/03/2017,Managed IT Service,Operations ICT - Information & Communication Technology - Technical,CAPGEMINI UK PLC,SPINVB_34471,"42,736.86",Purchase Invoice
BIS,Skills Funding Agency,01/03/2017,"National Apprenticeship Service - Business, Innovation & Skills - Non-Participation",Main Funding,BUSINESS & ENTERPRISE COMMERICAL LTD,SPINVB_34483,"20,892.31",Purchase Invoice
BIS,Skills Funding Agency,01/03/2017,"National Apprenticeship Service - Business, Innovation & Skills - Non-Participation",Main Funding,PORTSMOUTH CITY COUNCIL,SPINVB_34493,"5,000.00",Purchase Invoice
BIS,Skills Funding Agency,01/03/2017,Other Fuel Car Mileage Passenger Supplement,Employer & Provider Services North East & Yorkshire,Agency Staff Member,SCLAIM_47775,10.60,Staff Expenses Claim
BIS,Skills Funding Agency,01/03/2017,Other Fuel Car Mileage,Chief Executive Office - Media & Public Affairs,Agency Staff Member,SCLAIM_47774,45.00,Staff Expenses Claim
BIS,Skills Funding Agency,01/03/2017,Other Fuel Car Mileage,Employer & Provider Services North East & Yorkshire,Agency Staff Member,SCLAIM_47775,398.70,Staff Expenses Claim
BIS,Skills Funding Agency,01/03/2017,Other Fuel Car Mileage,Funding & Programmes - Executive Office,Agency Staff Member,SCLAIM_47797,411.30,Staff Expenses Claim
BIS,Skills Funding Agency,01/03/2017,Other Travel,Apprenticeships & Delivery Services - Apprenticeships & Employer Policy Implementation,Agency Staff Member,SCLAIM_47743,3.99,Staff Expenses Claim
BIS,Skills Funding Agency,01/03/2017,Other Travel,Apprenticeships & Delivery Services - Executive Office,Agency Staff Member,SCLAIM_47741,16.00,Staff Expenses Claim
BIS,Skills Funding Agency,01/03/2017,Other Travel,Apprenticeships & Delivery Services - Executive Office,Agency Staff Member,SCLAIM_47779,15.00,Staff Expenses Claim
BIS,Skills Funding Agency,01/03/2017,Other Travel,Apprenticeships & Delivery Services - Executive Office,Agency Staff Member,SCLAIM_47792,16.00,Staff Expenses Claim
BIS,Skills Funding Agency,01/03/2017,Other Travel,Apprenticeships & Delivery Services - Executive Office,Agency Staff Member,SCLAIM_47794,36.64,Staff Expenses Claim
BIS,Skills Funding Agency,01/03/2017,Other Travel,Central Delivery Service - European Social Fund - Audit Compliance,Agency Staff Member,SCLAIM_47754,18.60,Staff Expenses Claim
BIS,Skills Funding Agency,01/03/2017,Other Travel,Central Delivery Service - European Social Fund - Audit Compliance,Agency Staff Member,SCLAIM_47789,6.00,Staff Expenses Claim
BIS,Skills Funding Agency,01/03/2017,Other Travel,Central Delivery Service - European Social Fund - Audit Compliance,Agency Staff Member,SCLAIM_47791,17.00,Staff Expenses Claim
BIS,Skills Funding Agency,01/03/2017,Other Travel,Central Delivery Service - Leeds,Agency Staff Member,SCLAIM_47744,4.00,Staff Expenses Claim
BIS,Skills Funding Agency,01/03/2017,Other Travel,Central Delivery Service - Leeds,Agency Staff Member,SCLAIM_47756,30.00,Staff Expenses Claim
BIS,Skills Funding Agency,01/03/2017,Other Travel,Central Delivery Service - Leeds,Agency Staff Member,SCLAIM_47777,17.00,Staff Expenses Claim
BIS,Skills Funding Agency,01/03/2017,Other Travel,Central Delivery Service - Leeds,Agency Staff Member,SCLAIM_47786,34.30,Staff Expenses Claim
BIS,Skills Funding Agency,01/03/2017,Other Travel,Central Delivery Service - Leeds,Agency Staff Member,SCLAIM_47793,67.00,Staff Expenses Claim
BIS,Skills Funding Agency,01/03/2017,Other Travel,Chief Executive Office - Media & Public Affairs,Agency Staff Member,SCLAIM_47774,2.00,Staff Expenses Claim
BIS,Skills Funding Agency,01/03/2017,Other Travel,Employer & Provider Services North East & Yorkshire,Agency Staff Member,SCLAIM_47775,20.50,Staff Expenses Claim
BIS,Skills Funding Agency,01/03/2017,Other Travel,Finance Division - Provider Financial Assurance Audit,Agency Staff Member,SCLAIM_47798,4.50,Staff Expenses Claim
BIS,Skills Funding Agency,01/03/2017,Other Travel,Funding & Programmes - Executive Office,Agency Staff Member,SCLAIM_47770,29.80,Staff Expenses Claim
BIS,Skills Funding Agency,01/03/2017,Other Travel,Funding & Programmes - Executive Office,Agency Staff Member,SCLAIM_47772,80.00,Staff Expenses Claim
BIS,Skills Funding Agency,01/03/2017,Other Travel,Funding & Programmes - Executive Office,Agency Staff Member,SCLAIM_47784,112.20,Staff Expenses Claim
BIS,Skills Funding Agency,01/03/2017,Other Travel,Funding & Programmes - Executive Office,Agency Staff Member,SCLAIM_47785,100.50,Staff Expenses Claim
BIS,Skills Funding Agency,01/03/2017,Other Travel,Funding & Programmes - Localism Policy Implementation,Agency Staff Member,SCLAIM_47751,30.00,Staff Expenses Claim
BIS,Skills Funding Agency,01/03/2017,Other Travel,Funding & Programmes - Localism Policy Implementation,Agency Staff Member,SCLAIM_47771,44.00,Staff Expenses Claim
BIS,Skills Funding Agency,01/03/2017,Other Travel,Funding & Programmes - Provider Management & Intervention South,Agency Staff Member,SCLAIM_47759,19.05,Staff Expenses Claim
BIS,Skills Funding Agency,01/03/2017,Other Travel,Funding & Programmes - Provider Management & Intervention South,Agency Staff Member,SCLAIM_47760,32.05,Staff Expenses Claim
BIS,Skills Funding Agency,01/03/2017,Other Travel,Large Companies Unit,Agency Staff Member,SCLAIM_47747,106.70,Staff Expenses Claim
BIS,Skills Funding Agency,01/03/2017,Other Travel,Large Companies Unit,Agency Staff Member,SCLAIM_47748,153.00,Staff Expenses Claim
BIS,Skills Funding Agency,01/03/2017,Other Travel,Large Companies Unit,Agency Staff Member,SCLAIM_47767,11.00,Staff Expenses Claim
BIS,Skills Funding Agency,01/03/2017,Other Travel,Large Companies Unit,Agency Staff Member,SCLAIM_47768,6.00,Staff Expenses Claim
BIS,Skills Funding Agency,01/03/2017,Other Travel,Large Companies Unit,Agency Staff Member,SCLAIM_47769,82.90,Staff Expenses Claim
BIS,Skills Funding Agency,01/03/2017,Other Travel,National Careers & Learner Services,Agency Staff Member,SCLAIM_47778,6.00,Staff Expenses Claim
BIS,Skills Funding Agency,01/03/2017,Other Travel,National Careers & Learner Services,Agency Staff Member,SCLAIM_47795,4.20,Staff Expenses Claim
BIS,Skills Funding Agency,01/03/2017,Other Travel,Operations Finance - Executive Office,Agency Staff Member,SCLAIM_47801,6.60,Staff Expenses Claim
BIS,Skills Funding Agency,01/03/2017,Other Travel,Operations Finance - Executive Office,Agency Staff Member,SCLAIM_47802,48.00,Staff Expenses Claim
BIS,Skills Funding Agency,01/03/2017,Petrol Car Mileage,Apprenticeships & Delivery Services - Apprenticeships & Employer Policy Implementation,Agency Staff Member,SCLAIM_47743,33.30,Staff Expenses Claim
BIS,Skills Funding Agency,01/03/2017,Petrol Car Mileage,Apprenticeships & Delivery Services - Executive Office,Agency Staff Member,SCLAIM_47742,389.70,Staff Expenses Claim
BIS,Skills Funding Agency,01/03/2017,Petrol Car Mileage,Apprenticeships & Delivery Services - Executive Office,Agency Staff Member,SCLAIM_47792,79.20,Staff Expenses Claim
BIS,Skills Funding Agency,01/03/2017,Petrol Car Mileage,Central Delivery Service - Birmingham,Agency Staff Member,SCLAIM_47745,360.00,Staff Expenses Claim
BIS,Skills Funding Agency,01/03/2017,Petrol Car Mileage,Central Delivery Service - Birmingham,Agency Staff Member,SCLAIM_47746,270.00,Staff Expenses Claim
BIS,Skills Funding Agency,01/03/2017,Petrol Car Mileage,Central Delivery Service - Birmingham,Agency Staff Member,SCLAIM_47762,360.00,Staff Expenses Claim
BIS,Skills Funding Agency,01/03/2017,Petrol Car Mileage,Central Delivery Service - European Social Fund - Audit Compliance,Agency Staff Member,SCLAIM_47752,65.70,Staff Expenses Claim
BIS,Skills Funding Agency,01/03/2017,Petrol Car Mileage,Central Delivery Service - European Social Fund - Audit Compliance,Agency Staff Member,SCLAIM_47753,45.90,Staff Expenses Claim
BIS,Skills Funding Agency,01/03/2017,Petrol Car Mileage,Central Delivery Service - European Social Fund - Audit Compliance,Agency Staff Member,SCLAIM_47763,45.90,Staff Expenses Claim
BIS,Skills Funding Agency,01/03/2017,Petrol Car Mileage,Central Delivery Service - European Social Fund - Audit Compliance,Agency Staff Member,SCLAIM_47764,39.60,Staff Expenses Claim
BIS,Skills Funding Agency,01/03/2017,Petrol Car Mileage,Central Delivery Service - European Social Fund - Audit Compliance,Agency Staff Member,SCLAIM_47789,225.00,Staff Expenses Claim
BIS,Skills Funding Agency,01/03/2017,Petrol Car Mileage,Finance Division - Provider Financial Assurance Audit,Agency Staff Member,SCLAIM_47798,1.80,Staff Expenses Claim
BIS,Skills Funding Agency,01/03/2017,Petrol Car Mileage,Funding & Programmes - Executive Office,Agency Staff Member,SCLAIM_47770,24.30,Staff Expenses Claim
BIS,Skills Funding Agency,01/03/2017,Petrol Car Mileage,Funding & Programmes - Executive Office,Agency Staff Member,SCLAIM_47772,170.10,Staff Expenses Claim
BIS,Skills Funding Agency,01/03/2017,Petrol Car Mileage,Funding & Programmes - Executive Office,Agency Staff Member,SCLAIM_47784,787.50,Staff Expenses Claim
BIS,Skills Funding Agency,01/03/2017,Petrol Car Mileage,Funding & Programmes - Executive Office,Agency Staff Member,SCLAIM_47785,421.20,Staff Expenses Claim
BIS,Skills Funding Agency,01/03/2017,Petrol Car Mileage,Funding & Programmes - Localism Policy Implementation,Agency Staff Member,SCLAIM_47771,74.70,Staff Expenses Claim
BIS,Skills Funding Agency,01/03/2017,Petrol Car Mileage,Large Companies Unit,Agency Staff Member,SCLAIM_47748,78.30,Staff Expenses Claim
BIS,Skills Funding Agency,01/03/2017,Petrol Car Mileage,National Careers & Learner Services,Agency Staff Member,SCLAIM_47795,81.90,Staff Expenses Claim
BIS,Skills Funding Agency,01/03/2017,Petrol Car Mileage,Operations Finance - Executive Office,Agency Staff Member,SCLAIM_47757,43.20,Staff Expenses Claim
BIS,Skills Funding Agency,01/03/2017,Rail Warrants & Tickets,Apprenticeships & Delivery Services - Executive Office,Agency Staff Member,SCLAIM_47794,21.80,Staff Expenses Claim
BIS,Skills Funding Agency,01/03/2017,Rail Warrants & Tickets,Central Delivery Service - European Social Fund - Audit Compliance,Agency Staff Member,SCLAIM_47791,9.90,Staff Expenses Claim
BIS,Skills Funding Agency,01/03/2017,Rail Warrants & Tickets,Employer & Provider Services London,Agency Staff Member,SCLAIM_47765,34.80,Staff Expenses Claim
BIS,Skills Funding Agency,01/03/2017,Rail Warrants & Tickets,Funding & Programmes - Funding Policy Implementation Programmes,Agency Staff Member,SCLAIM_47773,18.00,Staff Expenses Claim
BIS,Skills Funding Agency,01/03/2017,Rail Warrants & Tickets,Funding & Programmes - Localism Policy Implementation,Agency Staff Member,SCLAIM_47771,2.10,Staff Expenses Claim
BIS,Skills Funding Agency,01/03/2017,Rail Warrants & Tickets,Large Companies Unit,Agency Staff Member,SCLAIM_47766,18.50,Staff Expenses Claim
BIS,Skills Funding Agency,01/03/2017,Rail Warrants & Tickets,Large Companies Unit,Agency Staff Member,SCLAIM_47767,49.50,Staff Expenses Claim
BIS,Skills Funding Agency,01/03/2017,Rail Warrants & Tickets,Large Companies Unit,Agency Staff Member,SCLAIM_47768,10.00,Staff Expenses Claim
BIS,Skills Funding Agency,01/03/2017,Rail Warrants & Tickets,Large Companies Unit,Agency Staff Member,SCLAIM_47787,44.40,Staff Expenses Claim
BIS,Skills Funding Agency,01/03/2017,Rail Warrants & Tickets,Operations Finance - Executive Office,Agency Staff Member,SCLAIM_47757,9.80,Staff Expenses Claim
BIS,Skills Funding Agency,01/03/2017,Rail Warrants & Tickets,Operations Finance - Executive Office,Agency Staff Member,SCLAIM_47799,122.40,Staff Expenses Claim
BIS,Skills Funding Agency,01/03/2017,Self-Drive Car Hire,Central Delivery Service - Leeds,Agency Staff Member,SCLAIM_47786,55.01,Staff Expenses Claim
BIS,Skills Funding Agency,01/03/2017,Self-Drive Car Hire,Finance Division - Provider Financial Assurance Audit,Agency Staff Member,SCLAIM_47798,35.75,Staff Expenses Claim
BIS,Skills Funding Agency,01/03/2017,Self-Drive Car Hire,Funding & Programmes - Executive Office,Agency Staff Member,SCLAIM_47770,51.68,Staff Expenses Claim
BIS,Skills Funding Agency,01/03/2017,Self-Drive Car Hire,Funding & Programmes - Provider Management & Intervention South,Agency Staff Member,SCLAIM_47759,23.05,Staff Expenses Claim
BIS,Skills Funding Agency,01/03/2017,Self-Drive Car Hire,Funding & Programmes - Provider Management & Intervention South,Agency Staff Member,SCLAIM_47760,16.54,Staff Expenses Claim
BIS,Skills Funding Agency,01/03/2017,Software Maintenance & Repair,Operations ICT - Mission IT / Business As Usual Major Releases,CAPGEMINI UK PLC,SPINVB_34473,"12,994.02",Purchase Invoice
BIS,Skills Funding Agency,01/03/2017,Subsistence,Apprenticeships & Delivery Services - Apprenticeships & Employer Policy Implementation,Agency Staff Member,SCLAIM_47743,29.24,Staff Expenses Claim
BIS,Skills Funding Agency,01/03/2017,Subsistence,Apprenticeships & Delivery Services - Executive Office,Agency Staff Member,SCLAIM_47741,38.19,Staff Expenses Claim
BIS,Skills Funding Agency,01/03/2017,Subsistence,Apprenticeships & Delivery Services - Executive Office,Agency Staff Member,SCLAIM_47758,13.75,Staff Expenses Claim
BIS,Skills Funding Agency,01/03/2017,Subsistence,Apprenticeships & Delivery Services - Executive Office,Agency Staff Member,SCLAIM_47779,20.79,Staff Expenses Claim
BIS,Skills Funding Agency,01/03/2017,Subsistence,Apprenticeships & Delivery Services - Executive Office,Agency Staff Member,SCLAIM_47794,43.14,Staff Expenses Claim
BIS,Skills Funding Agency,01/03/2017,Subsistence,Central Delivery Service - European Social Fund - Audit Compliance,Agency Staff Member,SCLAIM_47754,8.85,Staff Expenses Claim
BIS,Skills Funding Agency,01/03/2017,Subsistence,Central Delivery Service - European Social Fund - Audit Compliance,Agency Staff Member,SCLAIM_47776,6.00,Staff Expenses Claim
BIS,Skills Funding Agency,01/03/2017,Subsistence,Central Delivery Service - European Social Fund - Audit Compliance,Agency Staff Member,SCLAIM_47782,17.85,Staff Expenses Claim
BIS,Skills Funding Agency,01/03/2017,Subsistence,Central Delivery Service - European Social Fund - Audit Compliance,Agency Staff Member,SCLAIM_47789,3.34,Staff Expenses Claim
BIS,Skills Funding Agency,01/03/2017,Subsistence,Central Delivery Service - European Social Fund - Audit Compliance,Agency Staff Member,SCLAIM_47791,17.28,Staff Expenses Claim
BIS,Skills Funding Agency,01/03/2017,Subsistence,Central Delivery Service - European Social Fund - Audit Compliance,Agency Staff Member,SCLAIM_47796,3.00,Staff Expenses Claim
BIS,Skills Funding Agency,01/03/2017,Subsistence,Central Delivery Service - Leeds,Agency Staff Member,SCLAIM_47744,40.32,Staff Expenses Claim
BIS,Skills Funding Agency,01/03/2017,Subsistence,Central Delivery Service - Leeds,Agency Staff Member,SCLAIM_47756,20.94,Staff Expenses Claim
BIS,Skills Funding Agency,01/03/2017,Subsistence,Central Delivery Service - Leeds,Agency Staff Member,SCLAIM_47777,2.30,Staff Expenses Claim
BIS,Skills Funding Agency,01/03/2017,Subsistence,Central Delivery Service - Leeds,Agency Staff Member,SCLAIM_47786,61.70,Staff Expenses Claim
BIS,Skills Funding Agency,01/03/2017,Subsistence,Central Delivery Service - Leeds,Agency Staff Member,SCLAIM_47790,8.50,Staff Expenses Claim
BIS,Skills Funding Agency,01/03/2017,Subsistence,Central Delivery Service - Leeds,Agency Staff Member,SCLAIM_47793,41.14,Staff Expenses Claim
BIS,Skills Funding Agency,01/03/2017,Subsistence,Chief Executive Office - Media & Public Affairs,Agency Staff Member,SCLAIM_47774,38.44,Staff Expenses Claim
BIS,Skills Funding Agency,01/03/2017,Subsistence,Employer & Provider Services London,Agency Staff Member,SCLAIM_47761,2.25,Staff Expenses Claim
BIS,Skills Funding Agency,01/03/2017,Subsistence,Finance Division - Provider Financial Assurance Audit,Agency Staff Member,SCLAIM_47798,4.50,Staff Expenses Claim
BIS,Skills Funding Agency,01/03/2017,Subsistence,Funding & Programmes - Executive Office,Agency Staff Member,SCLAIM_47755,66.42,Staff Expenses Claim
BIS,Skills Funding Agency,01/03/2017,Subsistence,Funding & Programmes - Executive Office,Agency Staff Member,SCLAIM_47770,113.68,Staff Expenses Claim
BIS,Skills Funding Agency,01/03/2017,Subsistence,Funding & Programmes - Executive Office,Agency Staff Member,SCLAIM_47772,137.37,Staff Expenses Claim
BIS,Skills Funding Agency,01/03/2017,Subsistence,Funding & Programmes - Executive Office,Agency Staff Member,SCLAIM_47785,9.00,Staff Expenses Claim
BIS,Skills Funding Agency,01/03/2017,Subsistence,Funding & Programmes - Funding Policy Implementation Programmes,Agency Staff Member,SCLAIM_47773,54.43,Staff Expenses Claim
BIS,Skills Funding Agency,01/03/2017,Subsistence,Funding & Programmes - Localism Policy Implementation,Agency Staff Member,SCLAIM_47751,8.39,Staff Expenses Claim
BIS,Skills Funding Agency,01/03/2017,Subsistence,Funding & Programmes - Localism Policy Implementation,Agency Staff Member,SCLAIM_47771,106.70,Staff Expenses Claim
BIS,Skills Funding Agency,01/03/2017,Subsistence,Large Companies Unit,Agency Staff Member,SCLAIM_47748,72.40,Staff Expenses Claim
BIS,Skills Funding Agency,01/03/2017,Subsistence,Large Companies Unit,Agency Staff Member,SCLAIM_47766,140.05,Staff Expenses Claim
BIS,Skills Funding Agency,01/03/2017,Subsistence,Large Companies Unit,Agency Staff Member,SCLAIM_47767,259.32,Staff Expenses Claim
BIS,Skills Funding Agency,01/03/2017,Subsistence,Large Companies Unit,Agency Staff Member,SCLAIM_47768,213.40,Staff Expenses Claim
BIS,Skills Funding Agency,01/03/2017,Subsistence,Large Companies Unit,Agency Staff Member,SCLAIM_47769,80.14,Staff Expenses Claim
BIS,Skills Funding Agency,01/03/2017,Subsistence,Large Companies Unit,Agency Staff Member,SCLAIM_47787,71.44,Staff Expenses Claim
BIS,Skills Funding Agency,01/03/2017,Subsistence,National Careers & Learner Services,Agency Staff Member,SCLAIM_47795,23.84,Staff Expenses Claim
BIS,Skills Funding Agency,01/03/2017,Subsistence,Operations Finance - Executive Office,Agency Staff Member,SCLAIM_47757,6.89,Staff Expenses Claim
BIS,Skills Funding Agency,01/03/2017,Subsistence,Operations Finance - Executive Office,Agency Staff Member,SCLAIM_47799,86.33,Staff Expenses Claim
BIS,Skills Funding Agency,01/03/2017,Subsistence,Operations Finance - Executive Office,Agency Staff Member,SCLAIM_47800,24.70,Staff Expenses Claim
BIS,Skills Funding Agency,01/03/2017,Subsistence,Operations Finance - Executive Office,Agency Staff Member,SCLAIM_47801,11.90,Staff Expenses Claim
BIS,Skills Funding Agency,01/03/2017,Subsistence,Operations Finance - Executive Office,Agency Staff Member,SCLAIM_47802,46.91,Staff Expenses Claim
BIS,Skills Funding Agency,01/03/2017,Subsistence,Transformation & Corporate Strategy,Agency Staff Member,SCLAIM_47788,37.10,Staff Expenses Claim
BIS,Skills Funding Agency,01/03/2017,Taxis,Apprenticeships & Delivery Services - Executive Office,Agency Staff Member,SCLAIM_47741,12.00,Staff Expenses Claim
BIS,Skills Funding Agency,01/03/2017,Taxis,Apprenticeships & Delivery Services - Executive Office,Agency Staff Member,SCLAIM_47792,49.80,Staff Expenses Claim
BIS,Skills Funding Agency,01/03/2017,Taxis,Apprenticeships & Delivery Services - Executive Office,Agency Staff Member,SCLAIM_47794,10.50,Staff Expenses Claim
BIS,Skills Funding Agency,01/03/2017,Taxis,Central Delivery Service - European Social Fund - Audit Compliance,Agency Staff Member,SCLAIM_47754,21.50,Staff Expenses Claim
BIS,Skills Funding Agency,01/03/2017,Taxis,Central Delivery Service - Leeds,Agency Staff Member,SCLAIM_47756,5.00,Staff Expenses Claim
BIS,Skills Funding Agency,01/03/2017,Taxis,Central Delivery Service - Leeds,Agency Staff Member,SCLAIM_47790,19.80,Staff Expenses Claim
BIS,Skills Funding Agency,01/03/2017,Taxis,Chief Executive Office - Media & Public Affairs,Agency Staff Member,SCLAIM_47774,17.30,Staff Expenses Claim
BIS,Skills Funding Agency,01/03/2017,Taxis,Employer & Provider Services London,Agency Staff Member,SCLAIM_47761,35.00,Staff Expenses Claim
BIS,Skills Funding Agency,01/03/2017,Taxis,Funding & Programmes - Executive Office,Agency Staff Member,SCLAIM_47770,7.50,Staff Expenses Claim
BIS,Skills Funding Agency,01/03/2017,Taxis,Funding & Programmes - Executive Office,Agency Staff Member,SCLAIM_47772,11.60,Staff Expenses Claim
BIS,Skills Funding Agency,01/03/2017,Taxis,Funding & Programmes - Localism Policy Implementation,Agency Staff Member,SCLAIM_47771,13.60,Staff Expenses Claim
BIS,Skills Funding Agency,01/03/2017,Taxis,Funding & Programmes - Provider Management & Intervention South,Agency Staff Member,SCLAIM_47760,14.20,Staff Expenses Claim
BIS,Skills Funding Agency,01/03/2017,Taxis,Large Companies Unit,Agency Staff Member,SCLAIM_47768,8.00,Staff Expenses Claim
BIS,Skills Funding Agency,01/03/2017,Taxis,National Careers & Learner Services,Agency Staff Member,SCLAIM_47795,21.70,Staff Expenses Claim
BIS,Skills Funding Agency,01/03/2017,Taxis,Operations Finance - Executive Office,Agency Staff Member,SCLAIM_47757,31.00,Staff Expenses Claim
BIS,Skills Funding Agency,01/03/2017,Taxis,Operations Finance - Executive Office,Agency Staff Member,SCLAIM_47799,103.80,Staff Expenses Claim
BIS,Skills Funding Agency,01/03/2017,Taxis,Operations Finance - Executive Office,Agency Staff Member,SCLAIM_47800,8.00,Staff Expenses Claim
BIS,Skills Funding Agency,01/03/2017,Temporary Staff,Apprenticeships & Delivery Services - Executive Office,BROOK STREET UK LTD,SPINVB_34037,664.20,Purchase Invoice
BIS,Skills Funding Agency,01/03/2017,Temporary Staff,Finance Division - Provider Finance,SF RECRUITMENT LTD,SPINVB_34423,"2,196.00",Purchase Invoice
BIS,Skills Funding Agency,01/03/2017,Temporary Staff,Operations ICT - Information & Communication Technology - Technical,SMART SOURCING PLC,SPINVB_34481,"5,952.00",Purchase Invoice
BIS,Skills Funding Agency,02/03/2017,Archiving,Chief Executive Office - Executive Office,IRON MOUNTAIN UK LTD,IPINVELECT3_2234,"13,045.72",Purchase Invoice
BIS,Skills Funding Agency,02/03/2017,Funding Advances,None,STRATFORD UPON AVON COLLEGE,NQDV_814,"300,000.00",Programme Template
BIS,Skills Funding Agency,02/03/2017,Hosting,Operations ICT - Technical Design Authority,SPECIALIST COMPUTER CENTRES PLC,SPINVB_34467,"28,800.00",Purchase Invoice
BIS,Skills Funding Agency,02/03/2017,Hosting,Operations ICT - Technical Design Authority,SPECIALIST COMPUTER CENTRES PLC,SPINVB_34468,"1,723.02",Purchase Invoice
BIS,Skills Funding Agency,02/03/2017,Implementation,Operations ICT - Information & Communication Technology - Technical,PIREAN LIMITED,SPINVB_34409,"1,411.98",Purchase Invoice
BIS,Skills Funding Agency,02/03/2017,Implementation,Operations ICT - Information & Communication Technology - Technical,PIREAN LIMITED,SPINVB_34412,"1,813.42",Purchase Invoice
BIS,Skills Funding Agency,02/03/2017,Licences,Operations ICT - Information & Communication Technology - Technical,COMPAREX UK LTD,SPINVB_34482,"41,989.73",Purchase Invoice
BIS,Skills Funding Agency,02/03/2017,Managed IT Service,Apprenticeships & Delivery Services - Executive Office,LEIDOS INNOVATIONS UK LTD,SPINVB_34438,"31,752.00",Purchase Invoice
BIS,Skills Funding Agency,02/03/2017,Managed IT Service,Apprenticeships & Delivery Services - Executive Office,NCC GROUP SECURITY SERVICES LTD,SPCRNB_1237,-120.00,Purchase Credit Note
BIS,Skills Funding Agency,02/03/2017,Managed IT Service,Apprenticeships & Delivery Services - Executive Office,NCC GROUP SECURITY SERVICES LTD,SPINVB_34035,"1,920.00",Purchase Invoice
BIS,Skills Funding Agency,02/03/2017,Managed IT Service,Apprenticeships & Delivery Services - Executive Office,TEST-DIRECT LTD,SPINVB_34266,"8,664.00",Purchase Invoice
BIS,Skills Funding Agency,02/03/2017,Managed IT Service,Funding & Programmes - Executive Office,FLATWORLDWORKS LTD,SPINVB_34407,"14,336.81",Purchase Invoice
BIS,Skills Funding Agency,02/03/2017,Managed IT Service,Funding & Programmes - Executive Office,LA INTERNATIONAL,SPINVB_34477,"9,261.18",Purchase Invoice
BIS,Skills Funding Agency,02/03/2017,Managed IT Service,Funding & Programmes - Executive Office,LEIDOS INNOVATIONS UK LTD,SPINVB_34436,"15,750.00",Purchase Invoice
BIS,Skills Funding Agency,02/03/2017,"National Apprenticeship Service - Business, Innovation & Skills - Non-Participation",Main Funding,LIVERPOOL CITY REGION LOCAL ENTERPRISE PARTNERSHIP,SPINVB_34508,"5,000.00",Purchase Invoice
BIS,Skills Funding Agency,02/03/2017,Professional Services,Funding & Programmes - Executive Office,CAPGEMINI UK PLC,SPINVB_34472,"20,496.00",Purchase Invoice
BIS,Skills Funding Agency,02/03/2017,Professional Services,Operations ICT - Technical Design Authority,SPECIALIST COMPUTER CENTRES PLC,SPINVB_34503,866.26,Purchase Invoice
BIS,Skills Funding Agency,02/03/2017,Professional Services,Operations ICT - Technical Design Authority,SPECIALIST COMPUTER CENTRES PLC,SPINVB_34506,"1,716.00",Purchase Invoice
BIS,Skills Funding Agency,02/03/2017,Software Maintenance & Repair,Operations ICT - Mission IT / Business As Usual Major Releases,CAPGEMINI UK PLC,SPINVB_34470,"103,059.85",Purchase Invoice
BIS,Skills Funding Agency,02/03/2017,Support Services,Operations ICT - Information & Communication Technology - Technical,SPECIALIST COMPUTER CENTRES PLC,SPINVB_34504,"16,830.00",Purchase Invoice
BIS,Skills Funding Agency,02/03/2017,Support Services,Operations ICT - Information & Communication Technology - Technical,SPECIALIST COMPUTER CENTRES PLC,SPINVB_34505,"6,930.00",Purchase Invoice
BIS,Skills Funding Agency,02/03/2017,Temporary Staff,Apprenticeships & Delivery Services - Executive Office,BROOK STREET UK LTD,SPINVB_34479,531.36,Purchase Invoice
BIS,Skills Funding Agency,02/03/2017,Temporary Staff,Apprenticeships & Delivery Services - Executive Office,HAYS SPECIALIST RECRUITMENT LTD,IPINVELECT3_2235,722.65,Purchase Invoice
BIS,Skills Funding Agency,02/03/2017,Temporary Staff,Apprenticeships & Delivery Services - Executive Office,MICHAEL PAGE INTERNATIONAL RECRUITMENT LTD,SPINVB_34248,"4,199.58",Purchase Invoice
BIS,Skills Funding Agency,02/03/2017,Temporary Staff,Apprenticeships & Delivery Services - Executive Office,MICHAEL PAGE INTERNATIONAL RECRUITMENT LTD,SPINVB_34387,"3,450.00",Purchase Invoice
BIS,Skills Funding Agency,02/03/2017,Temporary Staff,Apprenticeships & Delivery Services - Executive Office,MICHAEL PAGE INTERNATIONAL RECRUITMENT LTD,SPINVB_34388,"4,199.58",Purchase Invoice
BIS,Skills Funding Agency,02/03/2017,Temporary Staff,Apprenticeships & Delivery Services - Executive Office,MICHAEL PAGE INTERNATIONAL RECRUITMENT LTD,SPINVB_34459,"4,199.58",Purchase Invoice
BIS,Skills Funding Agency,02/03/2017,Temporary Staff,Apprenticeships & Delivery Services - Executive Office,MICHAEL PAGE INTERNATIONAL RECRUITMENT LTD,SPINVB_34462,"3,450.00",Purchase Invoice
BIS,Skills Funding Agency,02/03/2017,Temporary Staff,Apprenticeships & Delivery Services - Executive Office,SF RECRUITMENT LTD,SPINVB_34425,701.56,Purchase Invoice
BIS,Skills Funding Agency,02/03/2017,Temporary Staff,Apprenticeships & Delivery Services - Executive Office,SMART SOURCING PLC,SPINVB_34151,"15,096.06",Purchase Invoice
BIS,Skills Funding Agency,02/03/2017,Temporary Staff,Apprenticeships & Delivery Services - Executive Office,SMART SOURCING PLC,SPINVB_34475,809.40,Purchase Invoice
BIS,Skills Funding Agency,02/03/2017,Temporary Staff,Apprenticeships & Delivery Services - Executive Office,SMART SOURCING PLC,SPINVB_34476,"10,737.14",Purchase Invoice
BIS,Skills Funding Agency,02/03/2017,Temporary Staff,Chief Executive Office - Executive Office,HAYS SPECIALIST RECRUITMENT LTD,IPINVELECT3_2235,"2,285.52",Purchase Invoice
BIS,Skills Funding Agency,02/03/2017,Temporary Staff,Data Science,HAYS SPECIALIST RECRUITMENT LTD,IPINVELECT3_2235,"15,510.00",Purchase Invoice
BIS,Skills Funding Agency,02/03/2017,Temporary Staff,Data Science,PERTEMPS RECRUITMENT PARTNERSHIP LTD,SPINVB_34416,810.00,Purchase Invoice
BIS,Skills Funding Agency,02/03/2017,Temporary Staff,Funding & Programmes - Executive Office,HAYS SPECIALIST RECRUITMENT LTD,IPINVELECT3_2235,"33,322.33",Purchase Invoice
BIS,Skills Funding Agency,02/03/2017,Temporary Staff,Funding & Programmes - Executive Office,KELLY SERVICES UK LTD,SPINVB_34478,995.46,Purchase Invoice
BIS,Skills Funding Agency,02/03/2017,Temporary Staff,Funding & Programmes - Executive Office,LA INTERNATIONAL,SPINVB_34448,"17,025.98",Purchase Invoice
BIS,Skills Funding Agency,02/03/2017,Temporary Staff,Funding & Programmes - Executive Office,LA INTERNATIONAL,SPINVB_34449,"2,664.00",Purchase Invoice
BIS,Skills Funding Agency,02/03/2017,Temporary Staff,Funding & Programmes - Executive Office,LA INTERNATIONAL,SPINVB_34450,"6,827.76",Purchase Invoice
BIS,Skills Funding Agency,02/03/2017,Temporary Staff,Funding & Programmes - Executive Office,MICHAEL PAGE INTERNATIONAL RECRUITMENT LTD,SPINVB_34463,"1,980.00",Purchase Invoice
BIS,Skills Funding Agency,02/03/2017,Temporary Staff,Funding & Programmes - Executive Office,SMART SOURCING PLC,SPINVB_34474,"2,835.00",Purchase Invoice
BIS,Skills Funding Agency,02/03/2017,Temporary Staff,Operations Finance - Executive Office,HAYS SPECIALIST RECRUITMENT LTD,IPINVELECT3_2235,"2,400.00",Purchase Invoice
BIS,Skills Funding Agency,02/03/2017,Temporary Staff,Operations ICT - Information & Communication Technology - Technical,HAYS SPECIALIST RECRUITMENT LTD,IPINVELECT3_2235,"4,260.00",Purchase Invoice
BIS,Skills Funding Agency,02/03/2017,Temporary Staff,Transaction Unit,GOODMAN MASSON RECRUITMENT SERVICES LTD,SPINVB_34441,"2,600.16",Purchase Invoice
BIS,Skills Funding Agency,02/03/2017,Temporary Staff,Transaction Unit,GOODMAN MASSON RECRUITMENT SERVICES LTD,SPINVB_34442,"4,800.00",Purchase Invoice
BIS,Skills Funding Agency,02/03/2017,Temporary Staff,Transaction Unit,PERTEMPS RECRUITMENT PARTNERSHIP LTD,SPINVB_34464,"1,080.00",Purchase Invoice
BIS,Skills Funding Agency,02/03/2017,Temporary Staff,Transformation & Corporate Strategy,HAYS SPECIALIST RECRUITMENT LTD,IPINVELECT3_2235,"8,361.00",Purchase Invoice
BIS,Skills Funding Agency,02/03/2017,Temporary Staff,Transformation & Corporate Strategy,PERTEMPS RECRUITMENT PARTNERSHIP LTD,SPINVB_34413,892.42,Purchase Invoice
BIS,Skills Funding Agency,02/03/2017,Young People's Helpline,Main Funding,HOUSE OF COMMONS,SPINVB_34530,"5,550.00",Purchase Invoice
BIS,Skills Funding Agency,03/03/2017,Hosting,Operations ICT - Technical Design Authority,FORDWAY SOLUTIONS LIMITED,SPINVB_34527,540.00,Purchase Invoice
BIS,Skills Funding Agency,03/03/2017,Implementation,Apprenticeships & Delivery Services - Executive Office,NCC GROUP SECURITY SERVICES LTD,SPCRNB_1234,-121.55,Purchase Credit Note
BIS,Skills Funding Agency,03/03/2017,Implementation,Apprenticeships & Delivery Services - Executive Office,NCC GROUP SECURITY SERVICES LTD,SPINVB_33691,"14,732.39",Purchase Invoice
BIS,Skills Funding Agency,03/03/2017,Managed IT Service,Apprenticeships & Delivery Services - Executive Office,ORANGE BUS LIMITED,SPINVB_34500,"12,540.00",Purchase Invoice
BIS,Skills Funding Agency,03/03/2017,"National Apprenticeship Service - Business, Innovation & Skills - Non-Participation",Main Funding,THAMES VALLEY BERKSHIRE LOCAL ENTERPRISE PARTNERSHIP LTD,SPINVB_34528,"5,000.00",Purchase Invoice
BIS,Skills Funding Agency,03/03/2017,Salary Advances,Data Science,Agency Staff Member,PAYCHAPSAUTO_586,"1,330.00",Payroll
BIS,Skills Funding Agency,03/03/2017,Support Services,Funding & Programmes - Executive Office,TRIBAL EDUCATION LTD,SPINVB_34465,"97,032.00",Purchase Invoice
BIS,Skills Funding Agency,03/03/2017,Temporary Staff,Apprenticeships & Delivery Services - Executive Office,SF RECRUITMENT LTD,SPINVB_34523,706.22,Purchase Invoice
BIS,Skills Funding Agency,03/03/2017,Temporary Staff,Apprenticeships & Delivery Services - Executive Office,SMART SOURCING PLC,SPINVB_34509,"6,785.32",Purchase Invoice
BIS,Skills Funding Agency,03/03/2017,Temporary Staff,Apprenticeships & Delivery Services - Executive Office,SMART SOURCING PLC,SPINVB_34510,"14,364.35",Purchase Invoice
BIS,Skills Funding Agency,03/03/2017,Temporary Staff,Apprenticeships & Delivery Services - Executive Office,SMART SOURCING PLC,SPINVB_34514,"7,156.56",Purchase Invoice
BIS,Skills Funding Agency,03/03/2017,Temporary Staff,Chief Executive Office - Executive Office,COLIN HEWARD,SPINVB_34558,"2,297.85",Purchase Invoice
BIS,Skills Funding Agency,03/03/2017,Temporary Staff,Data Science,METHODS PROFESSIONAL SERVICES LTD,SPINVB_34487,"1,836.00",Purchase Invoice
BIS,Skills Funding Agency,03/03/2017,Temporary Staff,Data Science,SPRING TECHNOLOGY STAFFING SERVICES LTD,SPINVB_34491,"3,000.00",Purchase Invoice
BIS,Skills Funding Agency,03/03/2017,Temporary Staff,Funding & Programmes - Executive Office,HARVEY NASH PLC,SPINVB_34507,"12,579.84",Purchase Invoice
BIS,Skills Funding Agency,03/03/2017,Temporary Staff,Funding & Programmes - Executive Office,SMART SOURCING PLC,SPINVB_34492,"6,145.74",Purchase Invoice
BIS,Skills Funding Agency,03/03/2017,Temporary Staff,Operations ICT - Information & Communication Technology - Technical,METHODS PROFESSIONAL SERVICES LTD,SPINVB_34532,"8,132.44",Purchase Invoice
BIS,Skills Funding Agency,03/03/2017,Young People's Helpline,Main Funding,ANNA MORRISON CONSULTANCY SERVICES LIMITED,SPINVB_34537,"25,000.00",Purchase Invoice
BIS,Skills Funding Agency,06/03/2017,Communications Team Expenditure,Chief Executive Office - Executive Office,GORKANA GROUP LTD,SPINVB_34559,"7,060.14",Purchase Invoice
BIS,Skills Funding Agency,06/03/2017,Managed IT Service,Operations ICT - Projects,CENTRE4 RESOURCES LIMITED,SPINVB_34548,"31,620.00",Purchase Invoice
BIS,Skills Funding Agency,06/03/2017,Support Services,Funding & Programmes - Executive Office,TRIBAL EDUCATION LTD,SPINVB_34529,"49,312.92",Purchase Invoice
BIS,Skills Funding Agency,06/03/2017,Temporary Staff,Apprenticeships & Delivery Services - Executive Office,SMART SOURCING PLC,SPINVB_34546,"11,097.77",Purchase Invoice
BIS,Skills Funding Agency,06/03/2017,Temporary Staff,Chief Executive Office - Executive Office,SF RECRUITMENT LTD,SPINVB_34424,"1,646.70",Purchase Invoice
BIS,Skills Funding Agency,06/03/2017,Temporary Staff,Chief Executive Office - Executive Office,SF RECRUITMENT LTD,SPINVB_34522,"1,646.70",Purchase Invoice
BIS,Skills Funding Agency,06/03/2017,Temporary Staff,Finance Division - Provider Finance,SF RECRUITMENT LTD,SPINVB_34525,"2,196.00",Purchase Invoice
BIS,Skills Funding Agency,06/03/2017,Temporary Staff,Funding & Programmes - Executive Office,HARVEY NASH PLC,SPINVB_34536,"10,483.20",Purchase Invoice
BIS,Skills Funding Agency,06/03/2017,Temporary Staff,Funding & Programmes - Executive Office,METHODS PROFESSIONAL SERVICES LTD,SPINVB_34533,"12,000.00",Purchase Invoice
BIS,Skills Funding Agency,06/03/2017,Temporary Staff,Funding & Programmes - Executive Office,SMART SOURCING PLC,SPINVB_34511,"2,830.68",Purchase Invoice
BIS,Skills Funding Agency,06/03/2017,Temporary Staff,Funding & Programmes - Executive Office,SMART SOURCING PLC,SPINVB_34515,"13,170.00",Purchase Invoice
BIS,Skills Funding Agency,06/03/2017,Temporary Staff,Operations Finance - Executive Office,SF RECRUITMENT LTD,SPINVB_34422,"1,647.00",Purchase Invoice
BIS,Skills Funding Agency,06/03/2017,Temporary Staff,Operations Finance - Executive Office,SF RECRUITMENT LTD,SPINVB_34524,"2,086.20",Purchase Invoice
BIS,Skills Funding Agency,06/03/2017,Temporary Staff,Operations ICT - Information & Communication Technology - Technical,SMART SOURCING PLC,SPINVB_34540,"11,685.60",Purchase Invoice
BIS,Skills Funding Agency,06/03/2017,Temporary Staff,Transformation & Corporate Strategy,PERTEMPS RECRUITMENT PARTNERSHIP LTD,SPINVB_34486,886.50,Purchase Invoice
BIS,Skills Funding Agency,06/03/2017,Wide Area Networks,Operations ICT - Technical Design Authority,LEVEL 3 COMMUNICATIONS UK LIMITED,SPINVB_34541,"3,707.18",Purchase Invoice
BIS,Skills Funding Agency,06/03/2017,Wide Area Networks,Operations ICT - Technical Design Authority,LEVEL 3 COMMUNICATIONS UK LIMITED,SPINVB_34542,"1,815.10",Purchase Invoice
BIS,Skills Funding Agency,06/03/2017,Wide Area Networks,Operations ICT - Technical Design Authority,LEVEL 3 COMMUNICATIONS UK LIMITED,SPINVB_34543,"1,821.95",Purchase Invoice
BIS,Skills Funding Agency,06/03/2017,Young People's Helpline,Main Funding,WHITESPACE EXHIBITIONS,SPINVB_34318,"2,746.80",Purchase Invoice
BIS,Skills Funding Agency,06/03/2017,Young People's Helpline,Main Funding,WHITESPACE EXHIBITIONS,SPINVB_34319,"3,000.00",Purchase Invoice
BIS,Skills Funding Agency,06/03/2017,Young People's Helpline,Main Funding,WHITESPACE EXHIBITIONS,SPINVB_34320,"3,643.20",Purchase Invoice
BIS,Skills Funding Agency,06/03/2017,Young People's Helpline,Main Funding,WHITESPACE EXHIBITIONS,SPINVB_34321,"9,547.20",Purchase Invoice
BIS,Skills Funding Agency,06/03/2017,Young People's Helpline,Main Funding,WHITESPACE EXHIBITIONS,SPINVB_34322,"2,276.40",Purchase Invoice
BIS,Skills Funding Agency,06/03/2017,Young People's Helpline,Main Funding,WHITESPACE EXHIBITIONS,SPINVB_34323,"2,276.40",Purchase Invoice
BIS,Skills Funding Agency,06/03/2017,Young People's Helpline,Main Funding,WHITESPACE EXHIBITIONS,SPINVB_34324,"3,349.20",Purchase Invoice
BIS,Skills Funding Agency,06/03/2017,Young People's Helpline,Main Funding,WHITESPACE EXHIBITIONS,SPINVB_34325,"6,969.60",Purchase Invoice
BIS,Skills Funding Agency,06/03/2017,Young People's Helpline,Main Funding,WHITESPACE EXHIBITIONS,SPINVB_34326,"3,764.40",Purchase Invoice
BIS,Skills Funding Agency,06/03/2017,Young People's Helpline,Main Funding,WHITESPACE EXHIBITIONS,SPINVB_34327,"2,473.20",Purchase Invoice
BIS,Skills Funding Agency,06/03/2017,Young People's Helpline,Main Funding,WHITESPACE EXHIBITIONS,SPINVB_34328,"2,034.00",Purchase Invoice
BIS,Skills Funding Agency,06/03/2017,Young People's Helpline,Main Funding,WHITESPACE EXHIBITIONS,SPINVB_34329,"2,456.40",Purchase Invoice
BIS,Skills Funding Agency,06/03/2017,Young People's Helpline,Main Funding,WHITESPACE EXHIBITIONS,SPINVB_34330,"2,706.00",Purchase Invoice
BIS,Skills Funding Agency,06/03/2017,Young People's Helpline,Main Funding,WHITESPACE EXHIBITIONS,SPINVB_34331,"2,780.40",Purchase Invoice
BIS,Skills Funding Agency,06/03/2017,Young People's Helpline,Main Funding,WHITESPACE EXHIBITIONS,SPINVB_34332,"2,384.40",Purchase Invoice
BIS,Skills Funding Agency,06/03/2017,Young People's Helpline,Main Funding,WHITESPACE EXHIBITIONS,SPINVB_34333,"3,262.80",Purchase Invoice
BIS,Skills Funding Agency,06/03/2017,Young People's Helpline,Main Funding,WHITESPACE EXHIBITIONS,SPINVB_34334,"2,420.40",Purchase Invoice
BIS,Skills Funding Agency,06/03/2017,Young People's Helpline,Main Funding,WHITESPACE EXHIBITIONS,SPINVB_34335,"3,680.40",Purchase Invoice
BIS,Skills Funding Agency,06/03/2017,Young People's Helpline,Main Funding,WHITESPACE EXHIBITIONS,SPINVB_34336,"5,938.80",Purchase Invoice
BIS,Skills Funding Agency,06/03/2017,Young People's Helpline,Main Funding,WHITESPACE EXHIBITIONS,SPINVB_34337,"8,209.20",Purchase Invoice
BIS,Skills Funding Agency,07/03/2017,Classroom Based Training Organisations - Non Centralised Contract Management,Main Funding,CRISIS UK,SPINVB_34062,"13,949.45",Purchase Invoice
BIS,Skills Funding Agency,07/03/2017,Hosting,Operations ICT - Technical Design Authority,BAE SYSTEMS APPLIED INTELLIGENCE LIMITED,SPINVB_34517,"12,456.00",Purchase Invoice
BIS,Skills Funding Agency,07/03/2017,Implementation,Funding & Programmes - Executive Office,CREDITSAFE BUSINESS SOLUTIONS LIMITED,SPINVB_34538,"1,200.00",Purchase Invoice
BIS,Skills Funding Agency,07/03/2017,Managed IT Service,Funding & Programmes - Executive Office,DEVONSHIRE APPOINTMENTS LTD,SPINVB_34445,"1,800.00",Purchase Invoice
BIS,Skills Funding Agency,07/03/2017,Managed IT Service,Funding & Programmes - Executive Office,DEVONSHIRE APPOINTMENTS LTD,SPINVB_34531,"1,440.00",Purchase Invoice
BIS,Skills Funding Agency,07/03/2017,Managed IT Service,Funding & Programmes - Executive Office,FLATWORLDWORKS LTD,SPINVB_34408,"15,120.00",Purchase Invoice
BIS,Skills Funding Agency,07/03/2017,Managed IT Service,Funding & Programmes - Executive Office,NCC GROUP SECURITY SERVICES LTD,SPINVB_33662,"31,074.98",Purchase Invoice
BIS,Skills Funding Agency,07/03/2017,Managed IT Service,Operations ICT - Information & Communication Technology - Technical,BAE SYSTEMS APPLIED INTELLIGENCE LIMITED,SPINVB_34518,"9,469.20",Purchase Invoice
BIS,Skills Funding Agency,07/03/2017,Managed IT Service,Operations ICT - Information & Communication Technology - Technical,BAE SYSTEMS APPLIED INTELLIGENCE LIMITED,SPINVB_34519,"13,032.00",Purchase Invoice
BIS,Skills Funding Agency,07/03/2017,Managed IT Service,Operations ICT - Information & Communication Technology - Technical,BAE SYSTEMS APPLIED INTELLIGENCE LIMITED,SPINVB_34520,"14,116.80",Purchase Invoice
BIS,Skills Funding Agency,07/03/2017,Managed IT Service,Operations ICT - Technical Design Authority,BAE SYSTEMS APPLIED INTELLIGENCE LIMITED,SPINVB_34200,"14,947.20",Purchase Invoice
BIS,Skills Funding Agency,07/03/2017,Managed IT Service,Operations ICT - Technical Design Authority,BAE SYSTEMS APPLIED INTELLIGENCE LIMITED,SPINVB_34521,"16,608.00",Purchase Invoice
BIS,Skills Funding Agency,07/03/2017,Software Maintenance & Repair,Operations ICT - Technical Design Authority,FORDWAY SOLUTIONS LIMITED,SPINVB_34526,"18,333.00",Purchase Invoice
BIS,Skills Funding Agency,07/03/2017,Temporary Staff,Operations ICT - Information & Communication Technology - Technical,SMART SOURCING PLC,SPINVB_34545,"13,777.20",Purchase Invoice
BIS,Skills Funding Agency,07/03/2017,Young People's Helpline,Main Funding,LATRA LTD,SPINVB_34598,"2,160.00",Purchase Invoice
BIS,Skills Funding Agency,07/03/2017,Young People's Helpline,Main Funding,LATRA LTD,SPINVB_34599,"2,160.00",Purchase Invoice
BIS,Skills Funding Agency,07/03/2017,Young People's Helpline,Main Funding,LATRA LTD,SPINVB_34600,"2,160.00",Purchase Invoice
BIS,Skills Funding Agency,07/03/2017,Young People's Helpline,Main Funding,LATRA LTD,SPINVB_34601,"2,160.00",Purchase Invoice
BIS,Skills Funding Agency,07/03/2017,Young People's Helpline,Main Funding,MANAGEMENT LEARNING RESOURCES LTD,SPINVB_34588,"5,378.40",Purchase Invoice
BIS,Skills Funding Agency,07/03/2017,Young People's Helpline,Main Funding,MANAGEMENT LEARNING RESOURCES LTD,SPINVB_34589,"3,660.00",Purchase Invoice
BIS,Skills Funding Agency,07/03/2017,Young People's Helpline,Main Funding,SPORTCEL MARKETING LTD,SPINVB_34587,"6,000.00",Purchase Invoice
BIS,Skills Funding Agency,08/03/2017,Diesel Car Mileage Passenger Supplement,Central Delivery Service - European Social Fund - Audit Compliance,Agency Staff Member,SCLAIM_47807,16.60,Staff Expenses Claim
BIS,Skills Funding Agency,08/03/2017,Diesel Car Mileage,Apprenticeships & Delivery Services - Executive Office,Agency Staff Member,SCLAIM_47818,212.40,Staff Expenses Claim
BIS,Skills Funding Agency,08/03/2017,Diesel Car Mileage,Apprenticeships & Delivery Services - Executive Office,Agency Staff Member,SCLAIM_47830,238.05,Staff Expenses Claim
BIS,Skills Funding Agency,08/03/2017,Diesel Car Mileage,Apprenticeships & Delivery Services - Executive Office,Agency Staff Member,SCLAIM_47849,74.70,Staff Expenses Claim
BIS,Skills Funding Agency,08/03/2017,Diesel Car Mileage,Central Delivery Service - European Social Fund - Audit Compliance,Agency Staff Member,SCLAIM_47807,523.10,Staff Expenses Claim
BIS,Skills Funding Agency,08/03/2017,Diesel Car Mileage,Central Delivery Service - European Social Fund - Audit Compliance,Agency Staff Member,SCLAIM_47816,80.10,Staff Expenses Claim
BIS,Skills Funding Agency,08/03/2017,Diesel Car Mileage,Central Delivery Service - European Social Fund - Audit Compliance,Agency Staff Member,SCLAIM_47833,267.30,Staff Expenses Claim
BIS,Skills Funding Agency,08/03/2017,Diesel Car Mileage,Central Delivery Service - Leeds,Agency Staff Member,SCLAIM_47821,8.10,Staff Expenses Claim
BIS,Skills Funding Agency,08/03/2017,Diesel Car Mileage,Central Delivery Service - Leeds,Agency Staff Member,SCLAIM_47854,283.50,Staff Expenses Claim
BIS,Skills Funding Agency,08/03/2017,Diesel Car Mileage,Funding & Programmes - Provider Management & Intervention North,Agency Staff Member,SCLAIM_47824,171.90,Staff Expenses Claim
BIS,Skills Funding Agency,08/03/2017,Diesel Car Mileage,Funding & Programmes - Provider Management & Intervention North,Agency Staff Member,SCLAIM_47825,173.25,Staff Expenses Claim
BIS,Skills Funding Agency,08/03/2017,Diesel Car Mileage,Funding & Programmes - Provider Management & Intervention North,Agency Staff Member,SCLAIM_47826,121.50,Staff Expenses Claim
BIS,Skills Funding Agency,08/03/2017,Diesel Car Mileage,Funding & Programmes - Provider Management & Intervention North,Agency Staff Member,SCLAIM_47827,247.50,Staff Expenses Claim
BIS,Skills Funding Agency,08/03/2017,Diesel Car Mileage,Funding & Programmes - Provider Management & Intervention North,Agency Staff Member,SCLAIM_47828,130.50,Staff Expenses Claim
BIS,Skills Funding Agency,08/03/2017,Diesel Car Mileage,Funding & Programmes - Provider Management & Intervention North,Agency Staff Member,SCLAIM_47838,251.10,Staff Expenses Claim
BIS,Skills Funding Agency,08/03/2017,Diesel Car Mileage,Intervention,Agency Staff Member,SCLAIM_47811,303.30,Staff Expenses Claim
BIS,Skills Funding Agency,08/03/2017,Diesel Car Mileage,Intervention,Agency Staff Member,SCLAIM_47835,113.40,Staff Expenses Claim
BIS,Skills Funding Agency,08/03/2017,Diesel Car Mileage,Large Companies Unit,Agency Staff Member,SCLAIM_47813,290.70,Staff Expenses Claim
BIS,Skills Funding Agency,08/03/2017,Diesel Car Mileage,National Careers & Learner Services,Agency Staff Member,SCLAIM_47808,40.50,Staff Expenses Claim
BIS,Skills Funding Agency,08/03/2017,Diesel Car Mileage,National Careers & Learner Services,Agency Staff Member,SCLAIM_47861,54.00,Staff Expenses Claim
BIS,Skills Funding Agency,08/03/2017,Diesel Car Mileage,National Careers & Learner Services,Agency Staff Member,SCLAIM_47862,37.80,Staff Expenses Claim
BIS,Skills Funding Agency,08/03/2017,Diesel Car Mileage,Operations ICT - Information & Communication Technology - Technical,Agency Staff Member,SCLAIM_47809,79.20,Staff Expenses Claim
BIS,Skills Funding Agency,08/03/2017,Managed IT Service,Funding & Programmes - Executive Office,VALTECH LIMITED,SPINVB_34593,"36,960.00",Purchase Invoice
BIS,Skills Funding Agency,08/03/2017,Managed IT Service,Operations ICT - Information & Communication Technology - Technical,BAE SYSTEMS APPLIED INTELLIGENCE LIMITED,SPINVB_34516,"8,304.00",Purchase Invoice
BIS,Skills Funding Agency,08/03/2017,Managed IT Service,Operations ICT - Projects,SOGETI UK LIMITED,SPINVB_34591,"8,640.00",Purchase Invoice
BIS,Skills Funding Agency,08/03/2017,Other Travel,Apprenticeships & Delivery Services - Executive Office,Agency Staff Member,SCLAIM_47805,166.00,Staff Expenses Claim
BIS,Skills Funding Agency,08/03/2017,Other Travel,Apprenticeships & Delivery Services - Executive Office,Agency Staff Member,SCLAIM_47806,60.00,Staff Expenses Claim
BIS,Skills Funding Agency,08/03/2017,Other Travel,Apprenticeships & Delivery Services - Executive Office,Agency Staff Member,SCLAIM_47812,2.50,Staff Expenses Claim
BIS,Skills Funding Agency,08/03/2017,Other Travel,Apprenticeships & Delivery Services - Executive Office,Agency Staff Member,SCLAIM_47830,53.10,Staff Expenses Claim
BIS,Skills Funding Agency,08/03/2017,Other Travel,Apprenticeships & Delivery Services - Executive Office,Agency Staff Member,SCLAIM_47831,7.80,Staff Expenses Claim
BIS,Skills Funding Agency,08/03/2017,Other Travel,Apprenticeships & Delivery Services - Executive Office,Agency Staff Member,SCLAIM_47842,27.90,Staff Expenses Claim
BIS,Skills Funding Agency,08/03/2017,Other Travel,Apprenticeships & Delivery Services - Executive Office,Agency Staff Member,SCLAIM_47843,13.00,Staff Expenses Claim
BIS,Skills Funding Agency,08/03/2017,Other Travel,Apprenticeships & Delivery Services - Executive Office,Agency Staff Member,SCLAIM_47844,11.10,Staff Expenses Claim
BIS,Skills Funding Agency,08/03/2017,Other Travel,Apprenticeships & Delivery Services - Executive Office,Agency Staff Member,SCLAIM_47845,2.10,Staff Expenses Claim
BIS,Skills Funding Agency,08/03/2017,Other Travel,Apprenticeships & Delivery Services - Executive Office,Agency Staff Member,SCLAIM_47849,36.20,Staff Expenses Claim
BIS,Skills Funding Agency,08/03/2017,Other Travel,Apprenticeships & Delivery Services - Executive Office,Agency Staff Member,SCLAIM_47853,14.40,Staff Expenses Claim
BIS,Skills Funding Agency,08/03/2017,Other Travel,Apprenticeships & Delivery Services - Marketing,Agency Staff Member,SCLAIM_47829,14.00,Staff Expenses Claim
BIS,Skills Funding Agency,08/03/2017,Other Travel,Central Delivery Service - Birmingham,Agency Staff Member,SCLAIM_47839,6.00,Staff Expenses Claim
BIS,Skills Funding Agency,08/03/2017,Other Travel,Central Delivery Service - European Social Fund - Audit Compliance,Agency Staff Member,SCLAIM_47810,20.00,Staff Expenses Claim
BIS,Skills Funding Agency,08/03/2017,Other Travel,Central Delivery Service - European Social Fund - Audit Compliance,Agency Staff Member,SCLAIM_47814,31.20,Staff Expenses Claim
BIS,Skills Funding Agency,08/03/2017,Other Travel,Central Delivery Service - European Social Fund - Audit Compliance,Agency Staff Member,SCLAIM_47816,17.60,Staff Expenses Claim
BIS,Skills Funding Agency,08/03/2017,Other Travel,Central Delivery Service - European Social Fund - Audit Compliance,Agency Staff Member,SCLAIM_47847,16.00,Staff Expenses Claim
BIS,Skills Funding Agency,08/03/2017,Other Travel,Central Delivery Service - Leeds,Agency Staff Member,SCLAIM_47821,15.00,Staff Expenses Claim
BIS,Skills Funding Agency,08/03/2017,Other Travel,Employer & Provider Services North East & Yorkshire,Agency Staff Member,SCLAIM_47836,46.40,Staff Expenses Claim
BIS,Skills Funding Agency,08/03/2017,Other Travel,Employer & Provider Services North East & Yorkshire,Agency Staff Member,SCLAIM_47846,22.50,Staff Expenses Claim
BIS,Skills Funding Agency,08/03/2017,Other Travel,Employer & Provider Services North East & Yorkshire,Agency Staff Member,SCLAIM_47848,11.00,Staff Expenses Claim
BIS,Skills Funding Agency,08/03/2017,Other Travel,Employer & Provider Services North West,Agency Staff Member,SCLAIM_47841,100.00,Staff Expenses Claim
BIS,Skills Funding Agency,08/03/2017,Other Travel,Funding & Programmes - Provider Management & Intervention North,Agency Staff Member,SCLAIM_47824,42.00,Staff Expenses Claim
BIS,Skills Funding Agency,08/03/2017,Other Travel,Funding & Programmes - Provider Management & Intervention North,Agency Staff Member,SCLAIM_47825,13.90,Staff Expenses Claim
BIS,Skills Funding Agency,08/03/2017,Other Travel,Funding & Programmes - Provider Management & Intervention North,Agency Staff Member,SCLAIM_47826,1.90,Staff Expenses Claim
BIS,Skills Funding Agency,08/03/2017,Other Travel,Funding & Programmes - Provider Management & Intervention North,Agency Staff Member,SCLAIM_47827,24.00,Staff Expenses Claim
BIS,Skills Funding Agency,08/03/2017,Other Travel,Funding & Programmes - Provider Management & Intervention North,Agency Staff Member,SCLAIM_47828,16.00,Staff Expenses Claim
BIS,Skills Funding Agency,08/03/2017,Other Travel,Funding & Programmes - Provider Management & Intervention North,Agency Staff Member,SCLAIM_47838,5.30,Staff Expenses Claim
BIS,Skills Funding Agency,08/03/2017,Other Travel,Intervention,Agency Staff Member,SCLAIM_47803,7.00,Staff Expenses Claim
BIS,Skills Funding Agency,08/03/2017,Other Travel,Intervention,Agency Staff Member,SCLAIM_47811,3.00,Staff Expenses Claim
BIS,Skills Funding Agency,08/03/2017,Other Travel,Intervention,Agency Staff Member,SCLAIM_47832,7.50,Staff Expenses Claim
BIS,Skills Funding Agency,08/03/2017,Other Travel,Large Companies Unit,Agency Staff Member,SCLAIM_47813,12.50,Staff Expenses Claim
BIS,Skills Funding Agency,08/03/2017,Other Travel,National Careers & Learner Services,Agency Staff Member,SCLAIM_47808,10.00,Staff Expenses Claim
BIS,Skills Funding Agency,08/03/2017,Other Travel,National Careers & Learner Services,Agency Staff Member,SCLAIM_47859,40.50,Staff Expenses Claim
BIS,Skills Funding Agency,08/03/2017,Other Travel,National Careers & Learner Services,Agency Staff Member,SCLAIM_47860,11.60,Staff Expenses Claim
BIS,Skills Funding Agency,08/03/2017,Other Travel,National Careers & Learner Services,Agency Staff Member,SCLAIM_47861,22.00,Staff Expenses Claim
BIS,Skills Funding Agency,08/03/2017,Other Travel,National Careers & Learner Services,Agency Staff Member,SCLAIM_47862,36.00,Staff Expenses Claim
BIS,Skills Funding Agency,08/03/2017,Other Travel,Operations Finance - Executive Office,Agency Staff Member,SCLAIM_47856,54.00,Staff Expenses Claim
BIS,Skills Funding Agency,08/03/2017,Petrol Car Mileage Passenger Supplement,Apprenticeships & Delivery Services - Executive Office,Agency Staff Member,SCLAIM_47840,1.55,Staff Expenses Claim
BIS,Skills Funding Agency,08/03/2017,Petrol Car Mileage,Apprenticeships & Delivery Services - Executive Office,Agency Staff Member,SCLAIM_47831,236.25,Staff Expenses Claim
BIS,Skills Funding Agency,08/03/2017,Petrol Car Mileage,Apprenticeships & Delivery Services - Executive Office,Agency Staff Member,SCLAIM_47840,224.55,Staff Expenses Claim
BIS,Skills Funding Agency,08/03/2017,Petrol Car Mileage,Apprenticeships & Delivery Services - Executive Office,Agency Staff Member,SCLAIM_47850,263.25,Staff Expenses Claim
BIS,Skills Funding Agency,08/03/2017,Petrol Car Mileage,Apprenticeships & Delivery Services - Marketing,Agency Staff Member,SCLAIM_47829,40.50,Staff Expenses Claim
BIS,Skills Funding Agency,08/03/2017,Petrol Car Mileage,Central Delivery Service - Birmingham,Agency Staff Member,SCLAIM_47839,67.50,Staff Expenses Claim
BIS,Skills Funding Agency,08/03/2017,Petrol Car Mileage,Central Delivery Service - European Social Fund - Audit Compliance,Agency Staff Member,SCLAIM_47814,301.50,Staff Expenses Claim
BIS,Skills Funding Agency,08/03/2017,Petrol Car Mileage,Central Delivery Service - European Social Fund - Audit Compliance,Agency Staff Member,SCLAIM_47834,50.40,Staff Expenses Claim
BIS,Skills Funding Agency,08/03/2017,Petrol Car Mileage,Central Delivery Service - European Social Fund - Audit Compliance,Agency Staff Member,SCLAIM_47847,203.40,Staff Expenses Claim
BIS,Skills Funding Agency,08/03/2017,Petrol Car Mileage,Employer & Provider Services North East & Yorkshire,Agency Staff Member,SCLAIM_47836,45.90,Staff Expenses Claim
BIS,Skills Funding Agency,08/03/2017,Petrol Car Mileage,Employer & Provider Services North East & Yorkshire,Agency Staff Member,SCLAIM_47846,664.00,Staff Expenses Claim
BIS,Skills Funding Agency,08/03/2017,Petrol Car Mileage,Employer & Provider Services North East & Yorkshire,Agency Staff Member,SCLAIM_47848,162.00,Staff Expenses Claim
BIS,Skills Funding Agency,08/03/2017,Petrol Car Mileage,Employer & Provider Services North West,Agency Staff Member,SCLAIM_47812,103.05,Staff Expenses Claim
BIS,Skills Funding Agency,08/03/2017,Petrol Car Mileage,Employer & Provider Services North West,Agency Staff Member,SCLAIM_47841,531.90,Staff Expenses Claim
BIS,Skills Funding Agency,08/03/2017,Petrol Car Mileage,Intervention,Agency Staff Member,SCLAIM_47803,243.90,Staff Expenses Claim
BIS,Skills Funding Agency,08/03/2017,Petrol Car Mileage,National Careers & Learner Services,Agency Staff Member,SCLAIM_47859,90.00,Staff Expenses Claim
BIS,Skills Funding Agency,08/03/2017,Petrol Car Mileage,National Careers & Learner Services,Agency Staff Member,SCLAIM_47860,39.15,Staff Expenses Claim
BIS,Skills Funding Agency,08/03/2017,Professional Subscriptions,Finance Division - Provider Finance,Agency Staff Member,SCLAIMPRO_983,38.50,Staff Expenses Claim
BIS,Skills Funding Agency,08/03/2017,Professional Subscriptions,Operations Finance - Executive Office,Agency Staff Member,SCLAIMPRO_984,231.00,Staff Expenses Claim
BIS,Skills Funding Agency,08/03/2017,Professional Subscriptions,Operations Finance - Executive Office,Agency Staff Member,SCLAIMPRO_985,231.00,Staff Expenses Claim
BIS,Skills Funding Agency,08/03/2017,Professional Subscriptions,Operations Finance - Executive Office,Agency Staff Member,SCLAIMPRO_986,231.00,Staff Expenses Claim
BIS,Skills Funding Agency,08/03/2017,Rail Warrants & Tickets,Apprenticeships & Delivery Services - Executive Office,Agency Staff Member,SCLAIM_47818,12.30,Staff Expenses Claim
BIS,Skills Funding Agency,08/03/2017,Rail Warrants & Tickets,Apprenticeships & Delivery Services - Executive Office,Agency Staff Member,SCLAIM_47820,7.40,Staff Expenses Claim
BIS,Skills Funding Agency,08/03/2017,Rail Warrants & Tickets,Apprenticeships & Delivery Services - Executive Office,Agency Staff Member,SCLAIM_47843,8.40,Staff Expenses Claim
BIS,Skills Funding Agency,08/03/2017,Rail Warrants & Tickets,Central Delivery Service - European Social Fund - Audit Compliance,Agency Staff Member,SCLAIM_47816,2.40,Staff Expenses Claim
BIS,Skills Funding Agency,08/03/2017,Rail Warrants & Tickets,Central Delivery Service - European Social Fund - Audit Compliance,Agency Staff Member,SCLAIM_47837,103.60,Staff Expenses Claim
BIS,Skills Funding Agency,08/03/2017,Rail Warrants & Tickets,Central Delivery Service - London,Agency Staff Member,SCLAIM_47855,10.60,Staff Expenses Claim
BIS,Skills Funding Agency,08/03/2017,Rail Warrants & Tickets,National Careers & Learner Services,Agency Staff Member,SCLAIM_47860,6.30,Staff Expenses Claim
BIS,Skills Funding Agency,08/03/2017,Self-Drive Car Hire,Apprenticeships & Delivery Services - Executive Office,Agency Staff Member,SCLAIM_47812,35.81,Staff Expenses Claim
BIS,Skills Funding Agency,08/03/2017,Self-Drive Car Hire,Apprenticeships & Delivery Services - Executive Office,Agency Staff Member,SCLAIM_47818,34.00,Staff Expenses Claim
BIS,Skills Funding Agency,08/03/2017,Self-Drive Car Hire,Apprenticeships & Delivery Services - Executive Office,Agency Staff Member,SCLAIM_47843,54.81,Staff Expenses Claim
BIS,Skills Funding Agency,08/03/2017,Self-Drive Car Hire,Apprenticeships & Delivery Services - Executive Office,Agency Staff Member,SCLAIM_47844,35.30,Staff Expenses Claim
BIS,Skills Funding Agency,08/03/2017,Self-Drive Car Hire,Apprenticeships & Delivery Services - Executive Office,Agency Staff Member,SCLAIM_47845,23.42,Staff Expenses Claim
BIS,Skills Funding Agency,08/03/2017,Self-Drive Car Hire,Central Delivery Service - European Social Fund - Audit Compliance,Agency Staff Member,SCLAIM_47815,28.62,Staff Expenses Claim
BIS,Skills Funding Agency,08/03/2017,Self-Drive Car Hire,Central Delivery Service - European Social Fund - Audit Compliance,Agency Staff Member,SCLAIM_47837,29.80,Staff Expenses Claim
BIS,Skills Funding Agency,08/03/2017,Self-Drive Car Hire,Central Delivery Service - Leeds,Agency Staff Member,SCLAIM_47821,82.55,Staff Expenses Claim
BIS,Skills Funding Agency,08/03/2017,Self-Drive Car Hire,Intervention,Agency Staff Member,SCLAIM_47832,389.69,Staff Expenses Claim
BIS,Skills Funding Agency,08/03/2017,Subsistence,Apprenticeships & Delivery Services - Executive Office,Agency Staff Member,SCLAIM_47804,7.95,Staff Expenses Claim
BIS,Skills Funding Agency,08/03/2017,Subsistence,Apprenticeships & Delivery Services - Executive Office,Agency Staff Member,SCLAIM_47812,3.60,Staff Expenses Claim
BIS,Skills Funding Agency,08/03/2017,Subsistence,Apprenticeships & Delivery Services - Executive Office,Agency Staff Member,SCLAIM_47817,62.90,Staff Expenses Claim
BIS,Skills Funding Agency,08/03/2017,Subsistence,Apprenticeships & Delivery Services - Executive Office,Agency Staff Member,SCLAIM_47818,79.50,Staff Expenses Claim
BIS,Skills Funding Agency,08/03/2017,Subsistence,Apprenticeships & Delivery Services - Executive Office,Agency Staff Member,SCLAIM_47823,3.80,Staff Expenses Claim
BIS,Skills Funding Agency,08/03/2017,Subsistence,Apprenticeships & Delivery Services - Executive Office,Agency Staff Member,SCLAIM_47830,41.10,Staff Expenses Claim
BIS,Skills Funding Agency,08/03/2017,Subsistence,Apprenticeships & Delivery Services - Executive Office,Agency Staff Member,SCLAIM_47831,34.35,Staff Expenses Claim
BIS,Skills Funding Agency,08/03/2017,Subsistence,Apprenticeships & Delivery Services - Executive Office,Agency Staff Member,SCLAIM_47840,32.04,Staff Expenses Claim
BIS,Skills Funding Agency,08/03/2017,Subsistence,Apprenticeships & Delivery Services - Executive Office,Agency Staff Member,SCLAIM_47842,79.15,Staff Expenses Claim
BIS,Skills Funding Agency,08/03/2017,Subsistence,Apprenticeships & Delivery Services - Executive Office,Agency Staff Member,SCLAIM_47843,58.19,Staff Expenses Claim
BIS,Skills Funding Agency,08/03/2017,Subsistence,Apprenticeships & Delivery Services - Executive Office,Agency Staff Member,SCLAIM_47844,42.50,Staff Expenses Claim
BIS,Skills Funding Agency,08/03/2017,Subsistence,Apprenticeships & Delivery Services - Executive Office,Agency Staff Member,SCLAIM_47845,68.12,Staff Expenses Claim
BIS,Skills Funding Agency,08/03/2017,Subsistence,Apprenticeships & Delivery Services - Executive Office,Agency Staff Member,SCLAIM_47849,11.74,Staff Expenses Claim
BIS,Skills Funding Agency,08/03/2017,Subsistence,Apprenticeships & Delivery Services - Executive Office,Agency Staff Member,SCLAIM_47853,34.37,Staff Expenses Claim
BIS,Skills Funding Agency,08/03/2017,Subsistence,Apprenticeships & Delivery Services - Marketing,Agency Staff Member,SCLAIM_47829,20.90,Staff Expenses Claim
BIS,Skills Funding Agency,08/03/2017,Subsistence,Apprenticeships & Delivery Services - Marketing,Agency Staff Member,SCLAIM_47857,9.30,Staff Expenses Claim
BIS,Skills Funding Agency,08/03/2017,Subsistence,Central Delivery Service - Birmingham,Agency Staff Member,SCLAIM_47839,16.35,Staff Expenses Claim
BIS,Skills Funding Agency,08/03/2017,Subsistence,Central Delivery Service - European Social Fund - Audit Compliance,Agency Staff Member,SCLAIM_47814,23.85,Staff Expenses Claim
BIS,Skills Funding Agency,08/03/2017,Subsistence,Central Delivery Service - European Social Fund - Audit Compliance,Agency Staff Member,SCLAIM_47816,17.28,Staff Expenses Claim
BIS,Skills Funding Agency,08/03/2017,Subsistence,Central Delivery Service - European Social Fund - Audit Compliance,Agency Staff Member,SCLAIM_47833,35.55,Staff Expenses Claim
BIS,Skills Funding Agency,08/03/2017,Subsistence,Central Delivery Service - European Social Fund - Audit Compliance,Agency Staff Member,SCLAIM_47834,7.90,Staff Expenses Claim
BIS,Skills Funding Agency,08/03/2017,Subsistence,Central Delivery Service - European Social Fund - Audit Compliance,Agency Staff Member,SCLAIM_47837,19.90,Staff Expenses Claim
BIS,Skills Funding Agency,08/03/2017,Subsistence,Central Delivery Service - European Social Fund - Audit Compliance,Agency Staff Member,SCLAIM_47847,80.65,Staff Expenses Claim
BIS,Skills Funding Agency,08/03/2017,Subsistence,Central Delivery Service - Leeds,Agency Staff Member,SCLAIM_47821,110.03,Staff Expenses Claim
BIS,Skills Funding Agency,08/03/2017,Subsistence,Employer & Provider Services North East & Yorkshire,Agency Staff Member,SCLAIM_47836,27.45,Staff Expenses Claim
BIS,Skills Funding Agency,08/03/2017,Subsistence,Employer & Provider Services North East & Yorkshire,Agency Staff Member,SCLAIM_47848,8.10,Staff Expenses Claim
BIS,Skills Funding Agency,08/03/2017,Subsistence,Employer & Provider Services North West,Agency Staff Member,SCLAIM_47841,1.40,Staff Expenses Claim
BIS,Skills Funding Agency,08/03/2017,Subsistence,Funding & Programmes - Provider Management & Intervention North,Agency Staff Member,SCLAIM_47824,34.00,Staff Expenses Claim
BIS,Skills Funding Agency,08/03/2017,Subsistence,Large Companies Unit,Agency Staff Member,SCLAIM_47813,68.11,Staff Expenses Claim
BIS,Skills Funding Agency,08/03/2017,Subsistence,National Careers & Learner Services,Agency Staff Member,SCLAIM_47808,28.22,Staff Expenses Claim
BIS,Skills Funding Agency,08/03/2017,Subsistence,National Careers & Learner Services,Agency Staff Member,SCLAIM_47859,91.29,Staff Expenses Claim
BIS,Skills Funding Agency,08/03/2017,Subsistence,National Careers & Learner Services,Agency Staff Member,SCLAIM_47860,47.87,Staff Expenses Claim
BIS,Skills Funding Agency,08/03/2017,Subsistence,National Careers & Learner Services,Agency Staff Member,SCLAIM_47861,7.60,Staff Expenses Claim
BIS,Skills Funding Agency,08/03/2017,Subsistence,National Careers & Learner Services,Agency Staff Member,SCLAIM_47862,6.90,Staff Expenses Claim
BIS,Skills Funding Agency,08/03/2017,Subsistence,Operations Finance - Executive Office,Agency Staff Member,SCLAIM_47863,4.65,Staff Expenses Claim
BIS,Skills Funding Agency,08/03/2017,Subsistence,Operations Finance - Procurement Services,Agency Staff Member,SCLAIM_47819,33.25,Staff Expenses Claim
BIS,Skills Funding Agency,08/03/2017,Sundry Items,Apprenticeships & Delivery Services - Executive Office,Agency Staff Member,SCLAIM_47820,22.22,Staff Expenses Claim
BIS,Skills Funding Agency,08/03/2017,Taxis,Apprenticeships & Delivery Services - Executive Office,Agency Staff Member,SCLAIM_47831,8.00,Staff Expenses Claim
BIS,Skills Funding Agency,08/03/2017,Taxis,Apprenticeships & Delivery Services - Executive Office,Agency Staff Member,SCLAIM_47842,40.40,Staff Expenses Claim
BIS,Skills Funding Agency,08/03/2017,Taxis,Apprenticeships & Delivery Services - Executive Office,Agency Staff Member,SCLAIM_47843,7.30,Staff Expenses Claim
BIS,Skills Funding Agency,08/03/2017,Taxis,Apprenticeships & Delivery Services - Executive Office,Agency Staff Member,SCLAIM_47844,43.40,Staff Expenses Claim
BIS,Skills Funding Agency,08/03/2017,Taxis,Apprenticeships & Delivery Services - Executive Office,Agency Staff Member,SCLAIM_47845,42.40,Staff Expenses Claim
BIS,Skills Funding Agency,08/03/2017,Taxis,Apprenticeships & Delivery Services - Executive Office,Agency Staff Member,SCLAIM_47853,3.00,Staff Expenses Claim
BIS,Skills Funding Agency,08/03/2017,Taxis,Apprenticeships & Delivery Services - Marketing,Agency Staff Member,SCLAIM_47857,53.40,Staff Expenses Claim
BIS,Skills Funding Agency,08/03/2017,Taxis,Central Delivery Service - European Social Fund - Audit Compliance,Agency Staff Member,SCLAIM_47834,16.80,Staff Expenses Claim
BIS,Skills Funding Agency,08/03/2017,Taxis,Central Delivery Service - European Social Fund - Audit Compliance,Agency Staff Member,SCLAIM_47847,20.00,Staff Expenses Claim
BIS,Skills Funding Agency,08/03/2017,Taxis,Employer & Provider Services North East & Yorkshire,Agency Staff Member,SCLAIM_47836,54.80,Staff Expenses Claim
BIS,Skills Funding Agency,08/03/2017,Taxis,Employer & Provider Services North East & Yorkshire,Agency Staff Member,SCLAIM_47848,12.40,Staff Expenses Claim
BIS,Skills Funding Agency,08/03/2017,Taxis,Intervention,Agency Staff Member,SCLAIM_47835,14.00,Staff Expenses Claim
BIS,Skills Funding Agency,08/03/2017,Taxis,National Careers & Learner Services,Agency Staff Member,SCLAIM_47860,20.20,Staff Expenses Claim
BIS,Skills Funding Agency,08/03/2017,Taxis,Operations Finance - Executive Office,Agency Staff Member,SCLAIM_47856,13.00,Staff Expenses Claim
BIS,Skills Funding Agency,08/03/2017,Taxis,Operations Finance - Executive Office,Agency Staff Member,SCLAIM_47863,30.00,Staff Expenses Claim
BIS,Skills Funding Agency,08/03/2017,Taxis,Operations Finance - Procurement Services,Agency Staff Member,SCLAIM_47819,32.60,Staff Expenses Claim
BIS,Skills Funding Agency,08/03/2017,Temporary Staff,Apprenticeships & Delivery Services - Executive Office,BROOK STREET UK LTD,SPINVB_34584,664.20,Purchase Invoice
BIS,Skills Funding Agency,08/03/2017,Temporary Staff,Apprenticeships & Delivery Services - Executive Office,METHODS PROFESSIONAL SERVICES LTD,SPINVB_34224,29.28,Purchase Invoice
BIS,Skills Funding Agency,08/03/2017,Temporary Staff,Apprenticeships & Delivery Services - Executive Office,METHODS PROFESSIONAL SERVICES LTD,SPINVB_34225,21.60,Purchase Invoice
BIS,Skills Funding Agency,08/03/2017,Temporary Staff,Funding & Programmes - Executive Office,SMART SOURCING PLC,SPINVB_34570,"11,682.05",Purchase Invoice
BIS,Skills Funding Agency,08/03/2017,Temporary Staff,Transaction Unit,GOODMAN MASSON RECRUITMENT SERVICES LTD,SPINVB_34602,"2,400.00",Purchase Invoice
BIS,Skills Funding Agency,08/03/2017,Young People's Helpline,Main Funding,BIG BANG EDUCATION CIC,SPINVB_34384,"12,000.00",Purchase Invoice
BIS,Skills Funding Agency,08/03/2017,Young People's Helpline,Main Funding,WILLIAMS LEA LIMITED,SPINVB_34555,"1,800.00",Purchase Invoice
BIS,Skills Funding Agency,09/03/2017,Implementation,Operations ICT - Projects,LEIDOS INNOVATIONS UK LTD,SPINVB_34432,"134,179.32",Purchase Invoice
BIS,Skills Funding Agency,09/03/2017,Information Technology Systems Development,Operations ICT - Technical Design Authority,SOFTWARE BOX LTD,SPINVB_34426,"1,300.51",Purchase Invoice
BIS,Skills Funding Agency,09/03/2017,Information Technology Systems Development,Operations ICT - Technical Design Authority,SOFTWARE BOX LTD,SPINVB_34489,509.74,Purchase Invoice
BIS,Skills Funding Agency,09/03/2017,Licences,Operations ICT - Business IT - Agency Services,SCARISTA LTD,SPINVB_34571,219.64,Purchase Invoice
BIS,Skills Funding Agency,09/03/2017,Licences,Operations ICT - Technical Design Authority,SOFTWARE BOX LTD,SPINVB_34488,131.44,Purchase Invoice
BIS,Skills Funding Agency,09/03/2017,Managed IT Service,Data Science,CENTRE4 RESOURCES LIMITED,SPINVB_34547,"55,080.00",Purchase Invoice
BIS,Skills Funding Agency,09/03/2017,Managed IT Service,Data Science,CENTRE4 RESOURCES LIMITED,SPINVB_34549,"10,800.00",Purchase Invoice
BIS,Skills Funding Agency,09/03/2017,Managed IT Service,Data Science,CENTRE4 RESOURCES LIMITED,SPINVB_34550,"10,800.00",Purchase Invoice
BIS,Skills Funding Agency,09/03/2017,Managed IT Service,Data Science,CENTRE4 RESOURCES LIMITED,SPINVB_34551,"11,640.00",Purchase Invoice
BIS,Skills Funding Agency,09/03/2017,Managed IT Service,Data Science,CENTRE4 RESOURCES LIMITED,SPINVB_34552,"10,260.00",Purchase Invoice
BIS,Skills Funding Agency,09/03/2017,Managed IT Service,Data Science,CENTRE4 RESOURCES LIMITED,SPINVB_34553,"9,120.00",Purchase Invoice
BIS,Skills Funding Agency,09/03/2017,Managed IT Service,Data Science,CENTRE4 RESOURCES LIMITED,SPINVB_34607,"11,340.00",Purchase Invoice
BIS,Skills Funding Agency,09/03/2017,Managed IT Service,Data Science,FDM GROUP LIMITED,SPINVB_34574,"7,661.40",Purchase Invoice
BIS,Skills Funding Agency,09/03/2017,Managed IT Service,Data Science,FDM GROUP LIMITED,SPINVB_34575,"15,540.00",Purchase Invoice
BIS,Skills Funding Agency,09/03/2017,Managed IT Service,Data Science,SOGETI UK LIMITED,SPINVB_34590,"6,300.00",Purchase Invoice
BIS,Skills Funding Agency,09/03/2017,Managed IT Service,Data Science,TRUEPENNY PEOPLE UK LTD,SPINVB_34560,"13,200.00",Purchase Invoice
BIS,Skills Funding Agency,09/03/2017,Managed IT Service,Data Science,TRUEPENNY PEOPLE UK LTD,SPINVB_34561,"9,000.00",Purchase Invoice
BIS,Skills Funding Agency,09/03/2017,Managed IT Service,Data Science,TRUEPENNY PEOPLE UK LTD,SPINVB_34562,"55,721.70",Purchase Invoice
BIS,Skills Funding Agency,09/03/2017,Managed IT Service,Operations ICT - Information & Communication Technology - Technical,LEIDOS INNOVATIONS UK LTD,SPINVB_34427,"3,678.89",Purchase Invoice
BIS,Skills Funding Agency,09/03/2017,Managed IT Service,Operations ICT - Information & Communication Technology - Technical,LEIDOS INNOVATIONS UK LTD,SPINVB_34428,"13,731.20",Purchase Invoice
BIS,Skills Funding Agency,09/03/2017,Managed IT Service,Operations ICT - Information & Communication Technology - Technical,LEIDOS INNOVATIONS UK LTD,SPINVB_34429,"11,414.82",Purchase Invoice
BIS,Skills Funding Agency,09/03/2017,Managed IT Service,Operations ICT - Information & Communication Technology - Technical,LEIDOS INNOVATIONS UK LTD,SPINVB_34430,"12,616.38",Purchase Invoice
BIS,Skills Funding Agency,09/03/2017,Managed IT Service,Operations ICT - Technical Design Authority,LEIDOS INNOVATIONS UK LTD,SPINVB_34431,"4,405.08",Purchase Invoice
BIS,Skills Funding Agency,09/03/2017,Managed IT Service,Operations ICT - Technical Design Authority,LEIDOS INNOVATIONS UK LTD,SPINVB_34444,"17,261.88",Purchase Invoice
BIS,Skills Funding Agency,09/03/2017,"National Apprenticeship Service - Business, Innovation & Skills - Non-Participation",Main Funding,BLACK COUNTRY CONSORTIUM LTD,SPINVB_34606,"5,000.00",Purchase Invoice
BIS,Skills Funding Agency,09/03/2017,"National Apprenticeship Service - Business, Innovation & Skills - Non-Participation",Main Funding,COAST TO CAPITAL,SPINVB_34603,"5,000.00",Purchase Invoice
BIS,Skills Funding Agency,09/03/2017,"National Apprenticeship Service - Business, Innovation & Skills - Non-Participation",Main Funding,GREATER CAMBRIDGE GREATER PETERBOROUGH ENTERPRISE PARTNERSHIP,SPINVB_34633,"5,000.00",Purchase Invoice
BIS,Skills Funding Agency,09/03/2017,"National Apprenticeship Service - Business, Innovation & Skills - Non-Participation",Main Funding,KINGSTON UPON HULL CITY COUNCIL,SPINVB_34631,"5,000.00",Purchase Invoice
BIS,Skills Funding Agency,09/03/2017,"National Apprenticeship Service - Business, Innovation & Skills - Non-Participation",Main Funding,TEES VALLEY COMBINED AUTHORITY,SPINVB_34494,"5,000.00",Purchase Invoice
BIS,Skills Funding Agency,09/03/2017,Next Step Development,Main Funding,MARKET & OPINION RESEARCH INTERNATIONAL LTD,SPINVB_34579,"131,767.20",Purchase Invoice
BIS,Skills Funding Agency,09/03/2017,Seconded Staff,Operations Finance - Executive Office,KPMG LLP,SPINVB_34630,"13,680.00",Purchase Invoice
BIS,Skills Funding Agency,09/03/2017,Support Services,Operations ICT - Technical Design Authority,BAE SYSTEMS APPLIED INTELLIGENCE LIMITED,SPINVB_34484,"3,409.80",Purchase Invoice
BIS,Skills Funding Agency,09/03/2017,Temporary Staff,Apprenticeships & Delivery Services - Executive Office,CAPITA BUSINESS SERVICES LTD,IPINVELECT3_2236,"4,045.72",Purchase Invoice
BIS,Skills Funding Agency,09/03/2017,Temporary Staff,Data Science,CAPITA BUSINESS SERVICES LTD,IPINVELECT3_2236,"5,897.58",Purchase Invoice
BIS,Skills Funding Agency,09/03/2017,Temporary Staff,Data Science,METHODS PROFESSIONAL SERVICES LTD,SPINVB_34534,"12,000.00",Purchase Invoice
BIS,Skills Funding Agency,09/03/2017,Temporary Staff,Data Science,METHODS PROFESSIONAL SERVICES LTD,SPINVB_34535,"12,240.00",Purchase Invoice
BIS,Skills Funding Agency,09/03/2017,Temporary Staff,Data Science,SCROLL LLP,SPINVB_34544,"10,800.00",Purchase Invoice
BIS,Skills Funding Agency,09/03/2017,Temporary Staff,Data Science,SMART SOURCING PLC,SPINVB_34513,"11,673.17",Purchase Invoice
BIS,Skills Funding Agency,09/03/2017,Temporary Staff,Data Science,SMART SOURCING PLC,SPINVB_34539,"7,558.02",Purchase Invoice
BIS,Skills Funding Agency,09/03/2017,Temporary Staff,Data Science,SMART SOURCING PLC,SPINVB_34578,947.38,Purchase Invoice
BIS,Skills Funding Agency,09/03/2017,Temporary Staff,Funding & Programmes - Executive Office,CAPITA BUSINESS SERVICES LTD,IPINVELECT3_2236,"21,075.60",Purchase Invoice
BIS,Skills Funding Agency,09/03/2017,Temporary Staff,Funding & Programmes - Executive Office,SMART SOURCING PLC,SPINVB_34563,"4,089.96",Purchase Invoice
BIS,Skills Funding Agency,09/03/2017,Temporary Staff,Operations ICT - Information & Communication Technology - Technical,CADENCE PARTNERSHIP LLP,SPINVB_34573,"20,790.00",Purchase Invoice
BIS,Skills Funding Agency,09/03/2017,Temporary Staff,Operations ICT - Information & Communication Technology - Technical,CAPITA BUSINESS SERVICES LTD,IPINVELECT3_2236,"34,929.12",Purchase Invoice
BIS,Skills Funding Agency,09/03/2017,Temporary Staff,Operations ICT - Information & Communication Technology - Technical,SMART SOURCING PLC,SPINVB_34146,"14,466.06",Purchase Invoice
BIS,Skills Funding Agency,10/03/2017,16-18 Apprenticeship Grant for Employers - Centralised Contract Management,Main Funding,5 E LTD,AGEC_3812,"-1,500.00",Programme System File
BIS,Skills Funding Agency,10/03/2017,16-18 Apprenticeship Grant for Employers - Centralised Contract Management,Main Funding,5 E LTD,AGER_12840,1500.00,Programme System File
BIS,Skills Funding Agency,10/03/2017,16-18 Apprenticeship Grant for Employers - Centralised Contract Management,Main Funding,ABINGDON & WITNEY COLLEGE,AGEC_3893,"-22,500.00",Programme System File
BIS,Skills Funding Agency,10/03/2017,16-18 Apprenticeship Grant for Employers - Centralised Contract Management,Main Funding,ABINGDON & WITNEY COLLEGE,AGER_13003,22500.00,Programme System File
BIS,Skills Funding Agency,10/03/2017,16-18 Apprenticeship Grant for Employers - Centralised Contract Management,Main Funding,ACCRINGTON & ROSSENDALE COLLEGE,AGEC_3977,"-22,500.00",Programme System File
BIS,Skills Funding Agency,10/03/2017,16-18 Apprenticeship Grant for Employers - Centralised Contract Management,Main Funding,ACCRINGTON & ROSSENDALE COLLEGE,AGER_13256,"22,500.00",Programme System File
BIS,Skills Funding Agency,10/03/2017,16-18 Apprenticeship Grant for Employers - Centralised Contract Management,Main Funding,APPRENTICE FUNDING ASSISTANT LTD,AGER_13131,"-1,500.00",Programme System File
BIS,Skills Funding Agency,10/03/2017,16-18 Apprenticeship Grant for Employers - Centralised Contract Management,Main Funding,BEDFORD COLLEGE,AGEC_3882,-58500.00,Programme System File
BIS,Skills Funding Agency,10/03/2017,16-18 Apprenticeship Grant for Employers - Centralised Contract Management,Main Funding,BEDFORD COLLEGE,AGEC_4244,"-30,000.00",Programme System File
BIS,Skills Funding Agency,10/03/2017,16-18 Apprenticeship Grant for Employers - Centralised Contract Management,Main Funding,BEDFORD COLLEGE,AGER_12905,58500.00,Programme System File
BIS,Skills Funding Agency,10/03/2017,16-18 Apprenticeship Grant for Employers - Centralised Contract Management,Main Funding,BEDFORD COLLEGE,AGER_13748,30000.00,Programme System File
BIS,Skills Funding Agency,10/03/2017,16-18 Apprenticeship Grant for Employers - Centralised Contract Management,Main Funding,BISHOP AUCKLAND COLLEGE,AGEC_3517,-19500.00,Programme System File
BIS,Skills Funding Agency,10/03/2017,16-18 Apprenticeship Grant for Employers - Centralised Contract Management,Main Funding,BISHOP AUCKLAND COLLEGE,AGER_11917,36000.00,Programme System File
BIS,Skills Funding Agency,10/03/2017,16-18 Apprenticeship Grant for Employers - Centralised Contract Management,Main Funding,BISHOP AUCKLAND COLLEGE,AGER_13012,25500.00,Programme System File
BIS,Skills Funding Agency,10/03/2017,16-18 Apprenticeship Grant for Employers - Centralised Contract Management,Main Funding,CENTRAL BEDFORDSHIRE COLLEGE,AGEC_4245,-1500.00,Programme System File
BIS,Skills Funding Agency,10/03/2017,16-18 Apprenticeship Grant for Employers - Centralised Contract Management,Main Funding,CENTRAL BEDFORDSHIRE COLLEGE,AGER_13743,"1,500.00",Programme System File
BIS,Skills Funding Agency,10/03/2017,16-18 Apprenticeship Grant for Employers - Centralised Contract Management,Main Funding,CENTRAL BEDFORDSHIRE COUNCIL,AGEC_3972,-6000.00,Programme System File
BIS,Skills Funding Agency,10/03/2017,16-18 Apprenticeship Grant for Employers - Centralised Contract Management,Main Funding,CENTRAL BEDFORDSHIRE COUNCIL,AGER_13160,"6,000.00",Programme System File
BIS,Skills Funding Agency,10/03/2017,16-18 Apprenticeship Grant for Employers - Centralised Contract Management,Main Funding,CHAPMAN BENNETT ASSOCIATES LIMITED,AGEC_3958,"-1,500.00",Programme System File
BIS,Skills Funding Agency,10/03/2017,16-18 Apprenticeship Grant for Employers - Centralised Contract Management,Main Funding,CHAPMAN BENNETT ASSOCIATES LIMITED,AGER_13119,"1,500.00",Programme System File
BIS,Skills Funding Agency,10/03/2017,16-18 Apprenticeship Grant for Employers - Centralised Contract Management,Main Funding,CHEADLE & MARPLE SIXTH FORM COLLEGE,AGEC_4226,"-1,500.00",Programme System File
BIS,Skills Funding Agency,10/03/2017,16-18 Apprenticeship Grant for Employers - Centralised Contract Management,Main Funding,CHEADLE & MARPLE SIXTH FORM COLLEGE,AGER_13725,"1,500.00",Programme System File
BIS,Skills Funding Agency,10/03/2017,16-18 Apprenticeship Grant for Employers - Centralised Contract Management,Main Funding,CHEYNES MANAGEMENT LTD,AGEC_3944,-3000.00,Programme System File
BIS,Skills Funding Agency,10/03/2017,16-18 Apprenticeship Grant for Employers - Centralised Contract Management,Main Funding,CHEYNES MANAGEMENT LTD,AGEC_4129,"-4,500.00",Programme System File
BIS,Skills Funding Agency,10/03/2017,16-18 Apprenticeship Grant for Employers - Centralised Contract Management,Main Funding,CHEYNES MANAGEMENT LTD,AGER_13066,3000.00,Programme System File
BIS,Skills Funding Agency,10/03/2017,16-18 Apprenticeship Grant for Employers - Centralised Contract Management,Main Funding,CHEYNES MANAGEMENT LTD,AGER_13589,"4,500.00",Programme System File
BIS,Skills Funding Agency,10/03/2017,16-18 Apprenticeship Grant for Employers - Centralised Contract Management,Main Funding,CLEVELAND YOUTH ASSOCIATION,AGEC_3905,"-3,000.00",Programme System File
BIS,Skills Funding Agency,10/03/2017,16-18 Apprenticeship Grant for Employers - Centralised Contract Management,Main Funding,CLEVELAND YOUTH ASSOCIATION,AGER_12960,3000.00,Programme System File
BIS,Skills Funding Agency,10/03/2017,16-18 Apprenticeship Grant for Employers - Centralised Contract Management,Main Funding,COMMUNITY TRAINING SERVICES LTD,AGEC_4064,-1500.00,Programme System File
BIS,Skills Funding Agency,10/03/2017,16-18 Apprenticeship Grant for Employers - Centralised Contract Management,Main Funding,COMMUNITY TRAINING SERVICES LTD,AGER_13479,"1,500.00",Programme System File
BIS,Skills Funding Agency,10/03/2017,16-18 Apprenticeship Grant for Employers - Centralised Contract Management,Main Funding,DIMENSIONS TRAINING SOLUTIONS LTD,AGEC_3829,"-1,500.00",Programme System File
BIS,Skills Funding Agency,10/03/2017,16-18 Apprenticeship Grant for Employers - Centralised Contract Management,Main Funding,DIMENSIONS TRAINING SOLUTIONS LTD,AGER_12777,"1,500.00",Programme System File
BIS,Skills Funding Agency,10/03/2017,16-18 Apprenticeship Grant for Employers - Centralised Contract Management,Main Funding,EAST KENT COLLEGE,AGEC_3970,"-49,500.00",Programme System File
BIS,Skills Funding Agency,10/03/2017,16-18 Apprenticeship Grant for Employers - Centralised Contract Management,Main Funding,EAST KENT COLLEGE,AGER_13158,"49,500.00",Programme System File
BIS,Skills Funding Agency,10/03/2017,16-18 Apprenticeship Grant for Employers - Centralised Contract Management,Main Funding,EAST RIDING OF YORKSHIRE COUNCIL,AGEC_3946,"-6,000.00",Programme System File
BIS,Skills Funding Agency,10/03/2017,16-18 Apprenticeship Grant for Employers - Centralised Contract Management,Main Funding,EAST RIDING OF YORKSHIRE COUNCIL,AGER_13078,"6,000.00",Programme System File
BIS,Skills Funding Agency,10/03/2017,16-18 Apprenticeship Grant for Employers - Centralised Contract Management,Main Funding,EASTON & OTLEY COLLEGE,AGER_12048,"7,500.00",Programme System File
BIS,Skills Funding Agency,10/03/2017,16-18 Apprenticeship Grant for Employers - Centralised Contract Management,Main Funding,EASTON & OTLEY COLLEGE,AGER_13151,"4,500.00",Programme System File
BIS,Skills Funding Agency,10/03/2017,16-18 Apprenticeship Grant for Employers - Centralised Contract Management,Main Funding,EDEN TRAINING SOLUTIONS LTD,AGEC_3959,-4500.00,Programme System File
BIS,Skills Funding Agency,10/03/2017,16-18 Apprenticeship Grant for Employers - Centralised Contract Management,Main Funding,EDEN TRAINING SOLUTIONS LTD,AGER_13125,"4,500.00",Programme System File
BIS,Skills Funding Agency,10/03/2017,16-18 Apprenticeship Grant for Employers - Centralised Contract Management,Main Funding,GATESHEAD COUNCIL,AGEC_3843,"-79,500.00",Programme System File
BIS,Skills Funding Agency,10/03/2017,16-18 Apprenticeship Grant for Employers - Centralised Contract Management,Main Funding,GATESHEAD COUNCIL,AGEC_4248,-1500.00,Programme System File
BIS,Skills Funding Agency,10/03/2017,16-18 Apprenticeship Grant for Employers - Centralised Contract Management,Main Funding,GATESHEAD COUNCIL,AGER_12801,79500.00,Programme System File
BIS,Skills Funding Agency,10/03/2017,16-18 Apprenticeship Grant for Employers - Centralised Contract Management,Main Funding,GATESHEAD COUNCIL,AGER_13747,"1,500.00",Programme System File
BIS,Skills Funding Agency,10/03/2017,16-18 Apprenticeship Grant for Employers - Centralised Contract Management,Main Funding,GREAT YARMOUTH COLLEGE,AGEC_3841,-6000.00,Programme System File
BIS,Skills Funding Agency,10/03/2017,16-18 Apprenticeship Grant for Employers - Centralised Contract Management,Main Funding,GREAT YARMOUTH COLLEGE,AGER_12799,"6,000.00",Programme System File
BIS,Skills Funding Agency,10/03/2017,16-18 Apprenticeship Grant for Employers - Centralised Contract Management,Main Funding,HEATHERCROFT TRAINING SERVICES LTD,AGEC_3849,"-3,000.00",Programme System File
BIS,Skills Funding Agency,10/03/2017,16-18 Apprenticeship Grant for Employers - Centralised Contract Management,Main Funding,HEATHERCROFT TRAINING SERVICES LTD,AGER_12811,"3,000.00",Programme System File
BIS,Skills Funding Agency,10/03/2017,16-18 Apprenticeship Grant for Employers - Centralised Contract Management,Main Funding,HEREFORDSHIRE & LUDLOW COLLEGE,AGEC_3852,"-42,000.00",Programme System File
BIS,Skills Funding Agency,10/03/2017,16-18 Apprenticeship Grant for Employers - Centralised Contract Management,Main Funding,HEREFORDSHIRE & LUDLOW COLLEGE,AGER_12815,42000.00,Programme System File
BIS,Skills Funding Agency,10/03/2017,16-18 Apprenticeship Grant for Employers - Centralised Contract Management,Main Funding,HUDSON & HUGHES TRAINING LTD,AGEC_4147,-1500.00,Programme System File
BIS,Skills Funding Agency,10/03/2017,16-18 Apprenticeship Grant for Employers - Centralised Contract Management,Main Funding,HUDSON & HUGHES TRAINING LTD,AGER_13611,1500.00,Programme System File
BIS,Skills Funding Agency,10/03/2017,16-18 Apprenticeship Grant for Employers - Centralised Contract Management,Main Funding,HUGH BAIRD COLLEGE,AGEC_3855,"-1,500.00",Programme System File
BIS,Skills Funding Agency,10/03/2017,16-18 Apprenticeship Grant for Employers - Centralised Contract Management,Main Funding,HUGH BAIRD COLLEGE,AGER_12823,"1,500.00",Programme System File
BIS,Skills Funding Agency,10/03/2017,16-18 Apprenticeship Grant for Employers - Centralised Contract Management,Main Funding,JOBWISE TRAINING LTD,AGEC_3862,"-9,000.00",Programme System File
BIS,Skills Funding Agency,10/03/2017,16-18 Apprenticeship Grant for Employers - Centralised Contract Management,Main Funding,JOBWISE TRAINING LTD,AGER_12845,"9,000.00",Programme System File
BIS,Skills Funding Agency,10/03/2017,16-18 Apprenticeship Grant for Employers - Centralised Contract Management,Main Funding,KENSINGTON & CHELSEA COLLEGE,AGEC_3860,"-3,000.00",Programme System File
BIS,Skills Funding Agency,10/03/2017,16-18 Apprenticeship Grant for Employers - Centralised Contract Management,Main Funding,KENSINGTON & CHELSEA COLLEGE,AGER_12839,"3,000.00",Programme System File
BIS,Skills Funding Agency,10/03/2017,16-18 Apprenticeship Grant for Employers - Centralised Contract Management,Main Funding,LESOCO,AGER_12867,3000.00,Programme System File
BIS,Skills Funding Agency,10/03/2017,16-18 Apprenticeship Grant for Employers - Centralised Contract Management,Main Funding,LIVERPOOL CHAMBER TRAINING LTD,AGEC_3961,-4500.00,Programme System File
BIS,Skills Funding Agency,10/03/2017,16-18 Apprenticeship Grant for Employers - Centralised Contract Management,Main Funding,LIVERPOOL CHAMBER TRAINING LTD,AGER_13127,"4,500.00",Programme System File
BIS,Skills Funding Agency,10/03/2017,16-18 Apprenticeship Grant for Employers - Centralised Contract Management,Main Funding,LONDON BOROUGH OF WALTHAM FOREST,AGEC_3932,"-1,500.00",Programme System File
BIS,Skills Funding Agency,10/03/2017,16-18 Apprenticeship Grant for Employers - Centralised Contract Management,Main Funding,LONDON BOROUGH OF WALTHAM FOREST,AGER_13040,"1,500.00",Programme System File
BIS,Skills Funding Agency,10/03/2017,16-18 Apprenticeship Grant for Employers - Centralised Contract Management,Main Funding,LONDON SKILLS & DEVELOPMENT NETWORK LIMITED,AGEC_3952,"-6,000.00",Programme System File
BIS,Skills Funding Agency,10/03/2017,16-18 Apprenticeship Grant for Employers - Centralised Contract Management,Main Funding,LONDON SKILLS & DEVELOPMENT NETWORK LIMITED,AGER_13106,"6,000.00",Programme System File
BIS,Skills Funding Agency,10/03/2017,16-18 Apprenticeship Grant for Employers - Centralised Contract Management,Main Funding,LOWESTOFT COLLEGE,AGEC_3872,-6000.00,Programme System File
BIS,Skills Funding Agency,10/03/2017,16-18 Apprenticeship Grant for Employers - Centralised Contract Management,Main Funding,LOWESTOFT COLLEGE,AGER_12872,"6,000.00",Programme System File
BIS,Skills Funding Agency,10/03/2017,16-18 Apprenticeship Grant for Employers - Centralised Contract Management,Main Funding,MEADOWHALL TRAINING LIMITED,AGEC_3947,"-3,000.00",Programme System File
BIS,Skills Funding Agency,10/03/2017,16-18 Apprenticeship Grant for Employers - Centralised Contract Management,Main Funding,MEADOWHALL TRAINING LIMITED,AGER_13082,"3,000.00",Programme System File
BIS,Skills Funding Agency,10/03/2017,16-18 Apprenticeship Grant for Employers - Centralised Contract Management,Main Funding,METSKILL LTD,AGEC_3874,"-4,500.00",Programme System File
BIS,Skills Funding Agency,10/03/2017,16-18 Apprenticeship Grant for Employers - Centralised Contract Management,Main Funding,METSKILL LTD,AGER_12881,4500.00,Programme System File
BIS,Skills Funding Agency,10/03/2017,16-18 Apprenticeship Grant for Employers - Centralised Contract Management,Main Funding,MICHAELJOHN TRAINING,AGEC_4131,"-1,500.00",Programme System File
BIS,Skills Funding Agency,10/03/2017,16-18 Apprenticeship Grant for Employers - Centralised Contract Management,Main Funding,MICHAELJOHN TRAINING,AGER_13591,"1,500.00",Programme System File
BIS,Skills Funding Agency,10/03/2017,16-18 Apprenticeship Grant for Employers - Centralised Contract Management,Main Funding,MID CHESHIRE COLLEGE,AGEC_3488,-1500.00,Programme System File
BIS,Skills Funding Agency,10/03/2017,16-18 Apprenticeship Grant for Employers - Centralised Contract Management,Main Funding,MID CHESHIRE COLLEGE,AGER_11784,18000.00,Programme System File
BIS,Skills Funding Agency,10/03/2017,16-18 Apprenticeship Grant for Employers - Centralised Contract Management,Main Funding,MID CHESHIRE COLLEGE,AGER_12885,6000.00,Programme System File
BIS,Skills Funding Agency,10/03/2017,16-18 Apprenticeship Grant for Employers - Centralised Contract Management,Main Funding,MIDDLESBROUGH COLLEGE,AGEC_3873,-18000.00,Programme System File
BIS,Skills Funding Agency,10/03/2017,16-18 Apprenticeship Grant for Employers - Centralised Contract Management,Main Funding,MIDDLESBROUGH COLLEGE,AGEC_4082,"-1,500.00",Programme System File
BIS,Skills Funding Agency,10/03/2017,16-18 Apprenticeship Grant for Employers - Centralised Contract Management,Main Funding,MIDDLESBROUGH COLLEGE,AGER_12876,"18,000.00",Programme System File
BIS,Skills Funding Agency,10/03/2017,16-18 Apprenticeship Grant for Employers - Centralised Contract Management,Main Funding,MIDDLESBROUGH COLLEGE,AGER_13520,1500.00,Programme System File
BIS,Skills Funding Agency,10/03/2017,16-18 Apprenticeship Grant for Employers - Centralised Contract Management,Main Funding,NEW COLLEGE SWINDON,AGEC_3883,-13500.00,Programme System File
BIS,Skills Funding Agency,10/03/2017,16-18 Apprenticeship Grant for Employers - Centralised Contract Management,Main Funding,NEW COLLEGE SWINDON,AGER_12898,"13,500.00",Programme System File
BIS,Skills Funding Agency,10/03/2017,16-18 Apprenticeship Grant for Employers - Centralised Contract Management,Main Funding,NEWCASTLE COLLEGE,AGEC_4148,"-15,000.00",Programme System File
BIS,Skills Funding Agency,10/03/2017,16-18 Apprenticeship Grant for Employers - Centralised Contract Management,Main Funding,NEWCASTLE COLLEGE,AGEC_4149,"-48,000.00",Programme System File
BIS,Skills Funding Agency,10/03/2017,16-18 Apprenticeship Grant for Employers - Centralised Contract Management,Main Funding,NEWCASTLE COLLEGE,AGEC_4150,-3000.00,Programme System File
BIS,Skills Funding Agency,10/03/2017,16-18 Apprenticeship Grant for Employers - Centralised Contract Management,Main Funding,NEWCASTLE COLLEGE,AGER_13612,"15,000.00",Programme System File
BIS,Skills Funding Agency,10/03/2017,16-18 Apprenticeship Grant for Employers - Centralised Contract Management,Main Funding,NEWCASTLE COLLEGE,AGER_13613,"48,000.00",Programme System File
BIS,Skills Funding Agency,10/03/2017,16-18 Apprenticeship Grant for Employers - Centralised Contract Management,Main Funding,NEWCASTLE COLLEGE,AGER_13614,"3,000.00",Programme System File
BIS,Skills Funding Agency,10/03/2017,16-18 Apprenticeship Grant for Employers - Centralised Contract Management,Main Funding,NORFOLK TRAINING SERVICES LTD,AGER_12903,"-1,500.00",Programme System File
BIS,Skills Funding Agency,10/03/2017,16-18 Apprenticeship Grant for Employers - Centralised Contract Management,Main Funding,NORFOLK TRAINING SERVICES LTD,AGER_13527,"-1,500.00",Programme System File
BIS,Skills Funding Agency,10/03/2017,16-18 Apprenticeship Grant for Employers - Centralised Contract Management,Main Funding,NORTH WEST KENT COLLEGE,AGER_12916,4500.00,Programme System File
BIS,Skills Funding Agency,10/03/2017,16-18 Apprenticeship Grant for Employers - Centralised Contract Management,Main Funding,NORTH WEST KENT COLLEGE,AGER_13528,"-42,000.00",Programme System File
BIS,Skills Funding Agency,10/03/2017,16-18 Apprenticeship Grant for Employers - Centralised Contract Management,Main Funding,NORTH YORKSHIRE COUNTY COUNCIL,AGEC_3890,"-1,500.00",Programme System File
BIS,Skills Funding Agency,10/03/2017,16-18 Apprenticeship Grant for Employers - Centralised Contract Management,Main Funding,NORTH YORKSHIRE COUNTY COUNCIL,AGER_12918,"1,500.00",Programme System File
BIS,Skills Funding Agency,10/03/2017,16-18 Apprenticeship Grant for Employers - Centralised Contract Management,Main Funding,NORTHAMPTON COLLEGE,AGEC_3923,"-51,000.00",Programme System File
BIS,Skills Funding Agency,10/03/2017,16-18 Apprenticeship Grant for Employers - Centralised Contract Management,Main Funding,NORTHAMPTON COLLEGE,AGEC_4116,"-1,500.00",Programme System File
BIS,Skills Funding Agency,10/03/2017,16-18 Apprenticeship Grant for Employers - Centralised Contract Management,Main Funding,NORTHAMPTON COLLEGE,AGER_13011,"51,000.00",Programme System File
BIS,Skills Funding Agency,10/03/2017,16-18 Apprenticeship Grant for Employers - Centralised Contract Management,Main Funding,NORTHAMPTON COLLEGE,AGER_13569,1500.00,Programme System File
BIS,Skills Funding Agency,10/03/2017,16-18 Apprenticeship Grant for Employers - Centralised Contract Management,Main Funding,NORWICH CITY COLLEGE,AGEC_3889,-12000.00,Programme System File
BIS,Skills Funding Agency,10/03/2017,16-18 Apprenticeship Grant for Employers - Centralised Contract Management,Main Funding,NORWICH CITY COLLEGE,AGER_12917,12000.00,Programme System File
BIS,Skills Funding Agency,10/03/2017,16-18 Apprenticeship Grant for Employers - Centralised Contract Management,Main Funding,PDM TRAINING & CONSULTANCY LTD,AGEC_3894,"-7,500.00",Programme System File
BIS,Skills Funding Agency,10/03/2017,16-18 Apprenticeship Grant for Employers - Centralised Contract Management,Main Funding,PDM TRAINING & CONSULTANCY LTD,AGER_12924,7500.00,Programme System File
BIS,Skills Funding Agency,10/03/2017,16-18 Apprenticeship Grant for Employers - Centralised Contract Management,Main Funding,PEOPLE & BUSINESS DEVELOPMENT LTD,AGEC_3948,"-12,000.00",Programme System File
BIS,Skills Funding Agency,10/03/2017,16-18 Apprenticeship Grant for Employers - Centralised Contract Management,Main Funding,PEOPLE & BUSINESS DEVELOPMENT LTD,AGER_13096,"12,000.00",Programme System File
BIS,Skills Funding Agency,10/03/2017,16-18 Apprenticeship Grant for Employers - Centralised Contract Management,Main Funding,PLYMOUTH COLLEGE OF ART & DESIGN,AGER_11824,"1,500.00",Programme System File
BIS,Skills Funding Agency,10/03/2017,16-18 Apprenticeship Grant for Employers - Centralised Contract Management,Main Funding,PLYMOUTH COLLEGE OF ART & DESIGN,AGER_12929,"1,500.00",Programme System File
BIS,Skills Funding Agency,10/03/2017,16-18 Apprenticeship Grant for Employers - Centralised Contract Management,Main Funding,QDOS TRAINING LTD,AGEC_3949,-4500.00,Programme System File
BIS,Skills Funding Agency,10/03/2017,16-18 Apprenticeship Grant for Employers - Centralised Contract Management,Main Funding,QDOS TRAINING LTD,AGER_13098,4500.00,Programme System File
BIS,Skills Funding Agency,10/03/2017,16-18 Apprenticeship Grant for Employers - Centralised Contract Management,Main Funding,REDCAR & CLEVELAND COLLEGE,AGER_10998,"3,000.00",Programme System File
BIS,Skills Funding Agency,10/03/2017,16-18 Apprenticeship Grant for Employers - Centralised Contract Management,Main Funding,REDCAR & CLEVELAND COLLEGE,AGER_11851,1500.00,Programme System File
BIS,Skills Funding Agency,10/03/2017,16-18 Apprenticeship Grant for Employers - Centralised Contract Management,Main Funding,REDCAR & CLEVELAND COLLEGE,AGER_12952,3000.00,Programme System File
BIS,Skills Funding Agency,10/03/2017,16-18 Apprenticeship Grant for Employers - Centralised Contract Management,Main Funding,REDWOOD EDUCATION AND SKILLS LIMITED,AGEC_3964,"-15,000.00",Programme System File
BIS,Skills Funding Agency,10/03/2017,16-18 Apprenticeship Grant for Employers - Centralised Contract Management,Main Funding,REDWOOD EDUCATION AND SKILLS LIMITED,AGER_13134,"15,000.00",Programme System File
BIS,Skills Funding Agency,10/03/2017,16-18 Apprenticeship Grant for Employers - Centralised Contract Management,Main Funding,RICHMOND UPON THAMES BOROUGH COUNCIL,AGEC_3971,"-1,500.00",Programme System File
BIS,Skills Funding Agency,10/03/2017,16-18 Apprenticeship Grant for Employers - Centralised Contract Management,Main Funding,RICHMOND UPON THAMES BOROUGH COUNCIL,AGER_13159,"1,500.00",Programme System File
BIS,Skills Funding Agency,10/03/2017,16-18 Apprenticeship Grant for Employers - Centralised Contract Management,Main Funding,RICHMOND UPON THAMES COLLEGE,AGEC_3904,"-13,500.00",Programme System File
BIS,Skills Funding Agency,10/03/2017,16-18 Apprenticeship Grant for Employers - Centralised Contract Management,Main Funding,RICHMOND UPON THAMES COLLEGE,AGER_12947,"13,500.00",Programme System File
BIS,Skills Funding Agency,10/03/2017,16-18 Apprenticeship Grant for Employers - Centralised Contract Management,Main Funding,ROCHDALE TRAINING ASSOCIATION LTD,AGEC_4094,"-1,500.00",Programme System File
BIS,Skills Funding Agency,10/03/2017,16-18 Apprenticeship Grant for Employers - Centralised Contract Management,Main Funding,ROCHDALE TRAINING ASSOCIATION LTD,AGER_13541,"1,500.00",Programme System File
BIS,Skills Funding Agency,10/03/2017,16-18 Apprenticeship Grant for Employers - Centralised Contract Management,Main Funding,RUTLAND COUNTY COUNCIL,AGER_13542,"-1,500.00",Programme System File
BIS,Skills Funding Agency,10/03/2017,16-18 Apprenticeship Grant for Employers - Centralised Contract Management,Main Funding,SALFORD CITY COLLEGE,AGEC_3896,"-1,500.00",Programme System File
BIS,Skills Funding Agency,10/03/2017,16-18 Apprenticeship Grant for Employers - Centralised Contract Management,Main Funding,SALFORD CITY COLLEGE,AGER_12926,"1,500.00",Programme System File
BIS,Skills Funding Agency,10/03/2017,16-18 Apprenticeship Grant for Employers - Centralised Contract Management,Main Funding,SERCO LTD,AGEC_4097,"-1,500.00",Programme System File
BIS,Skills Funding Agency,10/03/2017,16-18 Apprenticeship Grant for Employers - Centralised Contract Management,Main Funding,SERCO LTD,AGER_13545,"1,500.00",Programme System File
BIS,Skills Funding Agency,10/03/2017,16-18 Apprenticeship Grant for Employers - Centralised Contract Management,Main Funding,SUFFOLK COLLEGE,AGEC_3921,"-1,500.00",Programme System File
BIS,Skills Funding Agency,10/03/2017,16-18 Apprenticeship Grant for Employers - Centralised Contract Management,Main Funding,SUFFOLK COLLEGE,AGER_13006,1500.00,Programme System File
BIS,Skills Funding Agency,10/03/2017,16-18 Apprenticeship Grant for Employers - Centralised Contract Management,Main Funding,SUNDERLAND CITY COUNCIL,AGEC_3922,"-1,500.00",Programme System File
BIS,Skills Funding Agency,10/03/2017,16-18 Apprenticeship Grant for Employers - Centralised Contract Management,Main Funding,SUNDERLAND CITY COUNCIL,AGER_13007,"1,500.00",Programme System File
BIS,Skills Funding Agency,10/03/2017,16-18 Apprenticeship Grant for Employers - Centralised Contract Management,Main Funding,THE CHILDCARE COMPANY LTD,AGEC_3954,-7500.00,Programme System File
BIS,Skills Funding Agency,10/03/2017,16-18 Apprenticeship Grant for Employers - Centralised Contract Management,Main Funding,THE CHILDCARE COMPANY LTD,AGER_13111,"7,500.00",Programme System File
BIS,Skills Funding Agency,10/03/2017,16-18 Apprenticeship Grant for Employers - Centralised Contract Management,Main Funding,THE CITY OF LIVERPOOL COLLEGE,AGEC_3870,-24000.00,Programme System File
BIS,Skills Funding Agency,10/03/2017,16-18 Apprenticeship Grant for Employers - Centralised Contract Management,Main Funding,THE CITY OF LIVERPOOL COLLEGE,AGER_12864,24000.00,Programme System File
BIS,Skills Funding Agency,10/03/2017,16-18 Apprenticeship Grant for Employers - Centralised Contract Management,Main Funding,THE CORNWALL COUNCIL,AGER_12694,"-3,000.00",Programme System File
BIS,Skills Funding Agency,10/03/2017,16-18 Apprenticeship Grant for Employers - Centralised Contract Management,Main Funding,TRAINING STRATEGIES LTD,AGEC_3960,-9000.00,Programme System File
BIS,Skills Funding Agency,10/03/2017,16-18 Apprenticeship Grant for Employers - Centralised Contract Management,Main Funding,TRAINING STRATEGIES LTD,AGER_13126,"9,000.00",Programme System File
BIS,Skills Funding Agency,10/03/2017,16-18 Apprenticeship Grant for Employers - Centralised Contract Management,Main Funding,UNIVERSITY OF DERBY,AGEC_3941,"-19,500.00",Programme System File
BIS,Skills Funding Agency,10/03/2017,16-18 Apprenticeship Grant for Employers - Centralised Contract Management,Main Funding,UNIVERSITY OF DERBY,AGEC_4122,-9000.00,Programme System File
BIS,Skills Funding Agency,10/03/2017,16-18 Apprenticeship Grant for Employers - Centralised Contract Management,Main Funding,UNIVERSITY OF DERBY,AGER_13061,19500.00,Programme System File
BIS,Skills Funding Agency,10/03/2017,16-18 Apprenticeship Grant for Employers - Centralised Contract Management,Main Funding,UNIVERSITY OF DERBY,AGER_13576,9000.00,Programme System File
BIS,Skills Funding Agency,10/03/2017,16-18 Apprenticeship Grant for Employers - Centralised Contract Management,Main Funding,URBAN FUTURES LONDON LIMITED,AGEC_3951,"-3,000.00",Programme System File
BIS,Skills Funding Agency,10/03/2017,16-18 Apprenticeship Grant for Employers - Centralised Contract Management,Main Funding,URBAN FUTURES LONDON LIMITED,AGER_13101,"3,000.00",Programme System File
BIS,Skills Funding Agency,10/03/2017,16-18 Apprenticeship Grant for Employers - Centralised Contract Management,Main Funding,VIRTUAL COLLEGE GROUP PLC,AGEC_3928,"-1,500.00",Programme System File
BIS,Skills Funding Agency,10/03/2017,16-18 Apprenticeship Grant for Employers - Centralised Contract Management,Main Funding,VIRTUAL COLLEGE GROUP PLC,AGER_13020,1500.00,Programme System File
BIS,Skills Funding Agency,10/03/2017,16-18 Apprenticeship Grant for Employers - Centralised Contract Management,Main Funding,WAKEFIELD COLLEGE,AGEC_3929,-4500.00,Programme System File
BIS,Skills Funding Agency,10/03/2017,16-18 Apprenticeship Grant for Employers - Centralised Contract Management,Main Funding,WAKEFIELD COLLEGE,AGER_13030,4500.00,Programme System File
BIS,Skills Funding Agency,10/03/2017,16-18 Apprenticeship Grant for Employers - Centralised Contract Management,Main Funding,WALTHAM FOREST COLLEGE,AGEC_3931,-13500.00,Programme System File
BIS,Skills Funding Agency,10/03/2017,16-18 Apprenticeship Grant for Employers - Centralised Contract Management,Main Funding,WALTHAM FOREST COLLEGE,AGER_13039,"13,500.00",Programme System File
BIS,Skills Funding Agency,10/03/2017,16-18 Apprenticeship Grant for Employers - Centralised Contract Management,Main Funding,WEST SUFFOLK COLLEGE,AGEC_3934,"-27,000.00",Programme System File
BIS,Skills Funding Agency,10/03/2017,16-18 Apprenticeship Grant for Employers - Centralised Contract Management,Main Funding,WEST SUFFOLK COLLEGE,AGER_13042,"27,000.00",Programme System File
BIS,Skills Funding Agency,10/03/2017,16-18 Apprenticeship Grant for Employers - Centralised Contract Management,Main Funding,WEST SUFFOLK COLLEGE,AGER_13577,-1500.00,Programme System File
BIS,Skills Funding Agency,10/03/2017,16-18 Apprenticeship Grant for Employers - Centralised Contract Management,Main Funding,WESTMINSTER KINGSWAY COLLEGE,AGEC_3936,"-3,000.00",Programme System File
BIS,Skills Funding Agency,10/03/2017,16-18 Apprenticeship Grant for Employers - Centralised Contract Management,Main Funding,WESTMINSTER KINGSWAY COLLEGE,AGER_13045,"3,000.00",Programme System File
BIS,Skills Funding Agency,10/03/2017,16-18 Apprenticeship Grant for Employers,Main Funding,BOURNEMOUTH & POOLE COLLEGE,NUPS16_9251,"-9,000.00",Programme Template
BIS,Skills Funding Agency,10/03/2017,16-18 Apprenticeship Grant for Employers,Main Funding,BURNLEY COLLEGE,NUPS16_9253,"-4,500.00",Programme Template
BIS,Skills Funding Agency,10/03/2017,16-18 Apprenticeship Grant for Employers,Main Funding,CANTERBURY COLLEGE,NUPS16_9257,"-3,000.00",Programme Template
BIS,Skills Funding Agency,10/03/2017,16-18 Apprenticeship Grant for Employers,Main Funding,HADLOW COLLEGE,NUPS16_9261,"-7,500.00",Programme Template
BIS,Skills Funding Agency,10/03/2017,16-18 Apprenticeship Grant for Employers,Main Funding,HARTLEPOOL COLLEGE OF HIGHER EDUCATION,NUPS16_9265,"-1,500.00",Programme Template
BIS,Skills Funding Agency,10/03/2017,16-18 Apprenticeship Grant for Employers,Main Funding,HUGH BAIRD COLLEGE,NUPS16_9263,"-3,000.00",Programme Template
BIS,Skills Funding Agency,10/03/2017,16-18 Apprenticeship Grant for Employers,Main Funding,LEICESTER COLLEGE CO FREEMENS PARK CAMPUS,NUPS16_9266,-1500.00,Programme Template
BIS,Skills Funding Agency,10/03/2017,16-18 Apprenticeship Grant for Employers,Main Funding,LESOCO,NUPS16_9036,-1500.00,Programme Template
BIS,Skills Funding Agency,10/03/2017,16-18 Apprenticeship Grant for Employers,Main Funding,MIDDLESBROUGH COLLEGE,NUPS16_9268,"-1,500.00",Programme Template
BIS,Skills Funding Agency,10/03/2017,16-18 Apprenticeship Grant for Employers,Main Funding,NEWCASTLE UPON TYNE CITY COUNCIL,NUPS16_9282,"-1,500.00",Programme Template
BIS,Skills Funding Agency,10/03/2017,16-18 Apprenticeship Grant for Employers,Main Funding,OLDHAM COLLEGE,NUPS16_9273,"-1,500.00",Programme Template
BIS,Skills Funding Agency,10/03/2017,16-18 Apprenticeship Grant for Employers,Main Funding,REDCAR & CLEVELAND COLLEGE,NUPS16_7487,"-1,500.00",Programme Template
BIS,Skills Funding Agency,10/03/2017,16-18 Apprenticeship Grant for Employers,Main Funding,REDCAR & CLEVELAND COLLEGE,NUPS16_7611,"-3,000.00",Programme Template
BIS,Skills Funding Agency,10/03/2017,16-18 Apprenticeship Grant for Employers,Main Funding,REDCAR & CLEVELAND COLLEGE,NUPS16_9256,"-1,500.00",Programme Template
BIS,Skills Funding Agency,10/03/2017,16-18 Apprenticeship Grant for Employers,Main Funding,REMIT LTD,NUPS16_9249,"-3,000.00",Programme Template
BIS,Skills Funding Agency,10/03/2017,16-18 Apprenticeships - Centralised Contract Management,Main Funding,5 E LTD,AP16R_23513,"10,630.54",Programme System File
BIS,Skills Funding Agency,10/03/2017,16-18 Apprenticeships - Centralised Contract Management,Main Funding,ABINGDON & WITNEY COLLEGE,AP16R_24091,"57,074.36",Programme System File
BIS,Skills Funding Agency,10/03/2017,16-18 Apprenticeships - Centralised Contract Management,Main Funding,ACACIA TRAINING & DEVELOPMENT LTD,AP16R_24191,"39,540.51",Programme System File
BIS,Skills Funding Agency,10/03/2017,16-18 Apprenticeships - Centralised Contract Management,Main Funding,ACACIA TRAINING LTD,AP16R_24295,"10,428.77",Programme System File
BIS,Skills Funding Agency,10/03/2017,16-18 Apprenticeships - Centralised Contract Management,Main Funding,ACADEMIES ENTERPRISE,AP16C_4394,-368.83,Programme System File
BIS,Skills Funding Agency,10/03/2017,16-18 Apprenticeships - Centralised Contract Management,Main Funding,ACADEMIES ENTERPRISE,AP16R_24496,"2,657.23",Programme System File
BIS,Skills Funding Agency,10/03/2017,16-18 Apprenticeships - Centralised Contract Management,Main Funding,ACADEMIES ENTERPRISE,AP16R_24816,"1,500.90",Programme System File
BIS,Skills Funding Agency,10/03/2017,16-18 Apprenticeships - Centralised Contract Management,Main Funding,ACADEMY EDUCATION LTD,AP16R_23725,"17,856.44",Programme System File
BIS,Skills Funding Agency,10/03/2017,16-18 Apprenticeships - Centralised Contract Management,Main Funding,ACADEMY HAIR & BEAUTY LTD,AP16C_4372,"-8,763.69",Programme System File
BIS,Skills Funding Agency,10/03/2017,16-18 Apprenticeships - Centralised Contract Management,Main Funding,ACADEMY HAIR & BEAUTY LTD,AP16R_24255,"12,223.59",Programme System File
BIS,Skills Funding Agency,10/03/2017,16-18 Apprenticeships - Centralised Contract Management,Main Funding,ACADEMY TRANSFORMATION TRUST,AP16R_24524,"1,400.52",Programme System File
BIS,Skills Funding Agency,10/03/2017,16-18 Apprenticeships - Centralised Contract Management,Main Funding,ACCESS TRAINING EAST MIDLANDS LTD,AP16R_24362,"48,438.20",Programme System File
BIS,Skills Funding Agency,10/03/2017,16-18 Apprenticeships - Centralised Contract Management,Main Funding,ACCESS TRAINING LTD,AP16R_24342,"48,725.53",Programme System File
BIS,Skills Funding Agency,10/03/2017,16-18 Apprenticeships - Centralised Contract Management,Main Funding,ACCRINGTON & ROSSENDALE COLLEGE,AP16R_24498,"82,326.62",Programme System File
BIS,Skills Funding Agency,10/03/2017,16-18 Apprenticeships - Centralised Contract Management,Main Funding,ACHIEVEMENT TRAINING LIMITED,AP16R_24603,"26,073.80",Programme System File
BIS,Skills Funding Agency,10/03/2017,16-18 Apprenticeships - Centralised Contract Management,Main Funding,ALDER TRAINING LTD,AP16R_23514,"53,641.43",Programme System File
BIS,Skills Funding Agency,10/03/2017,16-18 Apprenticeships - Centralised Contract Management,Main Funding,ALL TRADES TRAINING LIMITED,AP16C_4389,"-1,156.92",Programme System File
BIS,Skills Funding Agency,10/03/2017,16-18 Apprenticeships - Centralised Contract Management,Main Funding,ALL TRADES TRAINING LIMITED,AP16R_24467,"1,308.41",Programme System File
BIS,Skills Funding Agency,10/03/2017,16-18 Apprenticeships - Centralised Contract Management,Main Funding,ALLIANCE LEARNING LTD,AP16R_23822,"77,432.31",Programme System File
BIS,Skills Funding Agency,10/03/2017,16-18 Apprenticeships - Centralised Contract Management,Main Funding,ALT VALLEY COMMUNITY TRUST LTD,AP16R_23673,3736.91,Programme System File
BIS,Skills Funding Agency,10/03/2017,16-18 Apprenticeships - Centralised Contract Management,Main Funding,AMERSHAM & WYCOMBE COLLEGE,AP16C_4346,"-50,822.79",Programme System File
BIS,Skills Funding Agency,10/03/2017,16-18 Apprenticeships - Centralised Contract Management,Main Funding,AMERSHAM & WYCOMBE COLLEGE,AP16R_23947,"50,822.79",Programme System File
BIS,Skills Funding Agency,10/03/2017,16-18 Apprenticeships - Centralised Contract Management,Main Funding,ANDERSON STOCKLEY ACCREDITED TRAINING LTD,AP16R_24442,"13,532.47",Programme System File
BIS,Skills Funding Agency,10/03/2017,16-18 Apprenticeships - Centralised Contract Management,Main Funding,ANDREW COLLINGE TRAINING LTD,AP16R_23957,"46,911.62",Programme System File
BIS,Skills Funding Agency,10/03/2017,16-18 Apprenticeships - Centralised Contract Management,Main Funding,ANNE CLARKE ASSOCIATES LTD,AP16R_24416,"9,578.96",Programme System File
BIS,Skills Funding Agency,10/03/2017,16-18 Apprenticeships - Centralised Contract Management,Main Funding,APPRENTICE FUNDING ASSISTANT LTD,AP16R_24471,"98,793.28",Programme System File
BIS,Skills Funding Agency,10/03/2017,16-18 Apprenticeships - Centralised Contract Management,Main Funding,APPRENTICESHIPS & TRAINING SERVICES CONSORTIUM LIMITED,AP16R_24493,"94,398.60",Programme System File
BIS,Skills Funding Agency,10/03/2017,16-18 Apprenticeships - Centralised Contract Management,Main Funding,APPRIS CHARITY LIMITED,AP16R_24480,64142.29,Programme System File
BIS,Skills Funding Agency,10/03/2017,16-18 Apprenticeships - Centralised Contract Management,Main Funding,ASKHAM BRYAN COLLEGE,AP16C_4350,"-10,135.61",Programme System File
BIS,Skills Funding Agency,10/03/2017,16-18 Apprenticeships - Centralised Contract Management,Main Funding,ASKHAM BRYAN COLLEGE,AP16R_24010,"96,943.20",Programme System File
BIS,Skills Funding Agency,10/03/2017,16-18 Apprenticeships - Centralised Contract Management,Main Funding,ASPIRATION TRAINING LTD,AP16R_24080,"63,483.61",Programme System File
BIS,Skills Funding Agency,10/03/2017,16-18 Apprenticeships - Centralised Contract Management,Main Funding,ASPIRE ACHIEVE ADVANCE LIMITED,AP16R_24481,863334.09,Programme System File
BIS,Skills Funding Agency,10/03/2017,16-18 Apprenticeships - Centralised Contract Management,Main Funding,ASPIRE TRAINING TEAM,AP16R_24268,"31,927.41",Programme System File
BIS,Skills Funding Agency,10/03/2017,16-18 Apprenticeships - Centralised Contract Management,Main Funding,ASSET TRAINING & CONSULTANCY LTD,AP16R_24041,"51,864.09",Programme System File
BIS,Skills Funding Agency,10/03/2017,16-18 Apprenticeships - Centralised Contract Management,Main Funding,ASTUTE MINDS LTD,AP16R_24396,"126,989.42",Programme System File
BIS,Skills Funding Agency,10/03/2017,16-18 Apprenticeships - Centralised Contract Management,Main Funding,ATG TRAINING,AP16R_23967,"67,308.36",Programme System File
BIS,Skills Funding Agency,10/03/2017,16-18 Apprenticeships - Centralised Contract Management,Main Funding,AURELIA TRAINING LTD,AP16R_24103,"4,921.39",Programme System File
BIS,Skills Funding Agency,10/03/2017,16-18 Apprenticeships - Centralised Contract Management,Main Funding,AVANT PARTNERSHIP LTD,AP16R_24422,"28,695.52",Programme System File
BIS,Skills Funding Agency,10/03/2017,16-18 Apprenticeships - Centralised Contract Management,Main Funding,AVANTA ENTERPRISE LTD,AP16R_24518,"72,539.05",Programme System File
BIS,Skills Funding Agency,10/03/2017,16-18 Apprenticeships - Centralised Contract Management,Main Funding,AXIA SOLUTIONS LTD,AP16R_24124,"22,569.46",Programme System File
BIS,Skills Funding Agency,10/03/2017,16-18 Apprenticeships - Centralised Contract Management,Main Funding,AYLESBURY COLLEGE,AP16C_4362,"-85,322.04",Programme System File
BIS,Skills Funding Agency,10/03/2017,16-18 Apprenticeships - Centralised Contract Management,Main Funding,AYLESBURY COLLEGE,AP16R_24151,"109,792.38",Programme System File
BIS,Skills Funding Agency,10/03/2017,16-18 Apprenticeships - Centralised Contract Management,Main Funding,B SKILL LTD,AP16R_23989,"23,975.65",Programme System File
BIS,Skills Funding Agency,10/03/2017,16-18 Apprenticeships - Centralised Contract Management,Main Funding,BABCOCK SKILLS DEVELOPMENT & TRAINING LTD,AP16R_24515,"132,209.26",Programme System File
BIS,Skills Funding Agency,10/03/2017,16-18 Apprenticeships - Centralised Contract Management,Main Funding,BABCOCK TRAINING LTD,AP16R_23986,"696,748.28",Programme System File
BIS,Skills Funding Agency,10/03/2017,16-18 Apprenticeships - Centralised Contract Management,Main Funding,BABINGTON BUSINESS COLLEGE LTD,AP16R_24019,"279,662.72",Programme System File
BIS,Skills Funding Agency,10/03/2017,16-18 Apprenticeships - Centralised Contract Management,Main Funding,BAE SYSTEMS PLC,AP16R_24030,"199,920.54",Programme System File
BIS,Skills Funding Agency,10/03/2017,16-18 Apprenticeships - Centralised Contract Management,Main Funding,BALTIC TRAINING SERVICES LTD,AP16R_24394,"377,956.54",Programme System File
BIS,Skills Funding Agency,10/03/2017,16-18 Apprenticeships - Centralised Contract Management,Main Funding,BARCHESTER HEALTHCARE LTD,AP16R_22618,"-4,740.08",Programme System File
BIS,Skills Funding Agency,10/03/2017,16-18 Apprenticeships - Centralised Contract Management,Main Funding,BARCHESTER HEALTHCARE LTD,AP16R_24051,"-1,167.56",Programme System File
BIS,Skills Funding Agency,10/03/2017,16-18 Apprenticeships - Centralised Contract Management,Main Funding,BARKING & DAGENHAM COLLEGE,AP16R_24092,"115,550.61",Programme System File
BIS,Skills Funding Agency,10/03/2017,16-18 Apprenticeships - Centralised Contract Management,Main Funding,BARKING & DAGENHAM LONDON BOROUGH COUNCIL,AP16R_24705,"1,785.83",Programme System File
BIS,Skills Funding Agency,10/03/2017,16-18 Apprenticeships - Centralised Contract Management,Main Funding,BARNARDOS,AP16R_24114,"15,426.15",Programme System File
BIS,Skills Funding Agency,10/03/2017,16-18 Apprenticeships - Centralised Contract Management,Main Funding,BARNET AND SOUTHGATE COLLEGE,AP16R_24133,"58,181.71",Programme System File
BIS,Skills Funding Agency,10/03/2017,16-18 Apprenticeships - Centralised Contract Management,Main Funding,BARNFIELD COLLEGE,AP16R_24192,"39,743.72",Programme System File
BIS,Skills Funding Agency,10/03/2017,16-18 Apprenticeships - Centralised Contract Management,Main Funding,BARNSLEY COLLEGE,AP16R_24203,"233,098.31",Programme System File
BIS,Skills Funding Agency,10/03/2017,16-18 Apprenticeships - Centralised Contract Management,Main Funding,BASINGSTOKE COLLEGE,AP16R_24180,"111,517.05",Programme System File
BIS,Skills Funding Agency,10/03/2017,16-18 Apprenticeships - Centralised Contract Management,Main Funding,BASINGSTOKE YOUTH ACTION TRUST LTD,AP16R_24225,"29,040.84",Programme System File
BIS,Skills Funding Agency,10/03/2017,16-18 Apprenticeships - Centralised Contract Management,Main Funding,BC ARCH LTD T/A ARCH APPRENTICES,AP16R_24550,"123,765.99",Programme System File
BIS,Skills Funding Agency,10/03/2017,16-18 Apprenticeships - Centralised Contract Management,Main Funding,BCTG LIMITED,AP16R_24257,"307,477.03",Programme System File
BIS,Skills Funding Agency,10/03/2017,16-18 Apprenticeships - Centralised Contract Management,Main Funding,BE TOTALLY YOU,AP16R_24395,"19,052.34",Programme System File
BIS,Skills Funding Agency,10/03/2017,16-18 Apprenticeships - Centralised Contract Management,Main Funding,BE WISER INSURANCE SERVICES LIMITED,AP16R_24535,"11,379.54",Programme System File
BIS,Skills Funding Agency,10/03/2017,16-18 Apprenticeships - Centralised Contract Management,Main Funding,BEDFORD COLLEGE,AP16R_24244,"222,457.12",Programme System File
BIS,Skills Funding Agency,10/03/2017,16-18 Apprenticeships - Centralised Contract Management,Main Funding,BERKSHIRE COLLEGE OF AGRICULTURE,AP16C_4373,"-4,574.86",Programme System File
BIS,Skills Funding Agency,10/03/2017,16-18 Apprenticeships - Centralised Contract Management,Main Funding,BERKSHIRE COLLEGE OF AGRICULTURE,AP16R_24274,"46,948.68",Programme System File
BIS,Skills Funding Agency,10/03/2017,16-18 Apprenticeships - Centralised Contract Management,Main Funding,BESTLAND SOLUTIONS LTD,AP16R_24390,"53,863.51",Programme System File
BIS,Skills Funding Agency,10/03/2017,16-18 Apprenticeships - Centralised Contract Management,Main Funding,BEXHILL COLLEGE,AP16R_24296,"6,670.47",Programme System File
BIS,Skills Funding Agency,10/03/2017,16-18 Apprenticeships - Centralised Contract Management,Main Funding,BEXLEY LONDON BOROUGH COUNCIL,AP16R_23623,30.11,Programme System File
BIS,Skills Funding Agency,10/03/2017,16-18 Apprenticeships - Centralised Contract Management,Main Funding,BEXLEY YOUTH TRAINING GROUP,AP16R_24317,"66,898.38",Programme System File
BIS,Skills Funding Agency,10/03/2017,16-18 Apprenticeships - Centralised Contract Management,Main Funding,BIRMINGHAM ELECTRICAL TRAINING LTD,AP16R_24214,"50,590.37",Programme System File
BIS,Skills Funding Agency,10/03/2017,16-18 Apprenticeships - Centralised Contract Management,Main Funding,BIRMINGHAM METROPOLITAN COLLEGE,AP16R_24233,"141,559.91",Programme System File
BIS,Skills Funding Agency,10/03/2017,16-18 Apprenticeships - Centralised Contract Management,Main Funding,BISHOP AUCKLAND COLLEGE,AP16R_21078,"43,182.01",Programme System File
BIS,Skills Funding Agency,10/03/2017,16-18 Apprenticeships - Centralised Contract Management,Main Funding,BISHOP AUCKLAND COLLEGE,AP16R_22921,"41,277.33",Programme System File
BIS,Skills Funding Agency,10/03/2017,16-18 Apprenticeships - Centralised Contract Management,Main Funding,BISHOP AUCKLAND COLLEGE,AP16R_24235,"50,030.00",Programme System File
BIS,Skills Funding Agency,10/03/2017,16-18 Apprenticeships - Centralised Contract Management,Main Funding,BISHOP BURTON COLLEGE,AP16R_24254,"58,824.68",Programme System File
BIS,Skills Funding Agency,10/03/2017,16-18 Apprenticeships - Centralised Contract Management,Main Funding,BL TRAINING LTD,AP16R_23977,"88,912.21",Programme System File
BIS,Skills Funding Agency,10/03/2017,16-18 Apprenticeships - Centralised Contract Management,Main Funding,BLACKBURN COLLEGE,AP16R_24284,"109,309.15",Programme System File
BIS,Skills Funding Agency,10/03/2017,16-18 Apprenticeships - Centralised Contract Management,Main Funding,BLACKPOOL & FLYDE COLLEGE,AP16R_24307,"104,539.41",Programme System File
BIS,Skills Funding Agency,10/03/2017,16-18 Apprenticeships - Centralised Contract Management,Main Funding,BLUE ARROW LTD,AP16R_24541,314.19,Programme System File
BIS,Skills Funding Agency,10/03/2017,16-18 Apprenticeships - Centralised Contract Management,Main Funding,BOLTON COMMUNITY COLLEGE,AP16R_24328,"122,271.37",Programme System File
BIS,Skills Funding Agency,10/03/2017,16-18 Apprenticeships - Centralised Contract Management,Main Funding,BOLTON COMMUNITY COLLEGE,AP16R_24810,"14,024.12",Programme System File
BIS,Skills Funding Agency,10/03/2017,16-18 Apprenticeships - Centralised Contract Management,Main Funding,BOOTS OPTICANS PROFESSIONAL SERVICES LTD,AP16R_24477,"8,053.93",Programme System File
BIS,Skills Funding Agency,10/03/2017,16-18 Apprenticeships - Centralised Contract Management,Main Funding,BOROUGH OF POOLE,AP16R_24147,"8,208.55",Programme System File
BIS,Skills Funding Agency,10/03/2017,16-18 Apprenticeships - Centralised Contract Management,Main Funding,BOSCH AUTOMOTIVE SERVICE SOLUTIONS LTD,AP16R_24534,"128,751.03",Programme System File
BIS,Skills Funding Agency,10/03/2017,16-18 Apprenticeships - Centralised Contract Management,Main Funding,BOSTON COLLEGE,AP16R_24347,"64,724.04",Programme System File
BIS,Skills Funding Agency,10/03/2017,16-18 Apprenticeships - Centralised Contract Management,Main Funding,BOURNEMOUTH & POOLE COLLEGE,AP16R_24357,"248,653.93",Programme System File
BIS,Skills Funding Agency,10/03/2017,16-18 Apprenticeships - Centralised Contract Management,Main Funding,BOURNVILLE COLLEGE OF HIGHER EDUCATION,AP16R_24420,"42,093.29",Programme System File
BIS,Skills Funding Agency,10/03/2017,16-18 Apprenticeships - Centralised Contract Management,Main Funding,BPP HOLDINGS PLC,AP16C_4381,-62533.72,Programme System File
BIS,Skills Funding Agency,10/03/2017,16-18 Apprenticeships - Centralised Contract Management,Main Funding,BPP HOLDINGS PLC,AP16R_24389,"216,878.87",Programme System File
BIS,Skills Funding Agency,10/03/2017,16-18 Apprenticeships - Centralised Contract Management,Main Funding,BRACKNELL & WOKINGHAM COLLEGE,AP16C_4383,"-24,464.69",Programme System File
BIS,Skills Funding Agency,10/03/2017,16-18 Apprenticeships - Centralised Contract Management,Main Funding,BRACKNELL & WOKINGHAM COLLEGE,AP16R_24410,"57,646.48",Programme System File
BIS,Skills Funding Agency,10/03/2017,16-18 Apprenticeships - Centralised Contract Management,Main Funding,BRADFORD CITY COUNCIL,AP16R_24338,"6,566.39",Programme System File
BIS,Skills Funding Agency,10/03/2017,16-18 Apprenticeships - Centralised Contract Management,Main Funding,BRADFORD COLLEGE,AP16R_24460,"201,594.07",Programme System File
BIS,Skills Funding Agency,10/03/2017,16-18 Apprenticeships - Centralised Contract Management,Main Funding,BRIDGWATER COLLEGE,AP16R_24553,"272,146.61",Programme System File
BIS,Skills Funding Agency,10/03/2017,16-18 Apprenticeships - Centralised Contract Management,Main Funding,BRIGHT HORIZONS FAMILY SOLUTIONS LTD,AP16R_24021,"34,520.52",Programme System File
BIS,Skills Funding Agency,10/03/2017,16-18 Apprenticeships - Centralised Contract Management,Main Funding,BRISTOL CITY COUNCIL,AP16R_24555,"54,528.68",Programme System File
BIS,Skills Funding Agency,10/03/2017,16-18 Apprenticeships - Centralised Contract Management,Main Funding,BRITISH ARMY,AP16R_24497,"811,868.96",Programme System File
BIS,Skills Funding Agency,10/03/2017,16-18 Apprenticeships - Centralised Contract Management,Main Funding,BRITISH GAS SERVICES LIMITED,AP16R_24430,3567.54,Programme System File
BIS,Skills Funding Agency,10/03/2017,16-18 Apprenticeships - Centralised Contract Management,Main Funding,BRITISH NUCLEAR FUELS PLC,AP16R_24364,"23,187.58",Programme System File
BIS,Skills Funding Agency,10/03/2017,16-18 Apprenticeships - Centralised Contract Management,Main Funding,BRITISH PRINTING INDUSTRIES FEDERATION LTD,AP16R_24368,"48,971.39",Programme System File
BIS,Skills Funding Agency,10/03/2017,16-18 Apprenticeships - Centralised Contract Management,Main Funding,BRITISH TELECOM PLC,AP16R_24466,"83,269.32",Programme System File
BIS,Skills Funding Agency,10/03/2017,16-18 Apprenticeships - Centralised Contract Management,Main Funding,BRITISH TELECOM PLC,AP16R_24815,"6,397.34",Programme System File
BIS,Skills Funding Agency,10/03/2017,16-18 Apprenticeships - Centralised Contract Management,Main Funding,BROADLAND DISTRICT COUNCIL,AP16R_24441,"52,448.32",Programme System File
BIS,Skills Funding Agency,10/03/2017,16-18 Apprenticeships - Centralised Contract Management,Main Funding,BROCKENHURST COLLEGE,AP16R_24450,"19,264.01",Programme System File
BIS,Skills Funding Agency,10/03/2017,16-18 Apprenticeships - Centralised Contract Management,Main Funding,BROMLEY COLLEGE OF FURTHER & HIGHER EDUCATION,AP16R_24568,"213,444.47",Programme System File
BIS,Skills Funding Agency,10/03/2017,16-18 Apprenticeships - Centralised Contract Management,Main Funding,BROMLEY COLLEGE OF FURTHER & HIGHER EDUCATION,AP16R_24821,"7,297.84",Programme System File
BIS,Skills Funding Agency,10/03/2017,16-18 Apprenticeships - Centralised Contract Management,Main Funding,BROOKLANDS TECHNICAL COLLEGE,AP16R_24469,"830,037.15",Programme System File
BIS,Skills Funding Agency,10/03/2017,16-18 Apprenticeships - Centralised Contract Management,Main Funding,BROOKSBY MELTON COLLEGE,AP16R_24490,"25,839.21",Programme System File
BIS,Skills Funding Agency,10/03/2017,16-18 Apprenticeships - Centralised Contract Management,Main Funding,BUCKINGHAMSHIRE COUNTY COUNCIL,AP16R_24499,"16,360.46",Programme System File
BIS,Skills Funding Agency,10/03/2017,16-18 Apprenticeships - Centralised Contract Management,Main Funding,BUILDING CRAFTS COLLEGE,AP16R_24343,"17,368.61",Programme System File
BIS,Skills Funding Agency,10/03/2017,16-18 Apprenticeships - Centralised Contract Management,Main Funding,BURNLEY COLLEGE,AP16R_24520,"132,862.85",Programme System File
BIS,Skills Funding Agency,10/03/2017,16-18 Apprenticeships - Centralised Contract Management,Main Funding,BURTON & SOUTH DERBYSHIRE COLLEGE,AP16R_24542,"89,435.21",Programme System File
BIS,Skills Funding Agency,10/03/2017,16-18 Apprenticeships - Centralised Contract Management,Main Funding,BURY COLLEGE,AP16R_24562,"117,854.72",Programme System File
BIS,Skills Funding Agency,10/03/2017,16-18 Apprenticeships - Centralised Contract Management,Main Funding,BUSINESS MANAGEMENT RESOURCES UK LTD,AP16R_24583,"2,333.22",Programme System File
BIS,Skills Funding Agency,10/03/2017,16-18 Apprenticeships - Centralised Contract Management,Main Funding,BUSY BEES NURSERIES,AP16R_24478,"113,972.53",Programme System File
BIS,Skills Funding Agency,10/03/2017,16-18 Apprenticeships - Centralised Contract Management,Main Funding,CABLECOM TRAINING LTD,AP16R_24604,"7,305.15",Programme System File
BIS,Skills Funding Agency,10/03/2017,16-18 Apprenticeships - Centralised Contract Management,Main Funding,CALDERDALE COLLEGE,AP16R_24626,"86,316.92",Programme System File
BIS,Skills Funding Agency,10/03/2017,16-18 Apprenticeships - Centralised Contract Management,Main Funding,CAMBRIDGE REGIONAL COLLEGE,AP16R_24560,"264,413.73",Programme System File
BIS,Skills Funding Agency,10/03/2017,16-18 Apprenticeships - Centralised Contract Management,Main Funding,CAMBRIDGE REGIONAL COLLEGE,AP16R_24832,"42,266.14",Programme System File
BIS,Skills Funding Agency,10/03/2017,16-18 Apprenticeships - Centralised Contract Management,Main Funding,CANTERBURY COLLEGE,AP16R_24509,"76,913.61",Programme System File
BIS,Skills Funding Agency,10/03/2017,16-18 Apprenticeships - Centralised Contract Management,Main Funding,CAPEL MANOR COLLEGE,AP16R_24531,"17,870.71",Programme System File
BIS,Skills Funding Agency,10/03/2017,16-18 Apprenticeships - Centralised Contract Management,Main Funding,CAPITA PLC,AP16R_24552,"108,693.34",Programme System File
BIS,Skills Funding Agency,10/03/2017,16-18 Apprenticeships - Centralised Contract Management,Main Funding,CAPITAL ENGINEERING GROUP HOLDINGS LTD,AP16R_24415,"40,427.55",Programme System File
BIS,Skills Funding Agency,10/03/2017,16-18 Apprenticeships - Centralised Contract Management,Main Funding,CARE FIRST TRAINING LTD,AP16R_24585,"2,325.36",Programme System File
BIS,Skills Funding Agency,10/03/2017,16-18 Apprenticeships - Centralised Contract Management,Main Funding,CARE LEARNING CENTRE ISLE OF WIGHT LTD,AP16R_24262,"5,828.41",Programme System File
BIS,Skills Funding Agency,10/03/2017,16-18 Apprenticeships - Centralised Contract Management,Main Funding,CARE TRAINING EAST MIDLANDS LIMITED,AP16R_24573,"48,477.80",Programme System File
BIS,Skills Funding Agency,10/03/2017,16-18 Apprenticeships - Centralised Contract Management,Main Funding,CARE UK COMMUNITY PARTNERSHIPS LTD,AP16R_24543,4137.81,Programme System File
BIS,Skills Funding Agency,10/03/2017,16-18 Apprenticeships - Centralised Contract Management,Main Funding,CARILLION CONSTRUCTION LTD,AP16R_24593,"481,024.51",Programme System File
BIS,Skills Funding Agency,10/03/2017,16-18 Apprenticeships - Centralised Contract Management,Main Funding,CARLISLE COLLEGE,AP16R_24615,"78,232.35",Programme System File
BIS,Skills Funding Agency,10/03/2017,16-18 Apprenticeships - Centralised Contract Management,Main Funding,CARSHALTON COLLEGE,AP16R_24637,"51,570.62",Programme System File
BIS,Skills Funding Agency,10/03/2017,16-18 Apprenticeships - Centralised Contract Management,Main Funding,CATCH 22 CHARITY LTD,AP16R_24459,"182,741.12",Programme System File
BIS,Skills Funding Agency,10/03/2017,16-18 Apprenticeships - Centralised Contract Management,Main Funding,CENTRAL BEDFORDSHIRE COLLEGE,AP16C_4341,-30236.91,Programme System File
BIS,Skills Funding Agency,10/03/2017,16-18 Apprenticeships - Centralised Contract Management,Main Funding,CENTRAL BEDFORDSHIRE COLLEGE,AP16R_23918,"30,236.91",Programme System File
BIS,Skills Funding Agency,10/03/2017,16-18 Apprenticeships - Centralised Contract Management,Main Funding,CENTRAL BEDFORDSHIRE COUNCIL,AP16R_24438,"4,747.34",Programme System File
BIS,Skills Funding Agency,10/03/2017,16-18 Apprenticeships - Centralised Contract Management,Main Funding,CENTRAL COLLEGE NOTTINGHAM,AP16R_24575,"243,089.16",Programme System File
BIS,Skills Funding Agency,10/03/2017,16-18 Apprenticeships - Centralised Contract Management,Main Funding,CENTRAL MANCHESTER UNIVERSITY HOSPITALS NHS FOUNDATION TRUST,AP16R_24545,278.49,Programme System File
BIS,Skills Funding Agency,10/03/2017,16-18 Apprenticeships - Centralised Contract Management,Main Funding,CENTRAL SUSSEX COLLEGE,AP16R_23662,"98,254.35",Programme System File
BIS,Skills Funding Agency,10/03/2017,16-18 Apprenticeships - Centralised Contract Management,Main Funding,CENTRAL TRAINING ACADEMY LTD,AP16C_4405,"-121,121.66",Programme System File
BIS,Skills Funding Agency,10/03/2017,16-18 Apprenticeships - Centralised Contract Management,Main Funding,CENTRAL TRAINING ACADEMY LTD,AP16R_24684,"180,886.06",Programme System File
BIS,Skills Funding Agency,10/03/2017,16-18 Apprenticeships - Centralised Contract Management,Main Funding,CHAMBER TRAINING HUMBER LTD,AP16R_24737,"31,305.35",Programme System File
BIS,Skills Funding Agency,10/03/2017,16-18 Apprenticeships - Centralised Contract Management,Main Funding,CHAPMAN BENNETT ASSOCIATES LIMITED,AP16R_24451,"16,779.17",Programme System File
BIS,Skills Funding Agency,10/03/2017,16-18 Apprenticeships - Centralised Contract Management,Main Funding,CHEADLE & MARPLE SIXTH FORM COLLEGE,AP16R_24748,"20,551.81",Programme System File
BIS,Skills Funding Agency,10/03/2017,16-18 Apprenticeships - Centralised Contract Management,Main Funding,CHELMSFORD COLLEGE,AP16R_24770,56370.35,Programme System File
BIS,Skills Funding Agency,10/03/2017,16-18 Apprenticeships - Centralised Contract Management,Main Funding,CHESTERFIELD COLLEGE,AP16R_24789,"256,279.43",Programme System File
BIS,Skills Funding Agency,10/03/2017,16-18 Apprenticeships - Centralised Contract Management,Main Funding,CHEYNES MANAGEMENT LTD,AP16R_24340,"209,006.45",Programme System File
BIS,Skills Funding Agency,10/03/2017,16-18 Apprenticeships - Centralised Contract Management,Main Funding,CHICHESTER COLLEGE,AP16R_24325,"141,609.96",Programme System File
BIS,Skills Funding Agency,10/03/2017,16-18 Apprenticeships - Centralised Contract Management,Main Funding,CIRENCESTER TERTIARY COLLEGE,AP16R_24717,"14,887.38",Programme System File
BIS,Skills Funding Agency,10/03/2017,16-18 Apprenticeships - Centralised Contract Management,Main Funding,CITB CONSTRUCTIONSKILLS,AP16R_24666,"2,105,807.14",Programme System File
BIS,Skills Funding Agency,10/03/2017,16-18 Apprenticeships - Centralised Contract Management,Main Funding,CITROEN UK LTD,AP16R_24391,"47,593.34",Programme System File
BIS,Skills Funding Agency,10/03/2017,16-18 Apprenticeships - Centralised Contract Management,Main Funding,CITY COLLEGE BRIGHTON & HOVE,AP16R_24695,"45,200.09",Programme System File
BIS,Skills Funding Agency,10/03/2017,16-18 Apprenticeships - Centralised Contract Management,Main Funding,CITY COLLEGE BRIGHTON & HOVE,AP16R_24838,"4,749.57",Programme System File
BIS,Skills Funding Agency,10/03/2017,16-18 Apprenticeships - Centralised Contract Management,Main Funding,CITY COLLEGE COVENTRY,AP16R_24728,"55,854.89",Programme System File
BIS,Skills Funding Agency,10/03/2017,16-18 Apprenticeships - Centralised Contract Management,Main Funding,CITY COLLEGE PLYMOUTH,AP16R_24146,"204,211.18",Programme System File
BIS,Skills Funding Agency,10/03/2017,16-18 Apprenticeships - Centralised Contract Management,Main Funding,CITY GATEWAY LTD,AP16R_24398,"5,261.67",Programme System File
BIS,Skills Funding Agency,10/03/2017,16-18 Apprenticeships - Centralised Contract Management,Main Funding,CITY OF BATH COLLEGE,AP16R_24780,"66,457.13",Programme System File
BIS,Skills Funding Agency,10/03/2017,16-18 Apprenticeships - Centralised Contract Management,Main Funding,CITY OF BRISTOL COLLEGE,AP16R_24800,"140,824.22",Programme System File
BIS,Skills Funding Agency,10/03/2017,16-18 Apprenticeships - Centralised Contract Management,Main Funding,CITY OF LONDON ADULT EDUCATION,AP16R_24371,"21,103.21",Programme System File
BIS,Skills Funding Agency,10/03/2017,16-18 Apprenticeships - Centralised Contract Management,Main Funding,CITY OF SUNDERLAND COLLEGE,AP16R_23526,"95,868.61",Programme System File
BIS,Skills Funding Agency,10/03/2017,16-18 Apprenticeships - Centralised Contract Management,Main Funding,CITY OF WESTMINSTER COLLEGE,AP16R_23558,"13,968.88",Programme System File
BIS,Skills Funding Agency,10/03/2017,16-18 Apprenticeships - Centralised Contract Management,Main Funding,CITY OF WOLVERHAMPTON COLLEGE,AP16R_24314,"120,387.32",Programme System File
BIS,Skills Funding Agency,10/03/2017,16-18 Apprenticeships - Centralised Contract Management,Main Funding,CITY OF YORK COUNCIL,AP16R_23580,"6,006.23",Programme System File
BIS,Skills Funding Agency,10/03/2017,16-18 Apprenticeships - Centralised Contract Management,Main Funding,CLARKSON EVANS TRAINING LIMITED,AP16R_24458,"10,757.87",Programme System File
BIS,Skills Funding Agency,10/03/2017,16-18 Apprenticeships - Centralised Contract Management,Main Funding,CLEVELAND YOUTH ASSOCIATION,AP16R_24187,"14,029.33",Programme System File
BIS,Skills Funding Agency,10/03/2017,16-18 Apprenticeships - Centralised Contract Management,Main Funding,COLCHESTER INSTITUTE,AP16R_23591,"236,385.12",Programme System File
BIS,Skills Funding Agency,10/03/2017,16-18 Apprenticeships - Centralised Contract Management,Main Funding,COLLEGE OF ANIMAL WELFARE LTD,AP16R_23602,"21,960.46",Programme System File
BIS,Skills Funding Agency,10/03/2017,16-18 Apprenticeships - Centralised Contract Management,Main Funding,COLLEGE OF NORTH EAST LONDON,AP16R_23612,"81,594.16",Programme System File
BIS,Skills Funding Agency,10/03/2017,16-18 Apprenticeships - Centralised Contract Management,Main Funding,COLLEGE OF NORTH WEST LONDON,AP16R_23633,"68,042.51",Programme System File
BIS,Skills Funding Agency,10/03/2017,16-18 Apprenticeships - Centralised Contract Management,Main Funding,COLLEGE OF RICHARD COLLYER,AP16R_23653,"6,050.41",Programme System File
BIS,Skills Funding Agency,10/03/2017,16-18 Apprenticeships - Centralised Contract Management,Main Funding,COLLEGE OF WEST ANGLIA,AP16R_24330,"153,184.69",Programme System File
BIS,Skills Funding Agency,10/03/2017,16-18 Apprenticeships - Centralised Contract Management,Main Funding,COMMUNITY TRAINING SERVICES LTD,AP16R_23537,"12,782.45",Programme System File
BIS,Skills Funding Agency,10/03/2017,16-18 Apprenticeships - Centralised Contract Management,Main Funding,COMPASS GROUP UK & IRELAND LTD,AP16R_24444,"4,625.62",Programme System File
BIS,Skills Funding Agency,10/03/2017,16-18 Apprenticeships - Centralised Contract Management,Main Funding,CONSORTIA TRAINING LIMITED,AP16R_24491,"58,406.19",Programme System File
BIS,Skills Funding Agency,10/03/2017,16-18 Apprenticeships - Centralised Contract Management,Main Funding,CORNWALL COLLEGE,AP16R_23569,"336,831.19",Programme System File
BIS,Skills Funding Agency,10/03/2017,16-18 Apprenticeships - Centralised Contract Management,Main Funding,COVENTRY & WARWICKSHIRE CHAMBERS OF COMMERCE TRAINING LIMITED,AP16R_24706,"72,709.04",Programme System File
BIS,Skills Funding Agency,10/03/2017,16-18 Apprenticeships - Centralised Contract Management,Main Funding,COVENTRY CITY COUNCIL,AP16C_4398,"-16,650.28",Programme System File
BIS,Skills Funding Agency,10/03/2017,16-18 Apprenticeships - Centralised Contract Management,Main Funding,COVENTRY CITY COUNCIL,AP16R_24576,"16,650.28",Programme System File
BIS,Skills Funding Agency,10/03/2017,16-18 Apprenticeships - Centralised Contract Management,Main Funding,COVET LTD,AP16C_4392,"-45,809.83",Programme System File
BIS,Skills Funding Agency,10/03/2017,16-18 Apprenticeships - Centralised Contract Management,Main Funding,COVET LTD,AP16R_24494,"47,103.44",Programme System File
BIS,Skills Funding Agency,10/03/2017,16-18 Apprenticeships - Centralised Contract Management,Main Funding,CRACKERJACK TRAINING LTD,AP16R_23624,"36,963.80",Programme System File
BIS,Skills Funding Agency,10/03/2017,16-18 Apprenticeships - Centralised Contract Management,Main Funding,CRAVEN COLLEGE,AP16R_23642,"121,002.27",Programme System File
BIS,Skills Funding Agency,10/03/2017,16-18 Apprenticeships - Centralised Contract Management,Main Funding,CREATIVE PROCESS,AP16R_24440,"27,833.88",Programme System File
BIS,Skills Funding Agency,10/03/2017,16-18 Apprenticeships - Centralised Contract Management,Main Funding,CROYDON COLLEGE,AP16R_23694,"34,103.05",Programme System File
BIS,Skills Funding Agency,10/03/2017,16-18 Apprenticeships - Centralised Contract Management,Main Funding,CROYDON COLLEGE,AP16R_24839,"37,804.14",Programme System File
BIS,Skills Funding Agency,10/03/2017,16-18 Apprenticeships - Centralised Contract Management,Main Funding,CSM CONSULTING LTD,AP16R_23714,"20,800.88",Programme System File
BIS,Skills Funding Agency,10/03/2017,16-18 Apprenticeships - Centralised Contract Management,Main Funding,CUMBRIA COUNTY COUNCIL,AP16R_23726,275.32,Programme System File
BIS,Skills Funding Agency,10/03/2017,16-18 Apprenticeships - Centralised Contract Management,Main Funding,D MANTLE LIMITED,AP16R_24492,"22,984.24",Programme System File
BIS,Skills Funding Agency,10/03/2017,16-18 Apprenticeships - Centralised Contract Management,Main Funding,DAMAR LTD,AP16R_23764,"201,493.94",Programme System File
BIS,Skills Funding Agency,10/03/2017,16-18 Apprenticeships - Centralised Contract Management,Main Funding,DARLINGTON BOROUGH COUNCIL,AP16R_23783,"12,974.67",Programme System File
BIS,Skills Funding Agency,10/03/2017,16-18 Apprenticeships - Centralised Contract Management,Main Funding,DARLINGTON COLLEGE,AP16R_23803,"75,154.17",Programme System File
BIS,Skills Funding Agency,10/03/2017,16-18 Apprenticeships - Centralised Contract Management,Main Funding,DART LTD,AP16R_23746,"51,166.13",Programme System File
BIS,Skills Funding Agency,10/03/2017,16-18 Apprenticeships - Centralised Contract Management,Main Funding,DAVIDSON TRAINING UK LIMITED,AP16R_23823,"10,351.39",Programme System File
BIS,Skills Funding Agency,10/03/2017,16-18 Apprenticeships - Centralised Contract Management,Main Funding,DAWN HODGE ASSOCIATES LTD,AP16R_24414,"17,809.74",Programme System File
BIS,Skills Funding Agency,10/03/2017,16-18 Apprenticeships - Centralised Contract Management,Main Funding,DEARNE VALLEY COLLEGE,AP16R_23683,"47,931.75",Programme System File
BIS,Skills Funding Agency,10/03/2017,16-18 Apprenticeships - Centralised Contract Management,Main Funding,DERBY BUSINESS COLLEGE,AP16R_24139,"8,336.12",Programme System File
BIS,Skills Funding Agency,10/03/2017,16-18 Apprenticeships - Centralised Contract Management,Main Funding,DERBY CITY COUNCIL,AP16R_23703,"13,036.99",Programme System File
BIS,Skills Funding Agency,10/03/2017,16-18 Apprenticeships - Centralised Contract Management,Main Funding,DERBY COLLEGE,AP16R_23850,"255,292.20",Programme System File
BIS,Skills Funding Agency,10/03/2017,16-18 Apprenticeships - Centralised Contract Management,Main Funding,DERBYSHIRE & NOTTINGHAMSHIRE CHAMBER OF COMMERCE & INDUSTRY,AP16R_23736,"31,475.75",Programme System File
BIS,Skills Funding Agency,10/03/2017,16-18 Apprenticeships - Centralised Contract Management,Main Funding,DERBYSHIRE COUNTY COUNCIL,AP16R_23754,"10,367.04",Programme System File
BIS,Skills Funding Agency,10/03/2017,16-18 Apprenticeships - Centralised Contract Management,Main Funding,DERBYSHIRE NETWORK,AP16R_24263,"45,814.19",Programme System File
BIS,Skills Funding Agency,10/03/2017,16-18 Apprenticeships - Centralised Contract Management,Main Funding,DERWENTSIDE COLLEGE,AP16R_23793,"88,332.92",Programme System File
BIS,Skills Funding Agency,10/03/2017,16-18 Apprenticeships - Centralised Contract Management,Main Funding,DEVON COUNTY COUNCIL,AP16R_23813,244.06,Programme System File
BIS,Skills Funding Agency,10/03/2017,16-18 Apprenticeships - Centralised Contract Management,Main Funding,DHL INTERNATIONAL UK LTD,AP16C_4387,"-43,489.45",Programme System File
BIS,Skills Funding Agency,10/03/2017,16-18 Apprenticeships - Centralised Contract Management,Main Funding,DHL INTERNATIONAL UK LTD,AP16R_24449,"43,494.87",Programme System File
BIS,Skills Funding Agency,10/03/2017,16-18 Apprenticeships - Centralised Contract Management,Main Funding,DIDAC LTD,AP16R_23832,"23,487.15",Programme System File
BIS,Skills Funding Agency,10/03/2017,16-18 Apprenticeships - Centralised Contract Management,Main Funding,DIMENSIONS TRAINING SOLUTIONS LTD,AP16R_23841,"23,122.31",Programme System File
BIS,Skills Funding Agency,10/03/2017,16-18 Apprenticeships - Centralised Contract Management,Main Funding,DONCASTER COLLEGE,AP16R_23869,"146,281.37",Programme System File
BIS,Skills Funding Agency,10/03/2017,16-18 Apprenticeships - Centralised Contract Management,Main Funding,DONCASTER METRO BOROUGH COUNCIL,AP16R_23891,"5,866.87",Programme System File
BIS,Skills Funding Agency,10/03/2017,16-18 Apprenticeships - Centralised Contract Management,Main Funding,DONCASTER ROTHERHAM & DISTRICT MOTOR TRADES GROUP TRAINING ASSOCIATION LTD,AP16R_23900,"43,873.80",Programme System File
BIS,Skills Funding Agency,10/03/2017,16-18 Apprenticeships - Centralised Contract Management,Main Funding,DOOSAN BABCOCK LTD,AP16R_24067,"49,987.02",Programme System File
BIS,Skills Funding Agency,10/03/2017,16-18 Apprenticeships - Centralised Contract Management,Main Funding,DUDLEY COLLEGE OF TECHNOLOGY,AP16R_24331,"479,777.03",Programme System File
BIS,Skills Funding Agency,10/03/2017,16-18 Apprenticeships - Centralised Contract Management,Main Funding,DURHAM COUNTY COUNCIL,AP16R_23929,"7,548.79",Programme System File
BIS,Skills Funding Agency,10/03/2017,16-18 Apprenticeships - Centralised Contract Management,Main Funding,E TRAINING LTD,AP16R_23932,"8,251.54",Programme System File
BIS,Skills Funding Agency,10/03/2017,16-18 Apprenticeships - Centralised Contract Management,Main Funding,EALING HAMMERSMITH & WEST LONDON COLLEGE,AP16R_23934,"31,718.26",Programme System File
BIS,Skills Funding Agency,10/03/2017,16-18 Apprenticeships - Centralised Contract Management,Main Funding,EAST BERKSHIRE COLLEGE,AP16R_23936,"74,556.55",Programme System File
BIS,Skills Funding Agency,10/03/2017,16-18 Apprenticeships - Centralised Contract Management,Main Funding,EAST DURHAM COLLEGE,AP16R_23860,"47,928.94",Programme System File
BIS,Skills Funding Agency,10/03/2017,16-18 Apprenticeships - Centralised Contract Management,Main Funding,EAST KENT COLLEGE,AP16R_24252,"74,566.50",Programme System File
BIS,Skills Funding Agency,10/03/2017,16-18 Apprenticeships - Centralised Contract Management,Main Funding,EAST LINDSEY INFORMATION TECHNOLOGY CENTRE,AP16R_23948,"33,473.60",Programme System File
BIS,Skills Funding Agency,10/03/2017,16-18 Apprenticeships - Centralised Contract Management,Main Funding,EAST RIDING COLLEGE,AP16R_23930,"48,891.38",Programme System File
BIS,Skills Funding Agency,10/03/2017,16-18 Apprenticeships - Centralised Contract Management,Main Funding,EAST RIDING OF YORKSHIRE COUNCIL,AP16R_24346,"5,542.57",Programme System File
BIS,Skills Funding Agency,10/03/2017,16-18 Apprenticeships - Centralised Contract Management,Main Funding,EAST SURREY COLLEGE,AP16R_23928,"82,116.72",Programme System File
BIS,Skills Funding Agency,10/03/2017,16-18 Apprenticeships - Centralised Contract Management,Main Funding,EASTLEIGH COLLEGE,AP16R_23931,"123,570.20",Programme System File
BIS,Skills Funding Agency,10/03/2017,16-18 Apprenticeships - Centralised Contract Management,Main Funding,EASTON & OTLEY COLLEGE,AP16R_21385,"59,585.92",Programme System File
BIS,Skills Funding Agency,10/03/2017,16-18 Apprenticeships - Centralised Contract Management,Main Funding,EASTON & OTLEY COLLEGE,AP16R_21999,"69,893.24",Programme System File
BIS,Skills Funding Agency,10/03/2017,16-18 Apprenticeships - Centralised Contract Management,Main Funding,EASTON & OTLEY COLLEGE,AP16R_23264,"22,236.84",Programme System File
BIS,Skills Funding Agency,10/03/2017,16-18 Apprenticeships - Centralised Contract Management,Main Funding,EASTON & OTLEY COLLEGE,AP16R_24513,"67,515.16",Programme System File
BIS,Skills Funding Agency,10/03/2017,16-18 Apprenticeships - Centralised Contract Management,Main Funding,ECONOMIC SOLUTIONS LTD,AP16R_24054,"500,427.96",Programme System File
BIS,Skills Funding Agency,10/03/2017,16-18 Apprenticeships - Centralised Contract Management,Main Funding,EDEN TRAINING SOLUTIONS LTD,AP16C_4390,"-12,799.29",Programme System File
BIS,Skills Funding Agency,10/03/2017,16-18 Apprenticeships - Centralised Contract Management,Main Funding,EDEN TRAINING SOLUTIONS LTD,AP16R_24470,"37,992.50",Programme System File
BIS,Skills Funding Agency,10/03/2017,16-18 Apprenticeships - Centralised Contract Management,Main Funding,EDUCATION & TRAINING SKILLS LTD,AP16R_23933,"17,838.60",Programme System File
BIS,Skills Funding Agency,10/03/2017,16-18 Apprenticeships - Centralised Contract Management,Main Funding,EEF LTD,AP16C_4388,"-7,457.86",Programme System File
BIS,Skills Funding Agency,10/03/2017,16-18 Apprenticeships - Centralised Contract Management,Main Funding,EEF LTD,AP16R_24456,"123,407.37",Programme System File
BIS,Skills Funding Agency,10/03/2017,16-18 Apprenticeships - Centralised Contract Management,Main Funding,ELATT,AP16R_23880,"6,957.95",Programme System File
BIS,Skills Funding Agency,10/03/2017,16-18 Apprenticeships - Centralised Contract Management,Main Funding,ENFIELD LONDON BOROUGH COUNCIL,AP16R_23938,888.66,Programme System File
BIS,Skills Funding Agency,10/03/2017,16-18 Apprenticeships - Centralised Contract Management,Main Funding,ENGLAND & WALES CRICKET BOARD LTD,AP16R_24383,"20,408.70",Programme System File
BIS,Skills Funding Agency,10/03/2017,16-18 Apprenticeships - Centralised Contract Management,Main Funding,ENGLAND & WALES CRICKET BOARD LTD,AP16R_24812,"6,960.87",Programme System File
BIS,Skills Funding Agency,10/03/2017,16-18 Apprenticeships - Centralised Contract Management,Main Funding,EPPING FOREST COLLEGE,AP16R_23939,"18,328.03",Programme System File
BIS,Skills Funding Agency,10/03/2017,16-18 Apprenticeships - Centralised Contract Management,Main Funding,EQL SOLUTIONS LTD,AP16R_24529,"238,004.29",Programme System File
BIS,Skills Funding Agency,10/03/2017,16-18 Apprenticeships - Centralised Contract Management,Main Funding,ESG (SKILLS) LIMITED,AP16R_24503,"366,452.49",Programme System File
BIS,Skills Funding Agency,10/03/2017,16-18 Apprenticeships - Centralised Contract Management,Main Funding,ESSEX COUNTY COUNCIL,AP16R_23944,"10,934.65",Programme System File
BIS,Skills Funding Agency,10/03/2017,16-18 Apprenticeships - Centralised Contract Management,Main Funding,EXETER COLLEGE,AP16R_23942,"224,947.52",Programme System File
BIS,Skills Funding Agency,10/03/2017,16-18 Apprenticeships - Centralised Contract Management,Main Funding,FAREHAM COLLEGE,AP16R_24335,"147,447.39",Programme System File
BIS,Skills Funding Agency,10/03/2017,16-18 Apprenticeships - Centralised Contract Management,Main Funding,FAREPORT TRAINING ORGANISATION LTD,AP16R_23945,44787.28,Programme System File
BIS,Skills Funding Agency,10/03/2017,16-18 Apprenticeships - Centralised Contract Management,Main Funding,FARNBOROUGH COLLEGE,AP16R_23953,"54,091.83",Programme System File
BIS,Skills Funding Agency,10/03/2017,16-18 Apprenticeships - Centralised Contract Management,Main Funding,FASHION RETAIL ACADEMY,AP16R_24350,740.55,Programme System File
BIS,Skills Funding Agency,10/03/2017,16-18 Apprenticeships - Centralised Contract Management,Main Funding,FINMECCANICA UK LTD,AP16R_24405,"28,836.38",Programme System File
BIS,Skills Funding Agency,10/03/2017,16-18 Apprenticeships - Centralised Contract Management,Main Funding,FINMECCANICA UK LTD,AP16R_24814,"43,486.76",Programme System File
BIS,Skills Funding Agency,10/03/2017,16-18 Apprenticeships - Centralised Contract Management,Main Funding,FINNING (UK) LTD,AP16R_23946,"5,329.30",Programme System File
BIS,Skills Funding Agency,10/03/2017,16-18 Apprenticeships - Centralised Contract Management,Main Funding,FIRST CITY TRAINING LTD,AP16R_24360,"1,339.16",Programme System File
BIS,Skills Funding Agency,10/03/2017,16-18 Apprenticeships - Centralised Contract Management,Main Funding,FNTC TRAINING & CONSULTANCY LTD,AP16R_23954,"29,007.38",Programme System File
BIS,Skills Funding Agency,10/03/2017,16-18 Apprenticeships - Centralised Contract Management,Main Funding,FOCUS TRAINING (SW) LTD,AP16R_24465,"88,159.58",Programme System File
BIS,Skills Funding Agency,10/03/2017,16-18 Apprenticeships - Centralised Contract Management,Main Funding,FOOTBALL ASSOCIATION PREMIER LEAGUE LTD,AP16R_23943,"121,013.84",Programme System File
BIS,Skills Funding Agency,10/03/2017,16-18 Apprenticeships - Centralised Contract Management,Main Funding,FRANCESCO GROUP HOLDINGS LTD,AP16R_23940,"79,382.17",Programme System File
BIS,Skills Funding Agency,10/03/2017,16-18 Apprenticeships - Centralised Contract Management,Main Funding,FRANKLIN COLLEGE,AP16R_23941,"2,627.78",Programme System File
BIS,Skills Funding Agency,10/03/2017,16-18 Apprenticeships - Centralised Contract Management,Main Funding,FURNESS COLLEGE,AP16R_24569,"56,954.54",Programme System File
BIS,Skills Funding Agency,10/03/2017,16-18 Apprenticeships - Centralised Contract Management,Main Funding,G B TRAINING UK LTD,AP16R_23950,"30,072.86",Programme System File
BIS,Skills Funding Agency,10/03/2017,16-18 Apprenticeships - Centralised Contract Management,Main Funding,GATESHEAD COLLEGE,AP16R_23952,"112,029.18",Programme System File
BIS,Skills Funding Agency,10/03/2017,16-18 Apprenticeships - Centralised Contract Management,Main Funding,GATESHEAD COUNCIL,AP16C_4347,"-101,513.29",Programme System File
BIS,Skills Funding Agency,10/03/2017,16-18 Apprenticeships - Centralised Contract Management,Main Funding,GATESHEAD COUNCIL,AP16R_23956,"101,513.29",Programme System File
BIS,Skills Funding Agency,10/03/2017,16-18 Apprenticeships - Centralised Contract Management,Main Funding,GEN II ENGINEERING & TECHNOLOGY TRAINING LTD,AP16R_23959,"356,873.75",Programme System File
BIS,Skills Funding Agency,10/03/2017,16-18 Apprenticeships - Centralised Contract Management,Main Funding,GHQ TRAINING LTD,AP16R_24379,"30,186.69",Programme System File
BIS,Skills Funding Agency,10/03/2017,16-18 Apprenticeships - Centralised Contract Management,Main Funding,GI GROUP RECRUITMENT LTD,AP16R_24526,"16,257.67",Programme System File
BIS,Skills Funding Agency,10/03/2017,16-18 Apprenticeships - Centralised Contract Management,Main Funding,GLOUCESTERSHIRE COLLEGE OF ARTS & TECHNOLOGY,AP16R_23960,"144,745.66",Programme System File
BIS,Skills Funding Agency,10/03/2017,16-18 Apprenticeships - Centralised Contract Management,Main Funding,GLOUCESTERSHIRE COUNTY COUNCIL,AP16R_23949,"6,198.05",Programme System File
BIS,Skills Funding Agency,10/03/2017,16-18 Apprenticeships - Centralised Contract Management,Main Funding,GLOUCESTERSHIRE ENGINEERING TRAINING LTD,AP16R_23951,"72,224.26",Programme System File
BIS,Skills Funding Agency,10/03/2017,16-18 Apprenticeships - Centralised Contract Management,Main Funding,GORDON FRANKS TRAINING LIMITED,AP16R_24536,"20,001.55",Programme System File
BIS,Skills Funding Agency,10/03/2017,16-18 Apprenticeships - Centralised Contract Management,Main Funding,GP STRATEGIES TRAINING LTD,AP16R_24507,"226,900.31",Programme System File
BIS,Skills Funding Agency,10/03/2017,16-18 Apprenticeships - Centralised Contract Management,Main Funding,GREAT YARMOUTH COLLEGE,AP16R_24556,"37,196.42",Programme System File
BIS,Skills Funding Agency,10/03/2017,16-18 Apprenticeships - Centralised Contract Management,Main Funding,GREENBANK SERVICES LTD,AP16R_24462,540.12,Programme System File
BIS,Skills Funding Agency,10/03/2017,16-18 Apprenticeships - Centralised Contract Management,Main Funding,GREENWICH LEISURE LTD,AP16R_24554,"10,468.92",Programme System File
BIS,Skills Funding Agency,10/03/2017,16-18 Apprenticeships - Centralised Contract Management,Main Funding,GRIMSBY INSTITUTE OF FURTHER & HIGHER EDUCATION,AP16R_24332,"102,821.93",Programme System File
BIS,Skills Funding Agency,10/03/2017,16-18 Apprenticeships - Centralised Contract Management,Main Funding,GUILDFORD COLLEGE OF FURTHER & HIGHER EDUCATION,AP16R_23958,"69,268.39",Programme System File
BIS,Skills Funding Agency,10/03/2017,16-18 Apprenticeships - Centralised Contract Management,Main Funding,HADDON TRAINING LTD,AP16R_23961,"119,239.81",Programme System File
BIS,Skills Funding Agency,10/03/2017,16-18 Apprenticeships - Centralised Contract Management,Main Funding,HADLOW COLLEGE,AP16R_23962,995.03,Programme System File
BIS,Skills Funding Agency,10/03/2017,16-18 Apprenticeships - Centralised Contract Management,Main Funding,HAIR & BEAUTY INDUSTRY TRAINING LTD,AP16R_24564,"26,163.81",Programme System File
BIS,Skills Funding Agency,10/03/2017,16-18 Apprenticeships - Centralised Contract Management,Main Funding,HAIR ACADEMY SOUTH WEST LIMITED,AP16R_23975,"56,084.95",Programme System File
BIS,Skills Funding Agency,10/03/2017,16-18 Apprenticeships - Centralised Contract Management,Main Funding,HALESOWEN COLLEGE,AP16R_23963,"26,526.66",Programme System File
BIS,Skills Funding Agency,10/03/2017,16-18 Apprenticeships - Centralised Contract Management,Main Funding,HALFORDS LTD,AP16R_24538,"15,148.24",Programme System File
BIS,Skills Funding Agency,10/03/2017,16-18 Apprenticeships - Centralised Contract Management,Main Funding,HAMPSHIRE COUNTY COUNCIL,AP16C_4348,"-8,559.35",Programme System File
BIS,Skills Funding Agency,10/03/2017,16-18 Apprenticeships - Centralised Contract Management,Main Funding,HAMPSHIRE COUNTY COUNCIL,AP16R_23965,"8,559.35",Programme System File
BIS,Skills Funding Agency,10/03/2017,16-18 Apprenticeships - Centralised Contract Management,Main Funding,HARLOW COLLEGE,AP16R_23968,"94,764.23",Programme System File
BIS,Skills Funding Agency,10/03/2017,16-18 Apprenticeships - Centralised Contract Management,Main Funding,HARROW COLLEGE,AP16R_23970,"5,236.38",Programme System File
BIS,Skills Funding Agency,10/03/2017,16-18 Apprenticeships - Centralised Contract Management,Main Funding,HARTLEPOOL BOROUGH COUNCIL,AP16R_23972,"1,142.21",Programme System File
BIS,Skills Funding Agency,10/03/2017,16-18 Apprenticeships - Centralised Contract Management,Main Funding,HARTLEPOOL COLLEGE OF HIGHER EDUCATION,AP16R_23974,"118,595.40",Programme System File
BIS,Skills Funding Agency,10/03/2017,16-18 Apprenticeships - Centralised Contract Management,Main Funding,HARTLEPOOL SIXTH FORM COLLEGE,AP16R_20831,"1,706.75",Programme System File
BIS,Skills Funding Agency,10/03/2017,16-18 Apprenticeships - Centralised Contract Management,Main Funding,HARTLEPOOL SIXTH FORM COLLEGE,AP16R_22338,"2,153.30",Programme System File
BIS,Skills Funding Agency,10/03/2017,16-18 Apprenticeships - Centralised Contract Management,Main Funding,HARTLEPOOL SIXTH FORM COLLEGE,AP16R_23964,"4,169.16",Programme System File
BIS,Skills Funding Agency,10/03/2017,16-18 Apprenticeships - Centralised Contract Management,Main Funding,HARTPURY COLLEGE,AP16R_23966,"28,688.12",Programme System File
BIS,Skills Funding Agency,10/03/2017,16-18 Apprenticeships - Centralised Contract Management,Main Funding,HAVANT COLLEGE,AP16C_4349,"-8,814.30",Programme System File
BIS,Skills Funding Agency,10/03/2017,16-18 Apprenticeships - Centralised Contract Management,Main Funding,HAVANT COLLEGE,AP16R_23971,"8,814.30",Programme System File
BIS,Skills Funding Agency,10/03/2017,16-18 Apprenticeships - Centralised Contract Management,Main Funding,HAVERING COLLEGE OF FURTHER & HIGHER EDUCATION,AP16R_23973,"94,147.54",Programme System File
BIS,Skills Funding Agency,10/03/2017,16-18 Apprenticeships - Centralised Contract Management,Main Funding,HAWK MANAGEMENT UK LTD,AP16R_24353,"172,366.76",Programme System File
BIS,Skills Funding Agency,10/03/2017,16-18 Apprenticeships - Centralised Contract Management,Main Funding,HAYS TRAVEL LIMITED,AP16R_24468,"52,567.80",Programme System File
BIS,Skills Funding Agency,10/03/2017,16-18 Apprenticeships - Centralised Contract Management,Main Funding,HEADMASTERS PARTNERSHIP LTD,AP16C_4379,"-123,578.58",Programme System File
BIS,Skills Funding Agency,10/03/2017,16-18 Apprenticeships - Centralised Contract Management,Main Funding,HEADMASTERS PARTNERSHIP LTD,AP16R_24345,"123,424.89",Programme System File
BIS,Skills Funding Agency,10/03/2017,16-18 Apprenticeships - Centralised Contract Management,Main Funding,HEALTH & SAFETY TRAINING LTD,AP16R_24409,202.12,Programme System File
BIS,Skills Funding Agency,10/03/2017,16-18 Apprenticeships - Centralised Contract Management,Main Funding,HEALTH EDUCATION NORTH EAST,AP16R_24522,100011.16,Programme System File
BIS,Skills Funding Agency,10/03/2017,16-18 Apprenticeships - Centralised Contract Management,Main Funding,HEART OF ENGLAND TRAINING LTD,AP16R_23979,"135,334.19",Programme System File
BIS,Skills Funding Agency,10/03/2017,16-18 Apprenticeships - Centralised Contract Management,Main Funding,HEATHERCROFT TRAINING SERVICES LTD,AP16R_23978,"15,453.53",Programme System File
BIS,Skills Funding Agency,10/03/2017,16-18 Apprenticeships - Centralised Contract Management,Main Funding,HENLEY COLLEGE COVENTRY,AP16R_23981,"25,323.51",Programme System File
BIS,Skills Funding Agency,10/03/2017,16-18 Apprenticeships - Centralised Contract Management,Main Funding,HENLEY COLLEGE,AP16R_23982,"49,784.72",Programme System File
BIS,Skills Funding Agency,10/03/2017,16-18 Apprenticeships - Centralised Contract Management,Main Funding,HEREFORDSHIRE & LUDLOW COLLEGE,AP16R_23980,"120,095.91",Programme System File
BIS,Skills Funding Agency,10/03/2017,16-18 Apprenticeships - Centralised Contract Management,Main Funding,HEREFORDSHIRE GROUP TRAINING ASSOCIATION LTD,AP16R_23983,"86,700.39",Programme System File
BIS,Skills Funding Agency,10/03/2017,16-18 Apprenticeships - Centralised Contract Management,Main Funding,HERTFORD REGIONAL COLLEGE,AP16R_23984,"110,992.87",Programme System File
BIS,Skills Funding Agency,10/03/2017,16-18 Apprenticeships - Centralised Contract Management,Main Funding,HIGHBURY COLLEGE,AP16R_24333,"139,659.32",Programme System File
BIS,Skills Funding Agency,10/03/2017,16-18 Apprenticeships - Centralised Contract Management,Main Funding,HILLINGDON LONDON BOROUGH COUNCIL,AP16R_24551,"1,304.66",Programme System File
BIS,Skills Funding Agency,10/03/2017,16-18 Apprenticeships - Centralised Contract Management,Main Funding,HILLINGDON TRAINING LTD,AP16R_23990,"29,479.57",Programme System File
BIS,Skills Funding Agency,10/03/2017,16-18 Apprenticeships - Centralised Contract Management,Main Funding,HIT TRAINING LTD,AP16R_24381,"207,345.84",Programme System File
BIS,Skills Funding Agency,10/03/2017,16-18 Apprenticeships - Centralised Contract Management,Main Funding,HOB SALON LIMITED,AP16R_24533,"35,285.81",Programme System File
BIS,Skills Funding Agency,10/03/2017,16-18 Apprenticeships - Centralised Contract Management,Main Funding,HONDA MOTOR EUROPE LTD,AP16R_24376,"44,780.72",Programme System File
BIS,Skills Funding Agency,10/03/2017,16-18 Apprenticeships - Centralised Contract Management,Main Funding,HOOPLE LTD,AP16R_24514,"13,802.62",Programme System File
BIS,Skills Funding Agency,10/03/2017,16-18 Apprenticeships - Centralised Contract Management,Main Funding,HOPWOOD HALL COLLEGE,AP16R_23985,"47,590.11",Programme System File
BIS,Skills Funding Agency,10/03/2017,16-18 Apprenticeships - Centralised Contract Management,Main Funding,HOSPITALITY TRAINING PARTNERSHIP IOW LTD,AP16R_23987,"76,653.26",Programme System File
BIS,Skills Funding Agency,10/03/2017,16-18 Apprenticeships - Centralised Contract Management,Main Funding,HOUSE OF CLIVE HAIR & BEAUTY LTD,AP16R_24170,"177,842.25",Programme System File
BIS,Skills Funding Agency,10/03/2017,16-18 Apprenticeships - Centralised Contract Management,Main Funding,HSBC BANK PLC,AP16R_24375,"33,122.82",Programme System File
BIS,Skills Funding Agency,10/03/2017,16-18 Apprenticeships - Centralised Contract Management,Main Funding,HUDDERSFIELD TEXTILE TRAINING LTD,AP16R_23994,"8,374.67",Programme System File
BIS,Skills Funding Agency,10/03/2017,16-18 Apprenticeships - Centralised Contract Management,Main Funding,HUDSON & HUGHES TRAINING LTD,AP16R_23995,942.51,Programme System File
BIS,Skills Funding Agency,10/03/2017,16-18 Apprenticeships - Centralised Contract Management,Main Funding,HUGH BAIRD COLLEGE,AP16R_22387,"-240,612.00",Programme System File
BIS,Skills Funding Agency,10/03/2017,16-18 Apprenticeships - Centralised Contract Management,Main Funding,HUGH BAIRD COLLEGE,AP16R_23068,"7,205.48",Programme System File
BIS,Skills Funding Agency,10/03/2017,16-18 Apprenticeships - Centralised Contract Management,Main Funding,HUGH BAIRD COLLEGE,AP16R_23996,"317,297.35",Programme System File
BIS,Skills Funding Agency,10/03/2017,16-18 Apprenticeships - Centralised Contract Management,Main Funding,HULL BUSINESS TRAINING CENTRE LTD,AP16R_23998,"39,345.79",Programme System File
BIS,Skills Funding Agency,10/03/2017,16-18 Apprenticeships - Centralised Contract Management,Main Funding,HULL COLLEGE,AP16R_23993,"287,677.72",Programme System File
BIS,Skills Funding Agency,10/03/2017,16-18 Apprenticeships - Centralised Contract Management,Main Funding,HUMBER LEARNING CONSORTIUM,AP16R_23997,"12,703.27",Programme System File
BIS,Skills Funding Agency,10/03/2017,16-18 Apprenticeships - Centralised Contract Management,Main Funding,HUMBERSIDE ENGINEERING TRAINING ASSOCIATION LTD,AP16R_23999,"249,521.68",Programme System File
BIS,Skills Funding Agency,10/03/2017,16-18 Apprenticeships - Centralised Contract Management,Main Funding,HUNTINGDONSHIRE REGIONAL COLLEGE,AP16C_4377,"-37,539.07",Programme System File
BIS,Skills Funding Agency,10/03/2017,16-18 Apprenticeships - Centralised Contract Management,Main Funding,HUNTINGDONSHIRE REGIONAL COLLEGE,AP16R_24334,"41,151.67",Programme System File
BIS,Skills Funding Agency,10/03/2017,16-18 Apprenticeships - Centralised Contract Management,Main Funding,ICON VOCATIONAL TRAINING LTD,AP16R_24001,"55,058.18",Programme System File
BIS,Skills Funding Agency,10/03/2017,16-18 Apprenticeships - Centralised Contract Management,Main Funding,IMPACT LEARNING & DATA SOLUTIONS LTD,AP16R_24423,"2,542.75",Programme System File
BIS,Skills Funding Agency,10/03/2017,16-18 Apprenticeships - Centralised Contract Management,Main Funding,IN-COMM TRAINING AND BUSINESS SERVICES LTD,AP16R_24005,"60,456.46",Programme System File
BIS,Skills Funding Agency,10/03/2017,16-18 Apprenticeships - Centralised Contract Management,Main Funding,INDEPENDENT TRAINING SERVICES LTD,AP16R_24007,"46,437.85",Programme System File
BIS,Skills Funding Agency,10/03/2017,16-18 Apprenticeships - Centralised Contract Management,Main Funding,INGEUS TRAINING LTD,AP16R_24326,"22,676.12",Programme System File
BIS,Skills Funding Agency,10/03/2017,16-18 Apprenticeships - Centralised Contract Management,Main Funding,INSPIRE TO INDEPENDENCE (i2i) LTD,AP16R_24370,"9,466.75",Programme System File
BIS,Skills Funding Agency,10/03/2017,16-18 Apprenticeships - Centralised Contract Management,Main Funding,INTEC BUSINESS COLLEGES PLC,AP16R_24000,"54,639.61",Programme System File
BIS,Skills Funding Agency,10/03/2017,16-18 Apprenticeships - Centralised Contract Management,Main Funding,INTER TRAINING SERVICES LTD,AP16R_24002,"19,807.87",Programme System File
BIS,Skills Funding Agency,10/03/2017,16-18 Apprenticeships - Centralised Contract Management,Main Funding,INTERACTIVE DEVELOPMENT EDUCATION LTD,AP16R_24382,"4,173.27",Programme System File
BIS,Skills Funding Agency,10/03/2017,16-18 Apprenticeships - Centralised Contract Management,Main Funding,INTROTRAIN (ACE) LTD,AP16R_24510,"88,393.85",Programme System File
BIS,Skills Funding Agency,10/03/2017,16-18 Apprenticeships - Centralised Contract Management,Main Funding,INTUITIONS LTD,AP16R_24004,"42,571.28",Programme System File
BIS,Skills Funding Agency,10/03/2017,16-18 Apprenticeships - Centralised Contract Management,Main Funding,IPS INTERNATIONAL LTD,AP16R_24006,"74,673.97",Programme System File
BIS,Skills Funding Agency,10/03/2017,16-18 Apprenticeships - Centralised Contract Management,Main Funding,ISIS TRAINING SERVICES LTD,AP16R_24008,"66,825.54",Programme System File
BIS,Skills Funding Agency,10/03/2017,16-18 Apprenticeships - Centralised Contract Management,Main Funding,ISLE OF WIGHT COLLEGE,AP16R_24009,"60,540.34",Programme System File
BIS,Skills Funding Agency,10/03/2017,16-18 Apprenticeships - Centralised Contract Management,Main Funding,ITEC NORTH EAST LTD,AP16R_24011,"40,152.14",Programme System File
BIS,Skills Funding Agency,10/03/2017,16-18 Apprenticeships - Centralised Contract Management,Main Funding,IXION GROUP CONTRACTS LTD,AP16C_4395,"-227,637.66",Programme System File
BIS,Skills Funding Agency,10/03/2017,16-18 Apprenticeships - Centralised Contract Management,Main Funding,IXION GROUP CONTRACTS LTD,AP16R_24504,"227,637.66",Programme System File
BIS,Skills Funding Agency,10/03/2017,16-18 Apprenticeships - Centralised Contract Management,Main Funding,JAGUAR LAND ROVER HOLDINGS LTD,AP16R_24354,"85,739.96",Programme System File
BIS,Skills Funding Agency,10/03/2017,16-18 Apprenticeships - Centralised Contract Management,Main Funding,JANCETT CHILDCARE & JACE TRAINING LIMITED,AP16R_24527,"31,257.15",Programme System File
BIS,Skills Funding Agency,10/03/2017,16-18 Apprenticeships - Centralised Contract Management,Main Funding,JARVIS TRAINING MANAGEMENT LTD,AP16C_4351,"-51,357.56",Programme System File
BIS,Skills Funding Agency,10/03/2017,16-18 Apprenticeships - Centralised Contract Management,Main Funding,JARVIS TRAINING MANAGEMENT LTD,AP16R_24012,"86,464.13",Programme System File
BIS,Skills Funding Agency,10/03/2017,16-18 Apprenticeships - Centralised Contract Management,Main Funding,JBC COMPUTER TRAINING LIMITED,AP16R_24397,749.16,Programme System File
BIS,Skills Funding Agency,10/03/2017,16-18 Apprenticeships - Centralised Contract Management,Main Funding,JGA LTD,AP16R_24247,"48,061.13",Programme System File
BIS,Skills Funding Agency,10/03/2017,16-18 Apprenticeships - Centralised Contract Management,Main Funding,JGW TRAINING LTD,AP16R_24584,"2,115.68",Programme System File
BIS,Skills Funding Agency,10/03/2017,16-18 Apprenticeships - Centralised Contract Management,Main Funding,JOBWISE TRAINING LTD,AP16C_4352,"-48,599.30",Programme System File
BIS,Skills Funding Agency,10/03/2017,16-18 Apprenticeships - Centralised Contract Management,Main Funding,JOBWISE TRAINING LTD,AP16R_24013,44355.98,Programme System File
BIS,Skills Funding Agency,10/03/2017,16-18 Apprenticeships - Centralised Contract Management,Main Funding,JOHN LAING TRAINING LTD,AP16R_24580,"12,071.34",Programme System File
BIS,Skills Funding Agency,10/03/2017,16-18 Apprenticeships - Centralised Contract Management,Main Funding,JOHN LEGGOTT SIXTH FORM COLLEGE,AP16R_20884,"2,408.65",Programme System File
BIS,Skills Funding Agency,10/03/2017,16-18 Apprenticeships - Centralised Contract Management,Main Funding,JOHN LEGGOTT SIXTH FORM COLLEGE,AP16R_22429,"2,961.90",Programme System File
BIS,Skills Funding Agency,10/03/2017,16-18 Apprenticeships - Centralised Contract Management,Main Funding,JOHN LEGGOTT SIXTH FORM COLLEGE,AP16R_23268,"6,743.54",Programme System File
BIS,Skills Funding Agency,10/03/2017,16-18 Apprenticeships - Centralised Contract Management,Main Funding,JOHN LEGGOTT SIXTH FORM COLLEGE,AP16R_24016,"2,685.28",Programme System File
BIS,Skills Funding Agency,10/03/2017,16-18 Apprenticeships - Centralised Contract Management,Main Funding,JOHN RUSKIN COLLEGE,AP16R_24014,"128,306.67",Programme System File
BIS,Skills Funding Agency,10/03/2017,16-18 Apprenticeships - Centralised Contract Management,Main Funding,JTL,AP16R_24022,"1,727,530.95",Programme System File
BIS,Skills Funding Agency,10/03/2017,16-18 Apprenticeships - Centralised Contract Management,Main Funding,JTL,AP16R_24843,"30,567.69",Programme System File
BIS,Skills Funding Agency,10/03/2017,16-18 Apprenticeships - Centralised Contract Management,Main Funding,K & G HAIR LLP,AP16R_24502,"38,023.13",Programme System File
BIS,Skills Funding Agency,10/03/2017,16-18 Apprenticeships - Centralised Contract Management,Main Funding,KAPLAN FINANCIAL LIMITED,AP16C_4355,"-295,906.62",Programme System File
BIS,Skills Funding Agency,10/03/2017,16-18 Apprenticeships - Centralised Contract Management,Main Funding,KAPLAN FINANCIAL LIMITED,AP16R_24070,"315,183.89",Programme System File
BIS,Skills Funding Agency,10/03/2017,16-18 Apprenticeships - Centralised Contract Management,Main Funding,KAPLAN FINANCIAL LIMITED,AP16R_24842,"33,387.37",Programme System File
BIS,Skills Funding Agency,10/03/2017,16-18 Apprenticeships - Centralised Contract Management,Main Funding,KEITS TRAINING SERVICES LTD,AP16R_24015,"167,354.15",Programme System File
BIS,Skills Funding Agency,10/03/2017,16-18 Apprenticeships - Centralised Contract Management,Main Funding,KENDAL COLLEGE,AP16R_24023,"83,798.99",Programme System File
BIS,Skills Funding Agency,10/03/2017,16-18 Apprenticeships - Centralised Contract Management,Main Funding,KENSINGTON & CHELSEA COLLEGE,AP16R_24025,"3,821.57",Programme System File
BIS,Skills Funding Agency,10/03/2017,16-18 Apprenticeships - Centralised Contract Management,Main Funding,KENT COUNTY COUNCIL,AP16R_24017,"45,909.89",Programme System File
BIS,Skills Funding Agency,10/03/2017,16-18 Apprenticeships - Centralised Contract Management,Main Funding,KENTUCKY FRIED CHICKEN GREAT BRITAIN LTD,AP16R_24485,"10,767.20",Programme System File
BIS,Skills Funding Agency,10/03/2017,16-18 Apprenticeships - Centralised Contract Management,Main Funding,KEY TRAINING LTD,AP16R_24020,"298,637.19",Programme System File
BIS,Skills Funding Agency,10/03/2017,16-18 Apprenticeships - Centralised Contract Management,Main Funding,KINGSTON COLLEGE,AP16R_24024,"59,716.25",Programme System File
BIS,Skills Funding Agency,10/03/2017,16-18 Apprenticeships - Centralised Contract Management,Main Funding,KINGSTON MAURWARD COLLEGE,AP16R_24026,"55,996.98",Programme System File
BIS,Skills Funding Agency,10/03/2017,16-18 Apprenticeships - Centralised Contract Management,Main Funding,KINGSTON UPON HULL CITY COUNCIL,AP16R_23991,"111,138.53",Programme System File
BIS,Skills Funding Agency,10/03/2017,16-18 Apprenticeships - Centralised Contract Management,Main Funding,KIRKDALE INDUSTRIAL TRAINING SERVICES LTD,AP16R_24028,"89,003.16",Programme System File
BIS,Skills Funding Agency,10/03/2017,16-18 Apprenticeships - Centralised Contract Management,Main Funding,KIRKLEES COLLEGE,AP16R_23992,"201,391.78",Programme System File
BIS,Skills Funding Agency,10/03/2017,16-18 Apprenticeships - Centralised Contract Management,Main Funding,KNOWSLEY COMMUNITY COLLEGE,AP16R_24027,"29,708.54",Programme System File
BIS,Skills Funding Agency,10/03/2017,16-18 Apprenticeships - Centralised Contract Management,Main Funding,KWIK FIT GB LTD,AP16R_24029,"92,926.29",Programme System File
BIS,Skills Funding Agency,10/03/2017,16-18 Apprenticeships - Centralised Contract Management,Main Funding,LAGAT LTD,AP16R_24034,"25,738.20",Programme System File
BIS,Skills Funding Agency,10/03/2017,16-18 Apprenticeships - Centralised Contract Management,Main Funding,LAKES COLLEGE WEST CUMBRIA,AP16R_24037,"84,287.80",Programme System File
BIS,Skills Funding Agency,10/03/2017,16-18 Apprenticeships - Centralised Contract Management,Main Funding,LAMBETH COLLEGE AT CLAPHAM CENTRE,AP16R_24038,"59,636.45",Programme System File
BIS,Skills Funding Agency,10/03/2017,16-18 Apprenticeships - Centralised Contract Management,Main Funding,LANCASTER & MORECAMBE COLLEGE,AP16R_24040,"56,044.18",Programme System File
BIS,Skills Funding Agency,10/03/2017,16-18 Apprenticeships - Centralised Contract Management,Main Funding,LANCASTER TRAINING SERVICES LTD,AP16R_24031,"20,017.09",Programme System File
BIS,Skills Funding Agency,10/03/2017,16-18 Apprenticeships - Centralised Contract Management,Main Funding,LAWN TENNIS ASSOCIATION LTD,AP16R_24425,"37,492.90",Programme System File
BIS,Skills Funding Agency,10/03/2017,16-18 Apprenticeships - Centralised Contract Management,Main Funding,LEAGUE FOOTBALL EDUCATION,AP16R_24033,"524,578.67",Programme System File
BIS,Skills Funding Agency,10/03/2017,16-18 Apprenticeships - Centralised Contract Management,Main Funding,LEARNDIRECT LTD,AP16R_24558,"1,129,290.14",Programme System File
BIS,Skills Funding Agency,10/03/2017,16-18 Apprenticeships - Centralised Contract Management,Main Funding,LEARNING CURVE JAA LIMITED,AP16R_24348,"183,059.88",Programme System File
BIS,Skills Funding Agency,10/03/2017,16-18 Apprenticeships - Centralised Contract Management,Main Funding,LEARNING CURVE,AP16R_24248,277.08,Programme System File
BIS,Skills Funding Agency,10/03/2017,16-18 Apprenticeships - Centralised Contract Management,Main Funding,LEARNING PARTNERSHIP FOR CORNWALL AND THE ISLES OF SCILLY LIMITED,AP16R_24250,"20,476.09",Programme System File
BIS,Skills Funding Agency,10/03/2017,16-18 Apprenticeships - Centralised Contract Management,Main Funding,LEARNING SKILLS PARTNERSHIP LIMITED,AP16R_24501,"71,316.19",Programme System File
BIS,Skills Funding Agency,10/03/2017,16-18 Apprenticeships - Centralised Contract Management,Main Funding,LEEDS CITY COLLEGE,AP16R_24452,"108,525.99",Programme System File
BIS,Skills Funding Agency,10/03/2017,16-18 Apprenticeships - Centralised Contract Management,Main Funding,LEEDS COLLEGE OF BUILDING,AP16R_24039,"192,727.94",Programme System File
BIS,Skills Funding Agency,10/03/2017,16-18 Apprenticeships - Centralised Contract Management,Main Funding,LEICESTER COLLEGE CO FREEMENS PARK CAMPUS,AP16R_24044,"192,433.86",Programme System File
BIS,Skills Funding Agency,10/03/2017,16-18 Apprenticeships - Centralised Contract Management,Main Funding,LEICESTERSHIRE COUNTY COUNCIL,AP16R_24042,"6,979.90",Programme System File
BIS,Skills Funding Agency,10/03/2017,16-18 Apprenticeships - Centralised Contract Management,Main Funding,LESLIE FRANCES HAIR FASHIONS LTD,AP16R_24043,"52,325.25",Programme System File
BIS,Skills Funding Agency,10/03/2017,16-18 Apprenticeships - Centralised Contract Management,Main Funding,LESOCO,AP16R_20912,"20,514.53",Programme System File
BIS,Skills Funding Agency,10/03/2017,16-18 Apprenticeships - Centralised Contract Management,Main Funding,LESOCO,AP16R_22486,"16,346.95",Programme System File
BIS,Skills Funding Agency,10/03/2017,16-18 Apprenticeships - Centralised Contract Management,Main Funding,LESOCO,AP16R_24045,"15,325.15",Programme System File
BIS,Skills Funding Agency,10/03/2017,16-18 Apprenticeships - Centralised Contract Management,Main Funding,LIFESKILLS SOLUTIONS LTD,AP16R_24048,"45,785.85",Programme System File
BIS,Skills Funding Agency,10/03/2017,16-18 Apprenticeships - Centralised Contract Management,Main Funding,LIFETIME TRAINING GROUP LTD,AP16R_24579,"751,709.26",Programme System File
BIS,Skills Funding Agency,10/03/2017,16-18 Apprenticeships - Centralised Contract Management,Main Funding,LIGA (UK) LTD,AP16R_24508,"37,697.49",Programme System File
BIS,Skills Funding Agency,10/03/2017,16-18 Apprenticeships - Centralised Contract Management,Main Funding,LINCOLN COLLEGE,AP16R_24053,"179,484.04",Programme System File
BIS,Skills Funding Agency,10/03/2017,16-18 Apprenticeships - Centralised Contract Management,Main Funding,LITE STOCKPORT LTD,AP16R_24344,"21,334.78",Programme System File
BIS,Skills Funding Agency,10/03/2017,16-18 Apprenticeships - Centralised Contract Management,Main Funding,LITS LTD,AP16R_24032,"4,866.30",Programme System File
BIS,Skills Funding Agency,10/03/2017,16-18 Apprenticeships - Centralised Contract Management,Main Funding,LIVERPOOL CHAMBER TRAINING LTD,AP16R_24472,"34,455.28",Programme System File
BIS,Skills Funding Agency,10/03/2017,16-18 Apprenticeships - Centralised Contract Management,Main Funding,LOCOMOTIVATION LTD,AP16R_24047,"20,585.16",Programme System File
BIS,Skills Funding Agency,10/03/2017,16-18 Apprenticeships - Centralised Contract Management,Main Funding,LONDON BOROUGH OF WALTHAM FOREST,AP16R_24290,"5,522.84",Programme System File
BIS,Skills Funding Agency,10/03/2017,16-18 Apprenticeships - Centralised Contract Management,Main Funding,LONDON COLLEGE OF BEAUTY THERAPY LTD,AP16R_24055,"7,744.52",Programme System File
BIS,Skills Funding Agency,10/03/2017,16-18 Apprenticeships - Centralised Contract Management,Main Funding,LONDON LEARNING CONSORTIUM C.I.C.,AP16R_24413,"3,164.78",Programme System File
BIS,Skills Funding Agency,10/03/2017,16-18 Apprenticeships - Centralised Contract Management,Main Funding,LONDON SKILLS & DEVELOPMENT NETWORK LIMITED,AP16R_24418,"3,580.26",Programme System File
BIS,Skills Funding Agency,10/03/2017,16-18 Apprenticeships - Centralised Contract Management,Main Funding,LONDON VESTA COLLEGE LIMITED,AP16R_24446,"10,096.18",Programme System File
BIS,Skills Funding Agency,10/03/2017,16-18 Apprenticeships - Centralised Contract Management,Main Funding,LOOKFANTASTIC TRAINING LIMITED,AP16R_24566,"65,272.73",Programme System File
BIS,Skills Funding Agency,10/03/2017,16-18 Apprenticeships - Centralised Contract Management,Main Funding,LOUGHBOROUGH COLLEGE,AP16R_24057,364239.12,Programme System File
BIS,Skills Funding Agency,10/03/2017,16-18 Apprenticeships - Centralised Contract Management,Main Funding,LOWESTOFT COLLEGE,AP16R_24561,"54,267.94",Programme System File
BIS,Skills Funding Agency,10/03/2017,16-18 Apprenticeships - Centralised Contract Management,Main Funding,LUNN POLY LTD,AP16R_24058,"7,084.59",Programme System File
BIS,Skills Funding Agency,10/03/2017,16-18 Apprenticeships - Centralised Contract Management,Main Funding,LUTON BOROUGH COUNCIL,AP16R_24060,"23,396.45",Programme System File
BIS,Skills Funding Agency,10/03/2017,16-18 Apprenticeships - Centralised Contract Management,Main Funding,M I T SKILLS LIMITED,AP16C_4357,"-140,936.36",Programme System File
BIS,Skills Funding Agency,10/03/2017,16-18 Apprenticeships - Centralised Contract Management,Main Funding,M I T SKILLS LIMITED,AP16R_24074,"140,697.84",Programme System File
BIS,Skills Funding Agency,10/03/2017,16-18 Apprenticeships - Centralised Contract Management,Main Funding,MACCLESFIELD COLLEGE,AP16C_4356,"-66,963.17",Programme System File
BIS,Skills Funding Agency,10/03/2017,16-18 Apprenticeships - Centralised Contract Management,Main Funding,MACCLESFIELD COLLEGE,AP16R_24063,"41,215.57",Programme System File
BIS,Skills Funding Agency,10/03/2017,16-18 Apprenticeships - Centralised Contract Management,Main Funding,MAINSTREAM TRAINING LTD,AP16R_24352,"3,528.30",Programme System File
BIS,Skills Funding Agency,10/03/2017,16-18 Apprenticeships - Centralised Contract Management,Main Funding,MANCHESTER COLLEGE,AP16R_24431,"87,778.50",Programme System File
BIS,Skills Funding Agency,10/03/2017,16-18 Apprenticeships - Centralised Contract Management,Main Funding,MANCHESTER METRO UNIVERSITY,AP16R_24056,"16,955.92",Programme System File
BIS,Skills Funding Agency,10/03/2017,16-18 Apprenticeships - Centralised Contract Management,Main Funding,MANLEY SUMMERS HOUSING PERSONNEL LIMITED,AP16R_24582,"2,773.15",Programme System File
BIS,Skills Funding Agency,10/03/2017,16-18 Apprenticeships - Centralised Contract Management,Main Funding,MANTRA LEARNING LTD,AP16C_4354,"-40,241.15",Programme System File
BIS,Skills Funding Agency,10/03/2017,16-18 Apprenticeships - Centralised Contract Management,Main Funding,MANTRA LEARNING LTD,AP16R_24061,"40,241.15",Programme System File
BIS,Skills Funding Agency,10/03/2017,16-18 Apprenticeships - Centralised Contract Management,Main Funding,MARDELL ASSOCIATES LTD,AP16R_24202,"39,290.62",Programme System File
BIS,Skills Funding Agency,10/03/2017,16-18 Apprenticeships - Centralised Contract Management,Main Funding,MARITIME & ENGINEERING COLLEGE NORTH WEST,AP16R_24035,"59,697.42",Programme System File
BIS,Skills Funding Agency,10/03/2017,16-18 Apprenticeships - Centralised Contract Management,Main Funding,MARR CORPORTATION LIMITED,AP16R_24439,"72,302.76",Programme System File
BIS,Skills Funding Agency,10/03/2017,16-18 Apprenticeships - Centralised Contract Management,Main Funding,MATRIX TRAINING & DEVELOPMENT LTD,AP16R_24059,"17,940.51",Programme System File
BIS,Skills Funding Agency,10/03/2017,16-18 Apprenticeships - Centralised Contract Management,Main Funding,MCARTHUR DEAN TRAINING LTD,AP16R_24062,"47,270.51",Programme System File
BIS,Skills Funding Agency,10/03/2017,16-18 Apprenticeships - Centralised Contract Management,Main Funding,MEADOWHALL TRAINING LIMITED,AP16R_24378,"66,266.03",Programme System File
BIS,Skills Funding Agency,10/03/2017,16-18 Apprenticeships - Centralised Contract Management,Main Funding,MEDWAY COUNCIL,AP16R_24064,"1,777.39",Programme System File
BIS,Skills Funding Agency,10/03/2017,16-18 Apprenticeships - Centralised Contract Management,Main Funding,MERCEDES-BENZ UK LTD,AP16R_24429,"216,647.40",Programme System File
BIS,Skills Funding Agency,10/03/2017,16-18 Apprenticeships - Centralised Contract Management,Main Funding,MERCIA PARTNERSHIP UK LTD,AP16R_24065,"11,015.35",Programme System File
BIS,Skills Funding Agency,10/03/2017,16-18 Apprenticeships - Centralised Contract Management,Main Funding,METSKILL LTD,AP16R_24071,"132,048.31",Programme System File
BIS,Skills Funding Agency,10/03/2017,16-18 Apprenticeships - Centralised Contract Management,Main Funding,MI COMPUTSOLUTIONS INCORPORATED,AP16R_24387,"7,493.95",Programme System File
BIS,Skills Funding Agency,10/03/2017,16-18 Apprenticeships - Centralised Contract Management,Main Funding,MICHAEL JOHN OF LIVERPOOL,AP16R_24385,"41,890.48",Programme System File
BIS,Skills Funding Agency,10/03/2017,16-18 Apprenticeships - Centralised Contract Management,Main Funding,MICHAELJOHN TRAINING,AP16R_24386,"40,709.54",Programme System File
BIS,Skills Funding Agency,10/03/2017,16-18 Apprenticeships - Centralised Contract Management,Main Funding,MID CHESHIRE COLLEGE,AP16R_20933,"54,432.31",Programme System File
BIS,Skills Funding Agency,10/03/2017,16-18 Apprenticeships - Centralised Contract Management,Main Funding,MID CHESHIRE COLLEGE,AP16R_22525,"43,911.02",Programme System File
BIS,Skills Funding Agency,10/03/2017,16-18 Apprenticeships - Centralised Contract Management,Main Funding,MID CHESHIRE COLLEGE,AP16R_24066,"49,755.12",Programme System File
BIS,Skills Funding Agency,10/03/2017,16-18 Apprenticeships - Centralised Contract Management,Main Funding,MID KENT COLLEGE,AP16R_24072,"114,416.63",Programme System File
BIS,Skills Funding Agency,10/03/2017,16-18 Apprenticeships - Centralised Contract Management,Main Funding,MIDDLESBROUGH COLLEGE,AP16R_24073,"257,553.53",Programme System File
BIS,Skills Funding Agency,10/03/2017,16-18 Apprenticeships - Centralised Contract Management,Main Funding,MIDDLESBROUGH COUNCIL,AP16R_24068,"22,574.39",Programme System File
BIS,Skills Funding Agency,10/03/2017,16-18 Apprenticeships - Centralised Contract Management,Main Funding,MIDLAND GROUP TRAINING SERVICES LTD,AP16R_24075,"88,895.52",Programme System File
BIS,Skills Funding Agency,10/03/2017,16-18 Apprenticeships - Centralised Contract Management,Main Funding,MILLBROOK MANAGEMENT SERVICES LTD,AP16R_24153,"25,191.36",Programme System File
BIS,Skills Funding Agency,10/03/2017,16-18 Apprenticeships - Centralised Contract Management,Main Funding,MILTON KEYNES COLLEGE,AP16R_24079,"67,274.13",Programme System File
BIS,Skills Funding Agency,10/03/2017,16-18 Apprenticeships - Centralised Contract Management,Main Funding,MILTON KEYNES COUNCIL,AP16R_24082,"2,834.43",Programme System File
BIS,Skills Funding Agency,10/03/2017,16-18 Apprenticeships - Centralised Contract Management,Main Funding,MINISTRY OF DEFENCE,AP16C_4391,"-145,831.67",Programme System File
BIS,Skills Funding Agency,10/03/2017,16-18 Apprenticeships - Centralised Contract Management,Main Funding,MINISTRY OF DEFENCE,AP16C_4393,"-8,604.84",Programme System File
BIS,Skills Funding Agency,10/03/2017,16-18 Apprenticeships - Centralised Contract Management,Main Funding,MINISTRY OF DEFENCE,AP16R_24372,"2,245.98",Programme System File
BIS,Skills Funding Agency,10/03/2017,16-18 Apprenticeships - Centralised Contract Management,Main Funding,MINISTRY OF DEFENCE,AP16R_24487,"145,831.67",Programme System File
BIS,Skills Funding Agency,10/03/2017,16-18 Apprenticeships - Centralised Contract Management,Main Funding,MINISTRY OF DEFENCE,AP16R_24495,"328,533.81",Programme System File
BIS,Skills Funding Agency,10/03/2017,16-18 Apprenticeships - Centralised Contract Management,Main Funding,MITCHELLS & BUTLERS PLC,AP16R_24546,"5,224.31",Programme System File
BIS,Skills Funding Agency,10/03/2017,16-18 Apprenticeships - Centralised Contract Management,Main Funding,MITIE GROUP PLC,AP16R_24445,761.02,Programme System File
BIS,Skills Funding Agency,10/03/2017,16-18 Apprenticeships - Centralised Contract Management,Main Funding,MOBILE CARE QUALIFICATIONS LTD,AP16R_24069,"10,904.14",Programme System File
BIS,Skills Funding Agency,10/03/2017,16-18 Apprenticeships - Centralised Contract Management,Main Funding,MOMENTUM TRAINING & CONSULTANCY LTD,AP16R_24532,"23,107.91",Programme System File
BIS,Skills Funding Agency,10/03/2017,16-18 Apprenticeships - Centralised Contract Management,Main Funding,MOTOR INSURANCE REPAIR RESEARCH CENTRE,AP16R_24253,"31,465.75",Programme System File
BIS,Skills Funding Agency,10/03/2017,16-18 Apprenticeships - Centralised Contract Management,Main Funding,MOULTON COLLEGE,AP16R_24076,"69,664.74",Programme System File
